{"text_format":"1","workbook":"xlsx","n_sheets":7,"sheets":["Facility Data","Facility Info","Weighted","Facility Cover Sheet","Tally Sheet","Parts List","US. Speed Sheet"],"not_rendered":{"charts":0,"images":1,"macros":1,"external_links":0,"defined_names":22,"comments":0,"pivot_tables":0},"unopened":[],"bounds":{"document_bytes":16777216,"sheet_cells":100000,"rows_first":2000,"rows_last":500,"rows_between":2000,"halvings":0,"cell_chars":16384,"cell_head_chars":4096},"cells_cut":0,"cells_raw":0,"read":"whole","date_system":"1900"}

{"sheet":"Facility Data","index":0,"n_rows":153,"n_cols":6,"rows_kept":153,"cut":false,"hidden":true,"merged":[]}
[null,null,null,"CONTRACTOR LIST"]
[]
["Staff",null,null,"AA"]
[null,null,null,"AMERICAN AUTO WORKS"]
[" ",null,null,"AMPORTS"]
["PB",null,null,"APLS"]
["DH",null,null,"ATC LOGISTICS"]
["CM",null,null,"AUTO RELEASING INC."]
["PB, DH, CM",null,null,"AUTO WAREHOUSING CO"]
["PB, DH ",null,null,"AUTOPORT LTD."]
["PB, CM",null,null,"AUTOPORT LTD. & PAWLAN HOLDINGS LTD."]
["DH, CM",null,null,"AUTORAMP SERVICES"]
["Railroad Abrivations",null,null,"CAN-AUTO"]
[" ",null,null,"CARLOGISTICS"]
["AA",null,null,"CARS"]
["BNSF",null,null,"CASSENS"]
["CIND",null,null,"CEVA LOGISTICS"]
["CISD",null,null,"CN"]
["CONRAIL SHARED ASSETS",null,null,"COMPLETE AUTO NETWORK"]
["CN",null,null,"CONRAIL SHARED ASSETS"]
["CP",null,null,"CP"]
["CSX",null,null,"CSX"]
["FERRO MEX",null,null,"D & L AUTO SERVICES"]
["FNM",null,null,"DISTRIBUTION AUTO SERVICES"]
["IC",null,null,"FAPS"]
["KCS",null,null,"FORD UAW"]
["NS",null,null,"FRASER WHARVES LTD."]
["PTRA",null,null,"GAPS"]
["SRY",null,null,"GEN-AUTO SHIPPERS"]
["TFM",null,null,"GM UAW"]
["TMBL",null,null,"HYUNDAI GLOVIS"]
["UP",null,null,"INTERNATIONAL AUTO PROCESSING"]
[" ",null,null,"INTER-RAIL "]
[1,null,null,"IN-TERMINAL SERVICES"]
[2,null,null,"JACK COOPER TRANSPORT"]
[3,null,null,"KENOSHA RELEASING INC"]
[" ",null,null,"L. HANSEN'S FORWARDING LTD."]
[" ",null,null,"LORDSTOWN OF OHIO LLC"]
["Yes ",null,null,"MARION INDUSTRIAL CENTER"]
["No",null,null,"MID TEXAS INTERNATIONAL"]
["N/A",null,null,"MIS"]
[null,null,null,"MULTI-LEVEL SERVICES"]
[null,null,null,"MVP"]
[null,null,null,"NORTH AMERICAN RAIL SOLUTIONS"]
[null,null,null,"NORTHEAST VEHICLE SERVICE"]
[null,null,null,"PASHA"]
[null,null,null,"PHL"]
[null,null,null,"PREMIER"]
[null,null,null,"PRECISION VEHICLE LOGISTICS"]
[null,null,null,"PRS AUTO"]
[null,null,null,"RCS TRANSPORTATION"]
[null,null,null,"RJ CORMAN"]
[null,null,null,"ROAD & RAIL SERVICES"]
[null,null,null,"RYDER"]
[null,null,null,"SOUTHEAST TOYOTA DISTRIBUTORS"]
[null,null,null,"SPD-1 LOGISTICS"]
[null,null,null,"STARPORT SERVICES INC"]
[null,null,null,"T & S SERVICES"]
[null,null,null,"T.V. MINORITY COMPANY INC"]
[null,null,null,"TMM LOGISTICS"]
[null,null,null,"TNT LOGISTICS"]
[null,null,null,"TOYOTA LOGISTICS SERVICES"]
[null,null,null,"TOYOTA MOTOR MANUFACTURING"]
[null,null,null,"TRANS CARGO LLC."]
[null,null,null,"TRANSPORT SUPPORT"]
[null,null,null,"TURNING BASIN SERVICES"]
[null,null,null,"SPD-1 LOGISTICS"]
[null,null,null,"SRY"]
[null,null,null,"T & S SERVICES"]
[null,null,null,"T.V. MINORITY COMPANY INC"]
[null,null,null,"TCB"]
[null,null,null,"TFM"]
[null,null,null,"TMM LOGISTICS"]
[null,null,null,"TNT LOGISTICS"]
[null,null,null,"TOYOTA LOGISTICS SERVICES"]
[null,null,null,"TOYOTA MOTOR MANUFACTURING"]
[null,null,null,"TRANSPORT SUPPORT"]
[null,null,null,"TTX"]
[null,null,null,"TURNING BASIN SERVICES"]
[null,null,null,"UP"]
[null,null,null,"UNITED SPECIALITY AUTOMOTIVE"]
[null,null,null,"VASCOR"]
[null,null,null,"WALLENIUS WILHELMSEN LOGISTICS"]
[null,null,null,"Mechanical Contractor"]
[null,null,null," "]
[null,null,null,"AA"]
[null,null,null,"AUTO WAREHOUSING CO"]
[null,null,null,"AUTOPORT"]
[null,null,null,"BNSF"]
[null,null,null,"BNSF, AWC"]
[null,null,null,"CIND"]
[null,null,null,"CISD"]
[null,null,null,"CN"]
[null,null,null,"CP"]
[null,null,null,"CONRAIL SHARED ASSETS"]
[null,null,null,"CSX"]
[null,null,null,"DISTRIBUTION AUTO SERVICES"]
[null,null,null,"EAST BROOKFIELD SPENCER RAILROAD"]
[null,null,null,"FAPS"]
[null,null,null,"FERRO MEX"]
[null,null,null,"FEC"]
[null,null,null,"FRASER WHARVES LTD."]
[null,null,null,"GITR"]
[null,null,null,"HARBOR SERVICES"]
[null,null,null,"IC",null," "]
[null,null,null,"IMEX",null," "]
[null,null,null,"INTERNATIONAL AUTO PROCESSING"]
[null,null,null,"INTER-RAIL ",null," "]
[null,null,null,"ITS"]
[null,null,null,"JACK COOPER TRANSPORT"]
[null,null,null,"KCS",null," "]
[null,null,null,"L. HANSEN'S FORWARDING LTD."]
[null,null,null,"MID TEXAS INTERNATIONAL"]
[null,null,null,"MIS"]
[null,null,null,"MVP",null," "]
[null,null,null,"NORTH AMERICAN RAIL SOLUTIONS"]
[null,null,null,"NORTHEAST VEHICLE SERVICE"]
[null,null,null,"NS",null," "]
[null,null,null,"PASHA",null," "]
[null,null,null,"PHL"]
[null,null,null,"PROGRESS RAIL SERVICES",null," "]
[null,null,null,"PROGRESS SERVICIOS FERROVIARIOS"]
[null,null,null,"PRS AUTO"]
[null,null,null,"PTRA"]
[null,null,null,"QUALITY TERMINAL SERVICES"]
[null,null,null,"RCS TRANSPORTATION"]
[null,null,null,"ROAD & RAIL SERVICES"]
[null,null,null,"RYDER"]
[null,null,null,"SOUTHEAST TOYOTA DISTRIBUTORS"]
[null,null,null,"SRY"]
[null,null,null,"TFM"]
[null,null,null,"TMBL"]
[null,null,null,"TMM LOGISTICS"]
[null,null,null,"TOYOTA LOGISTICS SERVICES"]
[null,null,null,"TOYOTA MOTOR MANUFACTURING"]
[null,null,null,"TNT LOGISTICS"]
[null,null,null,"TTX",null," "]
[null,null,null,"UP"]
[null,null,null,"WALLENIUS WILHELMSEN LOGISTICS"]
[null,null,null,"UNLOAD/RELOAD"]
[null,null,null,"NO PRETRIP EMPTIES",null," "]
[null,null,null,null,null," "]
[null,null,null,null,null," "]
[]
[]
[null,null,null,null,null," "]
[null,null,null,null,null," "]
[null,null,null,null,null," "]
[null,null,null,null,null," "]
[null,null,null,null,null," "]
[null,null,null,null,null," "]
[null,null,null,null,null," "]
[null,null,null,null,null," "]

{"sheet":"Facility Info","index":1,"n_rows":27,"n_cols":98,"rows_kept":27,"cut":false,"hidden":false,"merged":[[0,0,0,1],[2,0,2,1],[1,0,1,1]]}
["ORIGIN QUALITY REVIEW"]
["OFFICE 2010 (EXCEL) 2020",null,null,null,null,null,null,null,null,null,null,null,null,null,null,null,null,null,null,null,null,null,null,null,null,null,null,null,null,null,null,null,null,null,null,null,null,null,null,null,null,null,null,null,null,null,null,null,null,null,null,null,null,null,null,null,null,null,null,null,null,null,null,null,null,null,null,null,null,null,null,null,null,null,null,null,null,null,null,null,null,null,null,null,null,null,null,null,null,null,null,null,null,null,null,null,null,{"$f":"('Facility Info'!B14)","v":" "}]
["FACILITY INFORMATION SHEET"]
["Date Quality Review Was Completed:"]
["City:"]
["State or Country:"]
["Manufacturer:"]
["Contractor Name:"]
["Cover Sheet Railroad  Abbreviation:"," "]
["Railroad Responsible For Mechanical:"," "]
["Contractor Responsible For Mechanical:"]
["Railroad Responsible For Spotting:"," "]
["Contractor Responsible For Spotting:"]
["Staff Conducting QR Initials:"," "]
["Loading/Bi-Levels (1) Tri-Levels (2) Both (3)"," "]
["Reload Facility: (YES or NO):"]
["Mixing Center: (YES or NO)"," "]
["Number of Personnel Trained:"," "]
["Is There a Certified Inspector on Site:"," "]
["Inspector Have the Correct Tools Y/N"," "]
["Are M/L's Stenciled Properly after Insp."," "]
["Tri-Level Group C or D"," "]
["Bi-Level Group K"," "]
["Hotel Info:"," "]
["Directions:"]
["Best Time to Start Audit and why:"]
["General Notes:"]

{"sheet":"Weighted","index":2,"n_rows":50,"n_cols":9,"rows_kept":50,"cut":false,"hidden":true,"merged":[]}
[]
[]
[]
[]
[]
["Question","Weight","Possible","Wted Score",null,"Question","Weight","Possible","Wted Score"]
["MECHANICAL - Weight 22%",null,{"$f":"SUM(C9:C24)+SUM(C26:C33)","v":{"$error":"#DIV/0!"}},{"$f":"(SUM(D9:D24)+SUM(D26:D33))/(C7)","v":{"$error":"#DIV/0!"}},null,"  2. Obey all Posted Traffic Regs. /Observe Safe Driving",3,{"$f":"IF(I7=\"N/A\",\"N/A\",1*G7)","v":{"$error":"#DIV/0!"}},{"$f":"IF('Facility Cover Sheet'!G7=\"N/A\",\"N/A\",'Facility Cover Sheet'!G7*G7)","v":{"$error":"#DIV/0!"}}]
["A. MULTI-LEVEL MAINTENANCE",{"$f":"SUM(B9:B24)","v":35},{"$f":"SUM(C9:C24)","v":{"$error":"#DIV/0!"}},{"$f":"(SUM(D9:D24))/C8","v":{"$error":"#DIV/0!"}},null,"  3. One Car Length Maintained Between Vehicles",2,{"$error":"#DIV/0!"},{"$f":"IF('Facility Cover Sheet'!G8=\"N/A\",\"N/A\",'Facility Cover Sheet'!G8*G8)","v":{"$error":"#DIV/0!"}}]
["  1. Multi-Level Inspected/Repaired",2,{"$f":"IF(D9=\"N/A\",\"N/A\",1*B9)","v":{"$error":"#DIV/0!"}},{"$f":"IF('Facility Cover Sheet'!A8=\"N/A\",\"N/A\",'Facility Cover Sheet'!A8*B9)","v":{"$error":"#DIV/0!"}},null,"  4. Seat and Floor Protection Positioned",2,{"$error":"#DIV/0!"},{"$f":"IF('Facility Cover Sheet'!G9=\"N/A\",\"N/A\",'Facility Cover Sheet'!G9*G9)","v":{"$error":"#DIV/0!"}}]
["  2. Maintenance Equipment Available",1,{"$f":"IF(D10=\"N/A\",\"N/A\",1*B10)","v":1},{"$f":"IF('Facility Cover Sheet'!A9=\"N/A\",\"N/A\",'Facility Cover Sheet'!A9*B10)","v":0},null,"  6. Tires on Line",2,{"$error":"#DIV/0!"},{"$f":"IF('Facility Cover Sheet'!G10=\"N/A\",\"N/A\",'Facility Cover Sheet'!G10*G10)","v":{"$error":"#DIV/0!"}}]
["  3. Tie-Down/Chock Lubrication",1,{"$error":"#DIV/0!"},{"$f":"IF('Facility Cover Sheet'!A10=\"N/A\",\"N/A\",'Facility Cover Sheet'!A10*B11)","v":{"$error":"#DIV/0!"}},null,"  7. Bumper Interspacing 10\"",2,{"$error":"#DIV/0!"},{"$f":"IF('Facility Cover Sheet'!G11=\"N/A\",\"N/A\",'Facility Cover Sheet'!G11*G11)","v":{"$error":"#DIV/0!"}}]
["  4. Tie-Down/Chock Condition",3,{"$error":"#DIV/0!"},{"$f":"IF('Facility Cover Sheet'!A11=\"N/A\",\"N/A\",'Facility Cover Sheet'!A11*B12)","v":{"$error":"#DIV/0!"}},null,"  9. Windows and Doors Closed",3,{"$error":"#DIV/0!"},{"$f":"IF('Facility Cover Sheet'!G12=\"N/A\",\"N/A\",'Facility Cover Sheet'!G12*G12)","v":{"$error":"#DIV/0!"}}]
["  5. Hooks/Harnesses Condition",2,{"$error":"#DIV/0!"},{"$f":"IF('Facility Cover Sheet'!A12=\"N/A\",\"N/A\",'Facility Cover Sheet'!A12*B13)","v":{"$error":"#DIV/0!"}},null,"  10. No Vehicle Shuttling",1,{"$error":"#DIV/0!"},{"$f":"IF('Facility Cover Sheet'!G13=\"N/A\",\"N/A\",'Facility Cover Sheet'!G13*G13)","v":{"$error":"#DIV/0!"}}]
[null,null,null,null,null,"  11. Baying Personnel Clothing Condition",3,{"$error":"#DIV/0!"},{"$f":"IF('Facility Cover Sheet'!G15=\"N/A\",\"N/A\",'Facility Cover Sheet'!G15*G14)","v":{"$error":"#DIV/0!"}}]
["  6. Chocks/Harnesses Properly Stored",2,{"$error":"#DIV/0!"},{"$f":"IF('Facility Cover Sheet'!A13=\"N/A\",\"N/A\",'Facility Cover Sheet'!A13*B15)","v":{"$error":"#DIV/0!"}},null,"  11. Unattended Vehicles Running in Pre-Bay Load Area",3,{"$error":"#DIV/0!"},{"$f":"IF('Facility Cover Sheet'!G15=\"N/A\",\"N/A\",'Facility Cover Sheet'!G15*G15)","v":{"$error":"#DIV/0!"}}]
["  7. Bridge Plate Support Condition",3,{"$error":"#DIV/0!"},{"$f":"IF('Facility Cover Sheet'!A14=\"N/A\",\"N/A\",'Facility Cover Sheet'!A14*B16)","v":{"$error":"#DIV/0!"}},null,"C. LOADING PROCEDURES - Weight 17%",{"$f":"SUM(G17:G31)","v":42},{"$f":"SUM(H17:H31)","v":{"$error":"#DIV/0!"}},{"$f":"SUM(I17:I31)/H16","v":{"$error":"#DIV/0!"}}]
["  8. Tie-Down/Chock Track/Grate Condition",3,{"$error":"#DIV/0!"},{"$f":"IF('Facility Cover Sheet'!A15=\"N/A\",\"N/A\",'Facility Cover Sheet'!A15*B17)","v":{"$error":"#DIV/0!"}},null,"  1. Condition of Clothing and Gloves",3,{"$error":"#DIV/0!"},{"$f":"IF('Facility Cover Sheet'!G17=\"N/A\",\"N/A\",'Facility Cover Sheet'!G17*G17)","v":{"$error":"#DIV/0!"}}]
["  9. Multi-Level Door Edge Protection Condition",3,{"$error":"#DIV/0!"},{"$f":"IF('Facility Cover Sheet'!A16=\"N/A\",\"N/A\",'Facility Cover Sheet'!A16*B18)","v":{"$error":"#DIV/0!"}},null,"  2. No Cell Phones/Texting/MP3/Lounging/Smoking",2,{"$error":"#DIV/0!"},{"$f":"IF('Facility Cover Sheet'!G18=\"N/A\",\"N/A\",'Facility Cover Sheet'!G18*G18)","v":{"$error":"#DIV/0!"}}]
[" 10. Hinged Deck Condition",3,{"$error":"#DIV/0!"},{"$f":"IF('Facility Cover Sheet'!A17=\"N/A\",\"N/A\",'Facility Cover Sheet'!A17*B19)","v":{"$error":"#DIV/0!"}},null,"  3. No vehicle shuttling",1,{"$error":"#DIV/0!"},{"$f":"IF('Facility Cover Sheet'!G19=\"N/A\",\"N/A\",'Facility Cover Sheet'!G19*G19)","v":{"$error":"#DIV/0!"}}]
[" 11. Deck Clean",3,{"$error":"#DIV/0!"},{"$f":"IF('Facility Cover Sheet'!A18=\"N/A\",\"N/A\",'Facility Cover Sheet'!A18*B20)","v":{"$error":"#DIV/0!"}},null,"  4. Door Opening Careful/Drivers Seat Moved Back Fully",3,{"$error":"#DIV/0!"},{"$f":"IF('Facility Cover Sheet'!G20=\"N/A\",\"N/A\",'Facility Cover Sheet'!G20*G20)","v":{"$error":"#DIV/0!"}}]
[" 12. Side Panel Condition",2,{"$error":"#DIV/0!"},{"$f":"IF('Facility Cover Sheet'!A19=\"N/A\",\"N/A\",'Facility Cover Sheet'!A19*B21)","v":{"$error":"#DIV/0!"}},null,"  5. Ramp Area Speeds",3,{"$error":"#DIV/0!"},{"$f":"IF('Facility Cover Sheet'!G21=\"N/A\",\"N/A\",'Facility Cover Sheet'!G21*G21)","v":{"$error":"#DIV/0!"}}]
[" 13. End Door Condition",3,{"$error":"#DIV/0!"},{"$f":"IF('Facility Cover Sheet'!A20=\"N/A\",\"N/A\",'Facility Cover Sheet'!A20*B22)","v":{"$error":"#DIV/0!"}},null,"  6. Speeds Through Multi-Levels",3,{"$error":"#DIV/0!"},{"$f":"IF('Facility Cover Sheet'!G22=\"N/A\",\"N/A\",'Facility Cover Sheet'!G22*G22)","v":{"$error":"#DIV/0!"}}]
[" 14. End Door Lubrication  ",3,{"$error":"#DIV/0!"},{"$f":"IF('Facility Cover Sheet'!A21=\"N/A\",\"N/A\",'Facility Cover Sheet'!A21*B23)","v":{"$error":"#DIV/0!"}},null,"  7. Approach-Ground to Ramp & Ramp to Deck",3,{"$error":"#DIV/0!"},{"$f":"IF('Facility Cover Sheet'!G23=\"N/A\",\"N/A\",'Facility Cover Sheet'!G23*G23)","v":{"$error":"#DIV/0!"}}]
[" 15. Certified M/L Inspector at Facility",1,{"$error":"#DIV/0!"},{"$f":"IF('Facility Cover Sheet'!A22=\"N/A\",\"N/A\",'Facility Cover Sheet'!A22*B24)","v":{"$error":"#DIV/0!"}},null,"  8. Bumper Interspacing 3\"",3,{"$error":"#DIV/0!"},{"$f":"IF('Facility Cover Sheet'!G24=\"N/A\",\"N/A\",'Facility Cover Sheet'!G24*G24)","v":{"$error":"#DIV/0!"}}]
["B. END DOORS/DECKS/BRIDGE PLATES",{"$f":"SUM(B26:B33)","v":20},{"$f":"SUM(C26:C33)","v":{"$error":"#DIV/0!"}},{"$f":"(SUM(D26:D33))/C25","v":{"$error":"#DIV/0!"}},null,"  9. Roof Clearance (with Chocks) 3\"",3,{"$error":"#DIV/0!"},{"$f":"IF('Facility Cover Sheet'!G25=\"N/A\",\"N/A\",'Facility Cover Sheet'!G25*G25)","v":{"$error":"#DIV/0!"}}]
["  1. End Doors Open and Stored",3,{"$error":"#DIV/0!"},{"$f":"IF('Facility Cover Sheet'!A24=\"N/A\",\"N/A\",'Facility Cover Sheet'!A24*B26)","v":{"$error":"#DIV/0!"}},null," 10. End Door Clearance 5\"",3,{"$error":"#DIV/0!"},{"$f":"IF('Facility Cover Sheet'!G26=\"N/A\",\"N/A\",'Facility Cover Sheet'!G26*G26)","v":{"$error":"#DIV/0!"}}]
["  2. Hinged Decks Raised and Locked Prior to Loading",3,{"$error":"#DIV/0!"},{"$f":"IF('Facility Cover Sheet'!A25=\"N/A\",\"N/A\",'Facility Cover Sheet'!A25*B27)","v":{"$error":"#DIV/0!"}},null," 11. Vehicles Positioned Properly",3,{"$error":"#DIV/0!"},{"$f":"IF('Facility Cover Sheet'!G27=\"N/A\",\"N/A\",'Facility Cover Sheet'!G27*G27)","v":{"$error":"#DIV/0!"}}]
["  3. Bridge Plates Hinged at Higher Deck",3,{"$error":"#DIV/0!"},{"$f":"IF('Facility Cover Sheet'!A26=\"N/A\",\"N/A\",'Facility Cover Sheet'!A26*B28)","v":{"$error":"#DIV/0!"}},null," 12. Parking Brake Engaged",3,{"$error":"#DIV/0!"},{"$f":"IF('Facility Cover Sheet'!G28=\"N/A\",\"N/A\",'Facility Cover Sheet'!G28*G28)","v":{"$error":"#DIV/0!"}}]
["  4. Proper Bridge Plates Used at Multi-Level Junctions",3,{"$error":"#DIV/0!"},{"$f":"IF('Facility Cover Sheet'!A27=\"N/A\",\"N/A\",'Facility Cover Sheet'!A27*B29)","v":{"$error":"#DIV/0!"}},null," 13. Windows and Doors Closed",3,{"$error":"#DIV/0!"},{"$f":"IF('Facility Cover Sheet'!G29=\"N/A\",\"N/A\",'Facility Cover Sheet'!G29*G29)","v":{"$error":"#DIV/0!"}}]
["  5. Hinged Decks Lowered and Locked by Hand",2,{"$error":"#DIV/0!"},{"$f":"IF('Facility Cover Sheet'!A28=\"N/A\",\"N/A\",'Facility Cover Sheet'!A28*B30)","v":{"$error":"#DIV/0!"}},null," 14. Avoid Touching Vehicles",3,{"$error":"#DIV/0!"},{"$f":"IF('Facility Cover Sheet'!G30=\"N/A\",\"N/A\",'Facility Cover Sheet'!G30*G30)","v":{"$error":"#DIV/0!"}}]
["  6. Bridge Plates Lowered Down",1,{"$error":"#DIV/0!"},{"$f":"IF('Facility Cover Sheet'!A29=\"N/A\",\"N/A\",'Facility Cover Sheet'!A29*B31)","v":{"$error":"#DIV/0!"}},null," 15. Are Vehicles Shut Off When Unattended on M/L's",3,{"$error":"#DIV/0!"},{"$f":"IF('Facility Cover Sheet'!G31=\"N/A\",\"N/A\",'Facility Cover Sheet'!G31*G31)","v":{"$error":"#DIV/0!"}}]
["  7. Are End Doors Locked and Sealed Properly with Green Seal",2,{"$error":"#DIV/0!"},{"$f":"IF('Facility Cover Sheet'!A30=\"N/A\",\"N/A\",'Facility Cover Sheet'!A30*B32)","v":{"$error":"#DIV/0!"}},null,"D. SECUREMENT PROCEDURE - Weight 20%",{"$f":"SUM(G33:G37)","v":15},{"$f":"SUM(H33:H37)","v":{"$error":"#DIV/0!"}},{"$f":"SUM(I33:I37)/H32","v":{"$error":"#DIV/0!"}}]
["  8. Bridge Plate Condition/Meet Standards",3,{"$error":"#DIV/0!"},{"$f":"IF('Facility Cover Sheet'!A31=\"N/A\",\"N/A\",'Facility Cover Sheet'!A31*B33)","v":{"$error":"#DIV/0!"}},null,"  1. Is Securement Post Loading Inspection Performed",3,{"$error":"#DIV/0!"},{"$f":"IF('Facility Cover Sheet'!G33=\"N/A\",\"N/A\",'Facility Cover Sheet'!G33*G33)","v":{"$error":"#DIV/0!"}}]
["TRANSPORTATION - Weight 17%",{"$f":"(B35)","v":12},{"$f":"C35","v":{"$error":"#DIV/0!"}},{"$f":"D35","v":{"$error":"#DIV/0!"}},null,"  2. Devices/Chocks Locked and Positioned Properly",3,{"$error":"#DIV/0!"},{"$f":"IF('Facility Cover Sheet'!G34=\"N/A\",\"N/A\",'Facility Cover Sheet'!G34*G34)","v":{"$error":"#DIV/0!"}}]
["A. MULTI-LEVEL PLACEMENT",{"$f":"SUM(B36:B38,B39)","v":12},{"$f":"SUM(C36:C38,C39)","v":{"$error":"#DIV/0!"}},{"$f":"(SUM(D36:D38,D39))/C35","v":{"$error":"#DIV/0!"}},null,"  3. Harness Applied and Tensioned Properly",3,{"$error":"#DIV/0!"},{"$f":"IF('Facility Cover Sheet'!G35=\"N/A\",\"N/A\",'Facility Cover Sheet'!G35*G35)","v":{"$error":"#DIV/0!"}}]
["  1. Deck Heights Equal",3,{"$f":"IF(D36=\"N/A\",\"N/A\",1*B36)","v":{"$error":"#DIV/0!"}},{"$f":"IF('Facility Cover Sheet'!A34=\"N/A\",\"N/A\",'Facility Cover Sheet'!A34*B36)","v":{"$error":"#DIV/0!"}},null,"  4. Chain/Harness Clearance 1\"",3,{"$error":"#DIV/0!"},{"$f":"IF('Facility Cover Sheet'!G36=\"N/A\",\"N/A\",'Facility Cover Sheet'!G36*G36)","v":{"$error":"#DIV/0!"}}]
["  2. Couplers in Proper Position",3,{"$f":"IF(D37=\"N/A\",\"N/A\",1*B37)","v":{"$error":"#DIV/0!"}},{"$f":"IF('Facility Cover Sheet'!A35=\"N/A\",\"N/A\",'Facility Cover Sheet'!A35*B37)","v":{"$error":"#DIV/0!"}},null,"  5. Are Spare Chock Systems Stored Properly",3,{"$error":"#DIV/0!"},{"$f":"IF('Facility Cover Sheet'!G37=\"N/A\",\"N/A\",'Facility Cover Sheet'!G37*G37)","v":{"$error":"#DIV/0!"}}]
["  3. Proper Hand Brakes Set",3,{"$f":"IF(D38=\"N/A\",\"N/A\",1*B38)","v":{"$error":"#DIV/0!"}},{"$f":"IF('Facility Cover Sheet'!A36=\"N/A\",\"N/A\",'Facility Cover Sheet'!A36*B38)","v":{"$error":"#DIV/0!"}},null," FACILITY PROCEDURES/CONDITIONS - Weight 7%",{"$f":"SUM(G39:G48)","v":18},{"$f":"SUM(H39:H48)","v":{"$error":"#DIV/0!"}},{"$f":"SUM(I39:I48)/H38","v":{"$error":"#DIV/0!"}}]
["  4. Is Track Protection Used",3,{"$f":"IF(D39=\"N/A\",\"N/A\",1*B39)","v":{"$error":"#DIV/0!"}},{"$f":"IF('Facility Cover Sheet'!A37=\"N/A\",\"N/A\",'Facility Cover Sheet'!A37*B39)","v":{"$error":"#DIV/0!"}},null,"  1. Vehicle Security Inspection-Upon Exit",1,{"$error":"#DIV/0!"},{"$f":"IF('Facility Cover Sheet'!G39=\"N/A\",\"N/A\",'Facility Cover Sheet'!G39*G39)","v":{"$error":"#DIV/0!"}}]
["MANUFACTURE/CONTRACTOR",{"$f":"SUM(B42:B48,B50,G7:G15,G17:G31,G33:G37)","v":98},{"$f":"SUM(C42:C48,C50,H7:H15,H17:H31,H33:H37)","v":{"$error":"#DIV/0!"}},{"$f":"SUM((D42:D48,D50,I7:I15,I17:I31,I33:I37))/C40","v":{"$error":"#DIV/0!"}},null,"  2. Gates Closed and Locked When Not in Use",1,{"$error":"#DIV/0!"},{"$f":"IF('Facility Cover Sheet'!G40=\"N/A\",\"N/A\",'Facility Cover Sheet'!G40*G40)","v":{"$error":"#DIV/0!"}}]
["A. END DOORS/DECKS/BRIDGE PLATES - Weight 8%",{"$f":"SUM(B42:B48)","v":17},{"$f":"SUM(C42:C48)","v":{"$error":"#DIV/0!"}},{"$f":"(SUM(D42:D48))/C41","v":{"$error":"#DIV/0!"}},null,"  3. Pavement Condition",2,{"$error":"#DIV/0!"},{"$f":"IF('Facility Cover Sheet'!G41=\"N/A\",\"N/A\",'Facility Cover Sheet'!G41*G41)","v":{"$error":"#DIV/0!"}}]
["  1. End Doors Open and Stored",3,{"$f":"IF(D42=\"N/A\",\"N/A\",1*B42)","v":{"$error":"#DIV/0!"}},{"$f":"IF('Facility Cover Sheet'!A40=\"N/A\",\"N/A\",'Facility Cover Sheet'!A40*B42)","v":{"$error":"#DIV/0!"}},null,"  4. Storage Area Clean",2,{"$error":"#DIV/0!"},{"$f":"IF('Facility Cover Sheet'!G42=\"N/A\",\"N/A\",'Facility Cover Sheet'!G42*G42)","v":{"$error":"#DIV/0!"}}]
["  2. Hinged Decks Raised and Locked Prior to Loading",3,{"$error":"#DIV/0!"},{"$f":"IF('Facility Cover Sheet'!A41=\"N/A\",\"N/A\",'Facility Cover Sheet'!A41*B43)","v":{"$error":"#DIV/0!"}},null,"  5. Loading Ramp Condition",3,{"$error":"#DIV/0!"},{"$f":"IF('Facility Cover Sheet'!G43=\"N/A\",\"N/A\",'Facility Cover Sheet'!G43*G43)","v":{"$error":"#DIV/0!"}}]
["  3. Bridge Plates Hinged at Higher Deck",3,{"$error":"#DIV/0!"},{"$f":"IF('Facility Cover Sheet'!A42=\"N/A\",\"N/A\",'Facility Cover Sheet'!A42*B44)","v":{"$error":"#DIV/0!"}},null,"  6. Bridge Plate Condition/Meet Standards",3,{"$error":"#DIV/0!"},{"$f":"IF('Facility Cover Sheet'!G44=\"N/A\",\"N/A\",'Facility Cover Sheet'!G44*G44)","v":{"$error":"#DIV/0!"}}]
["  4. Proper Bridge Plates Used at Multi-Level Junctions",3,{"$error":"#DIV/0!"},{"$f":"IF('Facility Cover Sheet'!A43=\"N/A\",\"N/A\",'Facility Cover Sheet'!A43*B45)","v":{"$error":"#DIV/0!"}},null,"  7. Securement Tools Covered",3,{"$error":"#DIV/0!"},{"$f":"IF('Facility Cover Sheet'!G45=\"N/A\",\"N/A\",'Facility Cover Sheet'!G45*G45)","v":{"$error":"#DIV/0!"}}]
["  5. Hinged Decks Lowered and Locked by Hand",2,{"$error":"#DIV/0!"},{"$f":"IF('Facility Cover Sheet'!A44=\"N/A\",\"N/A\",'Facility Cover Sheet'!A44*B46)","v":{"$error":"#DIV/0!"}},null,"  8. Correct Key Handling",1,{"$error":"#DIV/0!"},{"$f":"IF('Facility Cover Sheet'!G46=\"N/A\",\"N/A\",'Facility Cover Sheet'!G46*G46)","v":{"$error":"#DIV/0!"}}]
["  6. Bridge Plates Lowered Down",1,{"$error":"#DIV/0!"},{"$f":"IF('Facility Cover Sheet'!A45=\"N/A\",\"N/A\",'Facility Cover Sheet'!A45*B47)","v":{"$error":"#DIV/0!"}},null,"  9. Are Green Seals Used at This Facility",1,{"$error":"#DIV/0!"},{"$f":"IF('Facility Cover Sheet'!G47=\"N/A\",\"N/A\",'Facility Cover Sheet'!G47*G47)","v":{"$error":"#DIV/0!"}}]
["  7. Are End Doors Locked and Sealed Properly with Green Seal",2,{"$error":"#DIV/0!"},{"$f":"IF('Facility Cover Sheet'!A46=\"N/A\",\"N/A\",'Facility Cover Sheet'!A46*B48)","v":{"$error":"#DIV/0!"}},null,"  10. Is AAR/TTCI Website used for Training Purposes",1,{"$error":"#DIV/0!"},{"$f":"IF('Facility Cover Sheet'!G48=\"N/A\",\"N/A\",'Facility Cover Sheet'!G48*G48)","v":{"$error":"#DIV/0!"}}]
["B. PRELOADING BAY AREA - Weight 9%",{"$f":"SUM(B50,G7:G15)","v":24},{"$f":"SUM(C50,H7:H15)","v":{"$error":"#DIV/0!"}},{"$f":"SUM(D50,I7:I15)/C49","v":{"$error":"#DIV/0!"}}]
["  1. Storage Area Speeds",3,{"$error":"#DIV/0!"},{"$f":"IF('Facility Cover Sheet'!A48=\"N/A\",\"N/A\",'Facility Cover Sheet'!A48*B50)","v":{"$error":"#DIV/0!"}}]

{"sheet":"Facility Cover Sheet","index":3,"n_rows":48,"n_cols":11,"rows_kept":48,"cut":false,"hidden":false,"merged":[[3,2,3,5],[0,0,0,10],[2,0,2,1],[2,2,2,5],[3,0,3,1],[1,0,1,2],[1,4,1,5],[2,6,3,7],[2,8,3,10],[4,6,4,7],[5,6,5,7],[5,8,5,10],[37,7,37,9],[48,6,49,7],[48,0,48,5],[5,1,5,5],[31,1,31,5],[37,1,37,5],[4,0,4,1],[4,2,4,5]]}
["AAR ORIGIN QUALITY REVIEW"]
["OVERALL SCORE",null,null,null,{"$f":"(Weighted!D7*0.22)+(Weighted!D34*0.17)+(Weighted!D41*0.08)+(Weighted!D49*0.09)+(Weighted!I16*0.17)+(Weighted!I32*0.2)+(Weighted!I38*0.07)","v":{"$error":"#DIV/0!"}}]
["Location:",null,{"$f":"(#REF!)","v":{"$error":"#REF!"}},null,null,null,"Contractor:",null,{"$f":"('Facility Info'!B8)","v":0}]
["Railroad:",null,{"$f":"(#REF!)","v":{"$error":"#REF!"}}]
["Manufactuer:",null,{"$f":"('Facility Info'!B7)","v":0},null,null,null,"Ramp Code:",null," "," "]
[{"$f":"(Weighted!D7)","v":{"$error":"#DIV/0!"}},"MECHANICAL- Weight 22%",null,null,null,null,"Date:",null,{"$f":"('Facility Info'!B4)","v":"00:00:00"}]
[{"$f":"(Weighted!D8)","v":{"$error":"#DIV/0!"}},"A. MULTI-LEVEL MAINTENANCE",null,null,null,null,{"$f":"TRUNC(('Tally Sheet'!DJ34),4)","v":{"$error":"#DIV/0!"}},"  2. Obey all Posted Traffic Regs. /Safe Driving",null,null,"A"]
[{"$f":"TRUNC(('Tally Sheet'!A17),4)","v":{"$error":"#DIV/0!"}},"  1. Multi-Level Inspected/Repaired",null,null,null,"B",{"$f":"TRUNC(('Tally Sheet'!DP34),4)","v":{"$error":"#DIV/0!"}},"  3. One Car Length Maintained Between Vehicles",null,null,"B"]
[{"$f":"TRUNC(('Tally Sheet'!G17),4)","v":0},"  2. Maintenance Equipment Available",null,null,null,"C",{"$f":"TRUNC(('Tally Sheet'!DW34),4)","v":{"$error":"#DIV/0!"}},"  4. Seat and Floor Protection Positioned",null,null,"B"]
[{"$f":"TRUNC(('Tally Sheet'!N17),4)","v":{"$error":"#DIV/0!"}},"  3. Tie-Down/Chock Lubrication",null,null,null,"C",{"$f":"TRUNC(('Tally Sheet'!A51),4)","v":{"$error":"#DIV/0!"}},"  5. Tires on Line",null,null,"B"]
[{"$f":"TRUNC(('Tally Sheet'!T17),4)","v":{"$error":"#DIV/0!"}},"  4. Tie-Down/Chock Condition",null,null,null,"A",{"$f":"TRUNC(('Tally Sheet'!G51),4)","v":{"$error":"#DIV/0!"}},"  6. Bumper Interspacing 10\"",null,null,"B"]
[{"$f":"TRUNC(('Tally Sheet'!AA17),4)","v":{"$error":"#DIV/0!"}},"  5. Hooks/Harnesses Condition",null,null,null,"B",{"$f":"TRUNC(('Tally Sheet'!N51),4)","v":{"$error":"#DIV/0!"}},"  7. Windows and Doors Closed",null,null,"A"]
[{"$f":"TRUNC(('Tally Sheet'!AH17),4)","v":{"$error":"#DIV/0!"}},"  6. Chocks/Harnesses Properly Stored",null,null,null,"B",{"$f":"TRUNC(('Tally Sheet'!T51),4)","v":{"$error":"#DIV/0!"}},"  8. No Vehicle Shuttling",null,null,"C"]
[{"$f":"TRUNC(('Tally Sheet'!AP17),4)","v":{"$error":"#DIV/0!"}},"  7. Bridge Plate Support Condition",null,null,null,"A",{"$f":"TRUNC(('Tally Sheet'!AA51),4)","v":{"$error":"#DIV/0!"}},"  9. Baying Personnel Clothing Condition",null,null,"A"]
[{"$f":"TRUNC(('Tally Sheet'!AW17),4)","v":{"$error":"#DIV/0!"}},"  8. Tie-Down/Chock Track/Grate Condition",null,null,null,"A",{"$f":"TRUNC(('Tally Sheet'!AH51),4)","v":{"$error":"#DIV/0!"}},"  10. Unattended Vehicles Running in Pre-Load Bay Area",null,null,"A"]
[{"$f":"TRUNC(('Tally Sheet'!BE17),4)","v":{"$error":"#DIV/0!"}},"  9. Multi-Level Door Edge Protection Condition",null,null,null,"A",{"$f":"Weighted!I16","v":{"$error":"#DIV/0!"}},"C. LOADING PROCEDURES - Weight 17%"]
[{"$f":"TRUNC(('Tally Sheet'!BL17),4)","v":{"$error":"#DIV/0!"}}," 10. Hinged Deck Condition",null,null,null,"A",{"$f":"TRUNC(('Tally Sheet'!AP51),4)","v":{"$error":"#DIV/0!"}},"  1. Condition of Clothing and Gloves",null,null,"A"]
[{"$f":"TRUNC(('Tally Sheet'!BT17),4)","v":{"$error":"#DIV/0!"}}," 11. Deck Clean",null,null,null,"A",{"$f":"TRUNC(('Tally Sheet'!AW51),4)","v":{"$error":"#DIV/0!"}},"  2. No Cell Phones/Texting/MP3/Lounging/Smoking",null,null,"B"]
[{"$f":"TRUNC(('Tally Sheet'!CA17),4)","v":{"$error":"#DIV/0!"}}," 12. Side Panel Condition",null,null,null,"B",{"$f":"TRUNC(('Tally Sheet'!BE51),4)","v":{"$error":"#DIV/0!"}},"  3. No vehicle shuttling",null,null,"C"]
[{"$f":"TRUNC(('Tally Sheet'!CI17),4)","v":{"$error":"#DIV/0!"}}," 13. End Door Condition",null,null,null,"A",{"$f":"TRUNC(('Tally Sheet'!BL51),4)","v":{"$error":"#DIV/0!"}},"  4. Door Opening Careful/Drivers Seat Moved Back Fully",null,null,"A"]
[{"$f":"TRUNC(('Tally Sheet'!CO17),4)","v":{"$error":"#DIV/0!"}}," 14. End Door Lubrication  ",null,null,null,"A",{"$f":"TRUNC(('Tally Sheet'!BT51),4)","v":{"$error":"#DIV/0!"}},"  5. Ramp Area Speeds",null,null,"A"]
[{"$f":"TRUNC(('Tally Sheet'!CV17),4)","v":{"$error":"#DIV/0!"}}," 15. Certified M/L Inspector at Facility",null,null,null,"C",{"$f":"TRUNC(('Tally Sheet'!CA51),4)","v":{"$error":"#DIV/0!"}},"  6. Speeds Through Multi-Levels",null,null,"A"]
[{"$f":"(Weighted!D25)","v":{"$error":"#DIV/0!"}},"B. END DOORS/DECKS/BRIDGE PLATES",null,null,null,null,{"$f":"TRUNC(('Tally Sheet'!CI51),4)","v":{"$error":"#DIV/0!"}},"  7. Approach-Ground to Ramp & Ramp to Deck",null,null,"A"]
[{"$f":"TRUNC(('Tally Sheet'!DC17),4)","v":{"$error":"#DIV/0!"}},"  1. End Doors Open and Stored",null,null,null,"A",{"$f":"TRUNC(('Tally Sheet'!CO51),4)","v":{"$error":"#DIV/0!"}},"  8. Bumper Interspacing 3\"",null,null,"A"]
[{"$f":"TRUNC(('Tally Sheet'!DJ17),4)","v":{"$error":"#DIV/0!"}},"  2. Hinged Decks Raised and Locked Prior to Loading",null,null,null,"A",{"$f":"TRUNC(('Tally Sheet'!CV51),4)","v":{"$error":"#DIV/0!"}},"  9. Roof Clearance (with Chocks) 3\"",null,null,"A"]
[{"$f":"TRUNC(('Tally Sheet'!DP17),4)","v":{"$error":"#DIV/0!"}},"  3. Bridge Plates Hinged at Higher Deck",null,null,null,"A",{"$f":"TRUNC(('Tally Sheet'!DC51),4)","v":{"$error":"#DIV/0!"}}," 10. End Door Clearance 5\"",null,null,"A"]
[{"$f":"TRUNC(('Tally Sheet'!DW17),4)","v":{"$error":"#DIV/0!"}},"  4. Proper Bridge Plates Used at Multi-Level Junctions",null,null,null,"A",{"$f":"TRUNC(('Tally Sheet'!DJ51),4)","v":{"$error":"#DIV/0!"}}," 11. Vehicles Positioned Properly",null,null,"A"]
[{"$f":"TRUNC(('Tally Sheet'!A34),4)","v":{"$error":"#DIV/0!"}},"  5. Hinged Decks Lowered and Locked by Hand",null,null,null,"B",{"$f":"TRUNC(('Tally Sheet'!DP51),4)","v":{"$error":"#DIV/0!"}}," 12. Parking Brake Engaged",null,null,"A"]
[{"$f":"TRUNC(('Tally Sheet'!G34),4)","v":{"$error":"#DIV/0!"}},"  6. Bridge Plates Lowered Down",null,null,null,"C",{"$f":"TRUNC(('Tally Sheet'!DW51),4)","v":{"$error":"#DIV/0!"}}," 13. Windows and Doors Closed",null,null,"A"]
[{"$f":"TRUNC(('Tally Sheet'!N34),4)","v":{"$error":"#DIV/0!"}},"  7. Are End Doors Locked and Sealed Properly with Green Seal",null,null,null,"B",{"$f":"TRUNC(('Tally Sheet'!A68),4)","v":{"$error":"#DIV/0!"}}," 14. Avoid Touching Vehicles",null,null,"A"]
[{"$f":"TRUNC(('Tally Sheet'!T34),4)","v":{"$error":"#DIV/0!"}},"  8. Bridge Plate Condition/Meet Standards",null,null,null,"A",{"$f":"TRUNC(('Tally Sheet'!G68),4)","v":{"$error":"#DIV/0!"}}," 15. Are Vehicles Shut Off When Unattended on M/L's",null,null,"A"]
[{"$f":"(Weighted!D34)","v":{"$error":"#DIV/0!"}},"       TRANSPORTATION - Weight 17%",null,null,null,null,{"$f":"(Weighted!I32)","v":{"$error":"#DIV/0!"}},"D. SECUREMENT PROCEDURE - Weight 20%",null,null,"A"]
[{"$f":"(Weighted!D35)","v":{"$error":"#DIV/0!"}},"A. MULTI-LEVEL PLACEMENT",null,null,null,null,{"$f":"TRUNC(('Tally Sheet'!N68),4)","v":{"$error":"#DIV/0!"}},"  1. Is Securement Post Loading Inspection Performed",null,null,"A"]
[{"$f":"TRUNC(('Tally Sheet'!AA34),4)","v":{"$error":"#DIV/0!"}},"  1. Deck Heights Equal",null,null,null,"A",{"$f":"TRUNC(('Tally Sheet'!T68),4)","v":{"$error":"#DIV/0!"}},"  2. Devices/Chocks Locked and Positioned Properly"]
[{"$f":"TRUNC(('Tally Sheet'!AH34),4)","v":{"$error":"#DIV/0!"}},"  2. Couplers in Proper Position",null,null,null,"A",{"$f":"TRUNC(('Tally Sheet'!AA68),4)","v":{"$error":"#DIV/0!"}},"  3. Harness Applied and Tensioned Properly",null,null,"A"]
[{"$f":"TRUNC(('Tally Sheet'!AP34),4)","v":{"$error":"#DIV/0!"}},"  3. Proper Hand Brakes Set",null,null,null,"A",{"$f":"TRUNC(('Tally Sheet'!AH68),4)","v":{"$error":"#DIV/0!"}},"  4. Chain/Harness Clearance 1\"",null,null,"A"]
[{"$f":"TRUNC(('Tally Sheet'!AW34),4)","v":{"$error":"#DIV/0!"}},"  4. Is Track Protection Used",null,null,null,"A",{"$f":"TRUNC(('Tally Sheet'!AP68),4)","v":{"$error":"#DIV/0!"}},"  5. Are Spare Chock Systems Stored Properly",null,null,"A"]
[{"$f":"(Weighted!D40)","v":{"$error":"#DIV/0!"}},"MANUFACTURE/CONTRACTOR - Weight 54%",null,null,null,null,{"$f":"Weighted!I38","v":{"$error":"#DIV/0!"}}," FACILITY PROCED/COND. - Weight 7%",null,null,"A"]
[{"$f":"(Weighted!D41)","v":{"$error":"#DIV/0!"}},"A. END DOORS/DECKS/BRIDGE PLATES - Weight 8%",null,null,null,null,{"$f":"TRUNC(('Tally Sheet'!AW68),4)","v":{"$error":"#DIV/0!"}},"  1. Vehicle Security Insp-Upon Exit ",null,null,"C"]
[{"$f":"TRUNC(('Tally Sheet'!BE34),4)","v":{"$error":"#DIV/0!"}},"  1. End Doors Open and Stored",null,null,null,"A",{"$f":"TRUNC(('Tally Sheet'!BE68),4)","v":{"$error":"#DIV/0!"}},"  2. Gates Closed and Locked When Not in Use",null,null,"C"]
[{"$f":"TRUNC(('Tally Sheet'!BL34),4)","v":{"$error":"#DIV/0!"}},"  2. Hinged Decks Raised and Locked Prior to Loading",null,null,null,"A",{"$f":"TRUNC(('Tally Sheet'!BL68),4)","v":{"$error":"#DIV/0!"}},"  3. Pavement Condition",null,null,"B"]
[{"$f":"TRUNC(('Tally Sheet'!BT34),4)","v":{"$error":"#DIV/0!"}},"  3. Bridge Plates Hinged at Higher Deck",null,null,null,"A",{"$f":"TRUNC(('Tally Sheet'!BT68),4)","v":{"$error":"#DIV/0!"}},"  4. Storage Area Clean",null,null,"B"]
[{"$f":"TRUNC(('Tally Sheet'!CA34),4)","v":{"$error":"#DIV/0!"}},"  4. Proper Bridge Plates Used at Multi-Level Junctions",null,null,null,"A",{"$f":"TRUNC(('Tally Sheet'!CA68),4)","v":{"$error":"#DIV/0!"}},"  5. Loading Ramp Condition",null,null,"A"]
[{"$f":"TRUNC(('Tally Sheet'!CI34),4)","v":{"$error":"#DIV/0!"}},"  5. Hinged Decks Lowered and Locked by Hand",null,null,null,"B",{"$f":"TRUNC(('Tally Sheet'!CI68),4)","v":{"$error":"#DIV/0!"}},"  6. Bridge Plate Condition/Meet Standards",null,null,"A"]
[{"$f":"TRUNC(('Tally Sheet'!CO34),4)","v":{"$error":"#DIV/0!"}},"  6. Bridge Plates Lowered Down",null,null,null,"C",{"$f":"TRUNC(('Tally Sheet'!CO68),4)","v":{"$error":"#DIV/0!"}},"  7. Tools Covered",null,null,"A"]
[{"$f":"TRUNC(('Tally Sheet'!CV34),4)","v":{"$error":"#DIV/0!"}},"  7. Are End Doors Locked and Sealed Properly with Green Seal",null,null,null,"B",{"$f":"TRUNC(('Tally Sheet'!CV68),4)","v":{"$error":"#DIV/0!"}},"  8. Correct Key Handling",null,null,"C"]
[{"$f":"Weighted!D49","v":{"$error":"#DIV/0!"}},"B. PRELOADING BAY AREA - Weight 9%",null,null,null,null,{"$f":"TRUNC(('Tally Sheet'!DC68),4)","v":{"$error":"#DIV/0!"}},"  9. Are Green Seals Used at This Facility",null,null,"C"]
[{"$f":"TRUNC(('Tally Sheet'!DC34),4)","v":{"$error":"#DIV/0!"}},"  1. Storage Area Speeds",null,null,null,"A",{"$f":"TRUNC(('Tally Sheet'!DJ68),4)","v":{"$error":"#DIV/0!"}},"  10. Is AAR/TTCI Website used for Training Purposes",null,null,"C"]

{"sheet":"Tally Sheet","index":4,"n_rows":308,"n_cols":130,"rows_kept":308,"cut":false,"hidden":false,"merged":[[63,96,63,97],[24,52,24,53],[25,52,25,53],[26,52,26,53],[27,52,27,53],[63,90,63,91],[59,75,59,76],[58,75,58,76],[56,52,56,53],[61,90,61,91],[52,90,52,91],[53,90,53,91],[54,90,54,91],[57,90,57,91],[58,90,58,91],[59,90,59,91],[61,117,61,118],[52,96,52,97],[53,96,53,97],[54,96,54,97],[55,96,55,97],[56,96,56,97],[57,96,57,97],[58,96,58,97],[59,96,59,97],[60,96,60,97],[61,96,61,97],[52,117,52,118],[53,117,53,118],[54,117,54,118],[55,117,55,118],[60,117,60,118],[60,90,60,91],[24,37,24,38],[41,103,41,104],[42,103,42,104],[43,103,43,104],[44,103,44,104],[36,103,36,104],[37,103,37,104],[38,103,38,104],[39,103,39,104],[40,103,40,104],[17,106,17,111],[55,37,55,38],[56,37,56,38],[39,37,39,38],[40,37,40,38],[25,60,25,61],[26,60,26,61],[27,60,27,61],[35,103,35,104],[55,45,55,46],[56,45,56,46],[22,110,22,111],[55,90,55,91],[56,90,56,91],[55,52,55,53],[23,60,23,61],[39,30,39,31],[40,30,40,31],[5,103,5,104],[6,103,6,104],[22,52,22,53],[23,52,23,53],[22,45,22,46],[23,45,23,46],[17,99,17,104],[22,103,22,104],[22,60,22,61],[17,92,17,97],[23,30,23,31],[24,30,24,31],[24,60,24,61],[23,37,23,38]]}
["A1 MECH  MULTI-LEVEL INSPT/REPAIR",null,null,null,null,null,"A2 MECH  MAINT MATERIALS AVILABLE",null,null,null,null,null,null,"A3 MECH  TIE-DOWN/CHOCK LUBE",null,null,null,null,null,"A4 MECH  TIE-DOWN/CHOCK COND",null,null,null,null,null,null,"A5 MECH  HOOKS/HARNESSES CONDITION",null,null,null,null,null,null,"A6 MECH  CHOCKS/HARNESSES PROPERLY STORED",null,null,null,null,null,null,null,"A7 MECH  BRIDGE PLATE SUPPORT CONDITION",null,null,null,null,null,null,"A8 MECH  TIE-DOWN/CHOCK TRACK/GRATE COND.",null,null,null,null,null,null,null,"A9 MECH  DOOR EDGE CONDITION",null,null,null,null,null,null,"A10 MECH  HINGED DECK CONDITION",null,null,null,null,null,null,null,"A11 MECH  DECK CLEAN",null,null,null,null,null,null,"A12 MECH  SIDE PANEL CONDITION",null,null,null,null,null,null,null,"A13 MECH  END DOOR CONDITION",null,null,null,null,null,"A14 MECH  END DOOR LUBRICATION",null,null,null,null,null,null," A15 MECH CERTIFIED INSPECTOR AT FACILITY",null,null,null,null,null,null," B1 END DOORS OPEN AND STORED",null,null,null,null,null,null," B2 HINGED DECKS RAISED AND LOCKED PRIOR TO LOADING",null,null,null,null,null," B3 BRIDGE PLATES HINGED AT HIGHER DECK",null,null,null,null,null,null,"B4 PROPER B/PLATES USED AT M/L JUNCTIONS"]
[null,null,{"$f":"ROUND((A2/B2),4)","v":{"$error":"#DIV/0!"}},{"$f":"(#REF!)","v":{"$error":"#REF!"}},null,null,{"$f":"'Parts List'!L3","v":0},{"$f":"'Parts List'!M3","v":11},{"$f":"ROUND((G2/H2),4)","v":0},1,null,null,null,null,null,{"$f":"ROUND((N2/O2),4)","v":{"$error":"#DIV/0!"}},{"$f":"(#REF!)","v":{"$error":"#REF!"}},null,null,null,null,{"$f":"ROUND((T2/U2),4)","v":{"$error":"#DIV/0!"}},{"$f":"(#REF!)","v":{"$error":"#REF!"}},null,null,null,null,null,{"$f":"ROUND((AA2/AB2),4)","v":{"$error":"#DIV/0!"}},{"$f":"(#REF!)","v":{"$error":"#REF!"}},null,null,null,null,null,{"$f":"ROUND((AH2/AI2),4)","v":{"$error":"#DIV/0!"}},{"$f":"(#REF!)","v":{"$error":"#REF!"}},null,null,null,null,null,null,{"$f":"ROUND((AP2/AQ2),4)","v":{"$error":"#DIV/0!"}},{"$f":"(#REF!)","v":{"$error":"#REF!"}},null,null,null,null,null,{"$f":"ROUND((AW2/AX2),4)","v":{"$error":"#DIV/0!"}},{"$f":"(#REF!)","v":{"$error":"#REF!"}},null,null,null,null,null,null,{"$f":"ROUND((BE2/BF2),4)","v":{"$error":"#DIV/0!"}},{"$f":"(#REF!)","v":{"$error":"#REF!"}},null,null,null,null,null,{"$f":"ROUND((BL2/BM2),4)","v":{"$error":"#DIV/0!"}},{"$f":"(#REF!)","v":{"$error":"#REF!"}},null,null,null,null,null,null,{"$f":"ROUND((BT2/BU2),4)","v":{"$error":"#DIV/0!"}},{"$f":"(#REF!)","v":{"$error":"#REF!"}},null,null,null,null,null,{"$f":"ROUND((CA2/CB2),4)","v":{"$error":"#DIV/0!"}},{"$f":"(#REF!)","v":{"$error":"#REF!"}},null,null,null,null,null,null,{"$f":"ROUND((CI2/CJ2),4)","v":{"$error":"#DIV/0!"}},{"$f":"(#REF!)","v":{"$error":"#REF!"}},null,null,null,null,{"$f":"ROUND((CO2/CP2),4)","v":{"$error":"#DIV/0!"}},{"$f":"(#REF!)","v":{"$error":"#REF!"}},null,null,null,null,null,{"$f":"ROUND((CV2/CW2),4)","v":{"$error":"#DIV/0!"}},{"$f":"(#REF!)","v":{"$error":"#REF!"}},null,null,null,null,null,{"$f":"ROUND((DC2/DD2),4)","v":{"$error":"#DIV/0!"}},{"$f":"(#REF!)","v":{"$error":"#REF!"}},null,null,null,null,null,{"$f":"ROUND((DJ2/DK2),4)","v":{"$error":"#DIV/0!"}},{"$f":"(#REF!)","v":{"$error":"#REF!"}},null,null,null,null,{"$f":"ROUND((DP2/DQ2),4)","v":{"$error":"#DIV/0!"}},{"$f":"(#REF!)","v":{"$error":"#REF!"}},null,null,null,null,null,{"$f":"ROUND((DW2/DX2),4)","v":{"$error":"#DIV/0!"}},{"$f":"(#REF!)","v":{"$error":"#REF!"}}]
[null,null,{"$error":"#DIV/0!"},{"$f":"(#REF!)","v":{"$error":"#REF!"}},null,null,null,null,2,2,null,null,null,null,null,{"$error":"#DIV/0!"},{"$f":"(#REF!)","v":{"$error":"#REF!"}},null,null,null,null,{"$error":"#DIV/0!"},{"$f":"(#REF!)","v":{"$error":"#REF!"}},null,null,null,null,null,{"$error":"#DIV/0!"},{"$f":"(#REF!)","v":{"$error":"#REF!"}},null,null,null,null,null,{"$error":"#DIV/0!"},{"$f":"(#REF!)","v":{"$error":"#REF!"}},null,null,null,null,null,null,{"$error":"#DIV/0!"},{"$f":"(#REF!)","v":{"$error":"#REF!"}},null,null,null,null,null,{"$error":"#DIV/0!"},{"$f":"(#REF!)","v":{"$error":"#REF!"}},null,null,null,null,null,null,{"$error":"#DIV/0!"},{"$f":"(#REF!)","v":{"$error":"#REF!"}},null,null,null,null,null,{"$error":"#DIV/0!"},{"$f":"(#REF!)","v":{"$error":"#REF!"}},null,null,null,null,null,null,{"$error":"#DIV/0!"},{"$f":"(#REF!)","v":{"$error":"#REF!"}},null,null,null,null,null,{"$error":"#DIV/0!"},{"$f":"(#REF!)","v":{"$error":"#REF!"}},null,null,null,null,null,null,{"$error":"#DIV/0!"},{"$f":"(#REF!)","v":{"$error":"#REF!"}},null,null,null,null,{"$error":"#DIV/0!"},{"$f":"(#REF!)","v":{"$error":"#REF!"}},null,null,null,null,null,{"$error":"#DIV/0!"},{"$f":"(#REF!)","v":{"$error":"#REF!"}},null,null,null,null,null,{"$error":"#DIV/0!"},{"$f":"(#REF!)","v":{"$error":"#REF!"}},null,null,null,null,null,{"$error":"#DIV/0!"},{"$f":"(#REF!)","v":{"$error":"#REF!"}},null,null,null,null,{"$error":"#DIV/0!"},{"$f":"(#REF!)","v":{"$error":"#REF!"}},null,null,null,null,null,{"$error":"#DIV/0!"},{"$f":"(#REF!)","v":{"$error":"#REF!"}}]
[null,null,{"$error":"#DIV/0!"},{"$f":"(#REF!)","v":{"$error":"#REF!"}},null,null,null,null,3,3,null,null,null,null,null,{"$error":"#DIV/0!"},{"$f":"(#REF!)","v":{"$error":"#REF!"}},null,null,null,null,{"$error":"#DIV/0!"},{"$f":"(#REF!)","v":{"$error":"#REF!"}},null,null,null,null,null,{"$error":"#DIV/0!"},{"$f":"(#REF!)","v":{"$error":"#REF!"}},null,null,null,null,null,{"$error":"#DIV/0!"},{"$f":"(#REF!)","v":{"$error":"#REF!"}},null,null,null,null,null,null,{"$error":"#DIV/0!"},{"$f":"(#REF!)","v":{"$error":"#REF!"}},null,null,null,null,null,{"$error":"#DIV/0!"},{"$f":"(#REF!)","v":{"$error":"#REF!"}},null,null,null,null,null,null,{"$error":"#DIV/0!"},{"$f":"(#REF!)","v":{"$error":"#REF!"}},null,null,null,null,null,{"$error":"#DIV/0!"},{"$f":"(#REF!)","v":{"$error":"#REF!"}},null,null,null,null,null,null,{"$error":"#DIV/0!"},{"$f":"(#REF!)","v":{"$error":"#REF!"}},null,null,null,null,null,{"$error":"#DIV/0!"},{"$f":"(#REF!)","v":{"$error":"#REF!"}},null,null,null,null,null,null,{"$error":"#DIV/0!"},{"$f":"(#REF!)","v":{"$error":"#REF!"}},null,null,null,null,{"$error":"#DIV/0!"},{"$f":"(#REF!)","v":{"$error":"#REF!"}},null,null,null,null,null,{"$error":"#DIV/0!"},{"$f":"(#REF!)","v":{"$error":"#REF!"}},null,null,null,null,null,{"$error":"#DIV/0!"},{"$f":"(#REF!)","v":{"$error":"#REF!"}},null,null,null,null,null,{"$error":"#DIV/0!"},{"$f":"(#REF!)","v":{"$error":"#REF!"}},null,null,null,null,{"$error":"#DIV/0!"},{"$f":"(#REF!)","v":{"$error":"#REF!"}},null,null,null,null,null,{"$error":"#DIV/0!"},{"$f":"(#REF!)","v":{"$error":"#REF!"}}]
[null,null,{"$error":"#DIV/0!"},{"$f":"(#REF!)","v":{"$error":"#REF!"}},null,null,null,null,4,4,null,null,null,null,null,{"$error":"#DIV/0!"},{"$f":"(#REF!)","v":{"$error":"#REF!"}},null,null,null,null,{"$error":"#DIV/0!"},{"$f":"(#REF!)","v":{"$error":"#REF!"}},null,null,null,null,null,{"$error":"#DIV/0!"},{"$f":"(#REF!)","v":{"$error":"#REF!"}},null,null,null,null,null,{"$error":"#DIV/0!"},{"$f":"(#REF!)","v":{"$error":"#REF!"}},null,null,null,null,null,null,{"$error":"#DIV/0!"},{"$f":"(#REF!)","v":{"$error":"#REF!"}},null,null,null,null,null,{"$error":"#DIV/0!"},{"$f":"(#REF!)","v":{"$error":"#REF!"}},null,null,null,null,null,null,{"$error":"#DIV/0!"},{"$f":"(#REF!)","v":{"$error":"#REF!"}},null,null,null,null,null,{"$error":"#DIV/0!"},{"$f":"(#REF!)","v":{"$error":"#REF!"}},null,null,null,null,null,null,{"$error":"#DIV/0!"},{"$f":"(#REF!)","v":{"$error":"#REF!"}},null,null,null,null,null,{"$error":"#DIV/0!"},{"$f":"(#REF!)","v":{"$error":"#REF!"}},null,null,null,null,null,null,{"$error":"#DIV/0!"},{"$f":"(#REF!)","v":{"$error":"#REF!"}},null,null,null,null,{"$error":"#DIV/0!"},{"$f":"(#REF!)","v":{"$error":"#REF!"}},null,null,null,null,null,{"$error":"#DIV/0!"},{"$f":"(#REF!)","v":{"$error":"#REF!"}},null,null,null,null,null,{"$error":"#DIV/0!"},{"$f":"(#REF!)","v":{"$error":"#REF!"}},null,null,null,null,null,{"$error":"#DIV/0!"},{"$f":"(#REF!)","v":{"$error":"#REF!"}},null,null,null,null,{"$error":"#DIV/0!"},{"$f":"(#REF!)","v":{"$error":"#REF!"}},null,null,null,null,null,{"$error":"#DIV/0!"},{"$f":"(#REF!)","v":{"$error":"#REF!"}}]
[null,null,{"$error":"#DIV/0!"},{"$f":"(#REF!)","v":{"$error":"#REF!"}},null,null,null,null,5,5,null,null,null,null,null,{"$error":"#DIV/0!"},{"$f":"(#REF!)","v":{"$error":"#REF!"}},null,null,null,null,{"$error":"#DIV/0!"},{"$f":"(#REF!)","v":{"$error":"#REF!"}},null,null,null,null,null,{"$error":"#DIV/0!"},{"$f":"(#REF!)","v":{"$error":"#REF!"}},null,null,null,null,null,{"$error":"#DIV/0!"},{"$f":"(#REF!)","v":{"$error":"#REF!"}},null,null,null,null,null,null,{"$error":"#DIV/0!"},{"$f":"(#REF!)","v":{"$error":"#REF!"}},null,null,null,null,null,{"$error":"#DIV/0!"},{"$f":"(#REF!)","v":{"$error":"#REF!"}},null,null,null,null,null,null,{"$error":"#DIV/0!"},{"$f":"(#REF!)","v":{"$error":"#REF!"}},null,null,null,null,null,{"$error":"#DIV/0!"},{"$f":"(#REF!)","v":{"$error":"#REF!"}},null,null,null,null,null,null,{"$error":"#DIV/0!"},{"$f":"(#REF!)","v":{"$error":"#REF!"}},null,null,null,null,null,{"$error":"#DIV/0!"},{"$f":"(#REF!)","v":{"$error":"#REF!"}},null,null,null,null,null,null,{"$error":"#DIV/0!"},{"$f":"(#REF!)","v":{"$error":"#REF!"}},null,null,null,null,{"$error":"#DIV/0!"},{"$f":"(#REF!)","v":{"$error":"#REF!"}},null,null,null,null,null,{"$error":"#DIV/0!"},{"$f":"(#REF!)","v":{"$error":"#REF!"}},"Mech section\"A\" Multi-Level Maint.",null,null,null,null,{"$error":"#DIV/0!"},{"$f":"(#REF!)","v":{"$error":"#REF!"}},null,null,null,null,null,{"$error":"#DIV/0!"},{"$f":"(#REF!)","v":{"$error":"#REF!"}},null,null,null,null,{"$error":"#DIV/0!"},{"$f":"(#REF!)","v":{"$error":"#REF!"}},null,null,null,null,null,{"$error":"#DIV/0!"},{"$f":"(#REF!)","v":{"$error":"#REF!"}}]
[null,null,{"$error":"#DIV/0!"},{"$f":"(#REF!)","v":{"$error":"#REF!"}},null,null,null,null,6,6,null,null,null,null,null,{"$error":"#DIV/0!"},{"$f":"(#REF!)","v":{"$error":"#REF!"}},null,null,null,null,{"$error":"#DIV/0!"},{"$f":"(#REF!)","v":{"$error":"#REF!"}},null,null,null,null,null,{"$error":"#DIV/0!"},{"$f":"(#REF!)","v":{"$error":"#REF!"}},null,null,null,null,null,{"$error":"#DIV/0!"},{"$f":"(#REF!)","v":{"$error":"#REF!"}},null,null,null,null,null,null,{"$error":"#DIV/0!"},{"$f":"(#REF!)","v":{"$error":"#REF!"}},null,null,null,null,null,{"$error":"#DIV/0!"},{"$f":"(#REF!)","v":{"$error":"#REF!"}},null,null,null,null,null,null,{"$error":"#DIV/0!"},{"$f":"(#REF!)","v":{"$error":"#REF!"}},null,null,null,null,null,{"$error":"#DIV/0!"},{"$f":"(#REF!)","v":{"$error":"#REF!"}},null,null,null,null,null,null,{"$error":"#DIV/0!"},{"$f":"(#REF!)","v":{"$error":"#REF!"}},null,null,null,null,null,{"$error":"#DIV/0!"},{"$f":"(#REF!)","v":{"$error":"#REF!"}},null,null,null,null,null,null,{"$error":"#DIV/0!"},{"$f":"(#REF!)","v":{"$error":"#REF!"}},null,null,null,null,{"$error":"#DIV/0!"},{"$f":"(#REF!)","v":{"$error":"#REF!"}},null,null,null,null,null,{"$error":"#DIV/0!"},{"$f":"(#REF!)","v":{"$error":"#REF!"}},{"$f":"('Facility Cover Sheet'!A6)","v":{"$error":"#DIV/0!"}},null,null,null,null,{"$error":"#DIV/0!"},{"$f":"(#REF!)","v":{"$error":"#REF!"}},null,null,null,null,null,{"$error":"#DIV/0!"},{"$f":"(#REF!)","v":{"$error":"#REF!"}},null,null,null,null,{"$error":"#DIV/0!"},{"$f":"(#REF!)","v":{"$error":"#REF!"}},null,null,null,null,null,{"$error":"#DIV/0!"},{"$f":"(#REF!)","v":{"$error":"#REF!"}}]
[null,null,{"$error":"#DIV/0!"},{"$f":"(#REF!)","v":{"$error":"#REF!"}},null,null,null,null,7,7,null,null,null,null,null,{"$error":"#DIV/0!"},{"$f":"(#REF!)","v":{"$error":"#REF!"}},null,null,null,null,{"$error":"#DIV/0!"},{"$f":"(#REF!)","v":{"$error":"#REF!"}},null,null,null,null,null,{"$error":"#DIV/0!"},{"$f":"(#REF!)","v":{"$error":"#REF!"}},null,null,null,null,null,{"$error":"#DIV/0!"},{"$f":"(#REF!)","v":{"$error":"#REF!"}},null,null,null,null,null,null,{"$error":"#DIV/0!"},{"$f":"(#REF!)","v":{"$error":"#REF!"}},null,null,null,null,null,{"$error":"#DIV/0!"},{"$f":"(#REF!)","v":{"$error":"#REF!"}},null,null,null,null,null,null,{"$error":"#DIV/0!"},{"$f":"(#REF!)","v":{"$error":"#REF!"}},null,null,null,null,null,{"$error":"#DIV/0!"},{"$f":"(#REF!)","v":{"$error":"#REF!"}},null,null,null,null,null,null,{"$error":"#DIV/0!"},{"$f":"(#REF!)","v":{"$error":"#REF!"}},null,null,null,null,null,{"$error":"#DIV/0!"},{"$f":"(#REF!)","v":{"$error":"#REF!"}},null,null,null,null,null,null,{"$error":"#DIV/0!"},{"$f":"(#REF!)","v":{"$error":"#REF!"}},null,null,null,null,{"$error":"#DIV/0!"},{"$f":"(#REF!)","v":{"$error":"#REF!"}},null,null,null,null,null,{"$error":"#DIV/0!"},{"$f":"(#REF!)","v":{"$error":"#REF!"}},null,null,null,null,null,{"$error":"#DIV/0!"},{"$f":"(#REF!)","v":{"$error":"#REF!"}},null,null,null,null,null,{"$error":"#DIV/0!"},{"$f":"(#REF!)","v":{"$error":"#REF!"}},null,null,null,null,{"$error":"#DIV/0!"},{"$f":"(#REF!)","v":{"$error":"#REF!"}},null,null,null,null,null,{"$error":"#DIV/0!"},{"$f":"(#REF!)","v":{"$error":"#REF!"}}]
[null,null,{"$error":"#DIV/0!"},{"$f":"(#REF!)","v":{"$error":"#REF!"}},null,null,null,null,8,8,null,null,null,null,null,{"$error":"#DIV/0!"},{"$f":"(#REF!)","v":{"$error":"#REF!"}},null,null,null,null,{"$error":"#DIV/0!"},{"$f":"(#REF!)","v":{"$error":"#REF!"}},null,null,null,null,null,{"$error":"#DIV/0!"},{"$f":"(#REF!)","v":{"$error":"#REF!"}},null,null,null,null,null,{"$error":"#DIV/0!"},{"$f":"(#REF!)","v":{"$error":"#REF!"}},null,null,null,null,null,null,{"$error":"#DIV/0!"},{"$f":"(#REF!)","v":{"$error":"#REF!"}},null,null,null,null,null,{"$error":"#DIV/0!"},{"$f":"(#REF!)","v":{"$error":"#REF!"}},null,null,null,null,null,null,{"$error":"#DIV/0!"},{"$f":"(#REF!)","v":{"$error":"#REF!"}},null,null,null,null,null,{"$error":"#DIV/0!"},{"$f":"(#REF!)","v":{"$error":"#REF!"}},null,null,null,null,null,null,{"$error":"#DIV/0!"},{"$f":"(#REF!)","v":{"$error":"#REF!"}},null,null,null,null,null,{"$error":"#DIV/0!"},{"$f":"(#REF!)","v":{"$error":"#REF!"}},null,null,null,null,null,null,{"$error":"#DIV/0!"},{"$f":"(#REF!)","v":{"$error":"#REF!"}},null,null,null,null,{"$error":"#DIV/0!"},{"$f":"(#REF!)","v":{"$error":"#REF!"}},null,null,null,null,null,{"$error":"#DIV/0!"},{"$f":"(#REF!)","v":{"$error":"#REF!"}},null,null,null,null,null,{"$error":"#DIV/0!"},{"$f":"(#REF!)","v":{"$error":"#REF!"}},null,null,null,null,null,{"$error":"#DIV/0!"},{"$f":"(#REF!)","v":{"$error":"#REF!"}},null,null,null,null,{"$error":"#DIV/0!"},{"$f":"(#REF!)","v":{"$error":"#REF!"}},null,null,null,null,null,{"$error":"#DIV/0!"},{"$f":"(#REF!)","v":{"$error":"#REF!"}}]
[null,null,{"$error":"#DIV/0!"},{"$f":"(#REF!)","v":{"$error":"#REF!"}},null,null,null,null,9,9,null,null,null,null,null,{"$error":"#DIV/0!"},{"$f":"(#REF!)","v":{"$error":"#REF!"}},null,null,null,null,{"$error":"#DIV/0!"},{"$f":"(#REF!)","v":{"$error":"#REF!"}},null,null,null,null,null,{"$error":"#DIV/0!"},{"$f":"(#REF!)","v":{"$error":"#REF!"}},null,null,null,null,null,{"$error":"#DIV/0!"},{"$f":"(#REF!)","v":{"$error":"#REF!"}},null,null,null,null,null,null,{"$error":"#DIV/0!"},{"$f":"(#REF!)","v":{"$error":"#REF!"}},null,null,null,null,null,{"$error":"#DIV/0!"},{"$f":"(#REF!)","v":{"$error":"#REF!"}},null,null,null,null,null,null,{"$error":"#DIV/0!"},{"$f":"(#REF!)","v":{"$error":"#REF!"}},null,null,null,null,null,{"$error":"#DIV/0!"},{"$f":"(#REF!)","v":{"$error":"#REF!"}},null,null,null,null,null,null,{"$error":"#DIV/0!"},{"$f":"(#REF!)","v":{"$error":"#REF!"}},null,null,null,null,null,{"$error":"#DIV/0!"},{"$f":"(#REF!)","v":{"$error":"#REF!"}},null,null,null,null,null,null,{"$error":"#DIV/0!"},{"$f":"(#REF!)","v":{"$error":"#REF!"}},null,null,null,null,{"$error":"#DIV/0!"},{"$f":"(#REF!)","v":{"$error":"#REF!"}},null,null,null,null,null,{"$error":"#DIV/0!"},{"$f":"(#REF!)","v":{"$error":"#REF!"}},null,null,null,null,null,{"$error":"#DIV/0!"},{"$f":"(#REF!)","v":{"$error":"#REF!"}},null,null,null,null,null,{"$error":"#DIV/0!"},{"$f":"(#REF!)","v":{"$error":"#REF!"}},null,null,null,null,{"$error":"#DIV/0!"},{"$f":"(#REF!)","v":{"$error":"#REF!"}},null,null,null,null,null,{"$error":"#DIV/0!"},{"$f":"(#REF!)","v":{"$error":"#REF!"}}]
[null,null,{"$error":"#DIV/0!"},{"$f":"(#REF!)","v":{"$error":"#REF!"}},null,null,null,null,10,10,null,null,null,null,null,{"$error":"#DIV/0!"},{"$f":"(#REF!)","v":{"$error":"#REF!"}},null,null,null,null,{"$error":"#DIV/0!"},{"$f":"(#REF!)","v":{"$error":"#REF!"}},null,null,null,null,null,{"$error":"#DIV/0!"},{"$f":"(#REF!)","v":{"$error":"#REF!"}},null,null,null,null,null,{"$error":"#DIV/0!"},{"$f":"(#REF!)","v":{"$error":"#REF!"}},null,null,null,null,null,null,{"$error":"#DIV/0!"},{"$f":"(#REF!)","v":{"$error":"#REF!"}},null,null,null,null,null,{"$error":"#DIV/0!"},{"$f":"(#REF!)","v":{"$error":"#REF!"}},null,null,null,null,null,null,{"$error":"#DIV/0!"},{"$f":"(#REF!)","v":{"$error":"#REF!"}},null,null,null,null,null,{"$error":"#DIV/0!"},{"$f":"(#REF!)","v":{"$error":"#REF!"}},null,null,null,null,null,null,{"$error":"#DIV/0!"},{"$f":"(#REF!)","v":{"$error":"#REF!"}},null,null,null,null,null,{"$error":"#DIV/0!"},{"$f":"(#REF!)","v":{"$error":"#REF!"}},null,null,null,null,null,null,{"$error":"#DIV/0!"},{"$f":"(#REF!)","v":{"$error":"#REF!"}},null,null,null,null,{"$error":"#DIV/0!"},{"$f":"(#REF!)","v":{"$error":"#REF!"}},null,null,null,null,null,{"$error":"#DIV/0!"},{"$f":"(#REF!)","v":{"$error":"#REF!"}},null,null,null,null,null,{"$error":"#DIV/0!"},{"$f":"(#REF!)","v":{"$error":"#REF!"}},null,null,null,null,null,{"$error":"#DIV/0!"},{"$f":"(#REF!)","v":{"$error":"#REF!"}},null,null,null,null,{"$error":"#DIV/0!"},{"$f":"(#REF!)","v":{"$error":"#REF!"}},null,null,null,null,null,{"$error":"#DIV/0!"},{"$f":"(#REF!)","v":{"$error":"#REF!"}}]
[null,null,{"$error":"#DIV/0!"},{"$f":"(#REF!)","v":{"$error":"#REF!"}},null,null,null,null,null,null,null,null,null,null,null,{"$error":"#DIV/0!"},{"$f":"(#REF!)","v":{"$error":"#REF!"}},null,null,null,null,{"$error":"#DIV/0!"},{"$f":"(#REF!)","v":{"$error":"#REF!"}},null,null,null,null,null,{"$error":"#DIV/0!"},{"$f":"(#REF!)","v":{"$error":"#REF!"}},null,null,null,null,null,{"$error":"#DIV/0!"},{"$f":"(#REF!)","v":{"$error":"#REF!"}},null,null,null,null,null,null,{"$error":"#DIV/0!"},{"$f":"(#REF!)","v":{"$error":"#REF!"}},null,null,null,null,null,{"$error":"#DIV/0!"},{"$f":"(#REF!)","v":{"$error":"#REF!"}},null,null,null,null,null,null,{"$error":"#DIV/0!"},{"$f":"(#REF!)","v":{"$error":"#REF!"}},null,null,null,null,null,{"$error":"#DIV/0!"},{"$f":"(#REF!)","v":{"$error":"#REF!"}},null,null,null,null,null,null,{"$error":"#DIV/0!"},{"$f":"(#REF!)","v":{"$error":"#REF!"}},null,null,null,null,null,{"$error":"#DIV/0!"},{"$f":"(#REF!)","v":{"$error":"#REF!"}},null,null,null,null,null,null,{"$error":"#DIV/0!"},{"$f":"(#REF!)","v":{"$error":"#REF!"}},null,null,null,null,{"$error":"#DIV/0!"},{"$f":"(#REF!)","v":{"$error":"#REF!"}},null,null,null,null,null,{"$error":"#DIV/0!"},{"$f":"(#REF!)","v":{"$error":"#REF!"}},null,null,null,null,null,{"$error":"#DIV/0!"},{"$f":"(#REF!)","v":{"$error":"#REF!"}},null,null,null,null,null,{"$error":"#DIV/0!"},{"$f":"(#REF!)","v":{"$error":"#REF!"}},null,null,null,null,{"$error":"#DIV/0!"},{"$f":"(#REF!)","v":{"$error":"#REF!"}},null,null,null,null,null,{"$error":"#DIV/0!"},{"$f":"(#REF!)","v":{"$error":"#REF!"}}]
["    TOTAL COUNT",null,null,null,null,null,"    TOTAL COUNT",null,null,null,null,null,null,"    TOTAL COUNT",null,null,null,null,null,"    TOTAL COUNT",null,null,null,null,null,null,"    TOTAL COUNT",null,null,null,null,null,null,"    TOTAL COUNT",null,null,null,null,null,null,null,"    TOTAL COUNT",null,null,null,null,null,null,"    TOTAL COUNT",null,null,null,null,null,null,null,"    TOTAL COUNT",null,null,null,null,null,null,"    TOTAL COUNT",null,null,null,null,null,null,null,"    TOTAL COUNT",null,null,null,null,null,null,"    TOTAL COUNT",null,null,null,null,null,null,null,"    TOTAL COUNT",null,null,null,null,null,"    TOTAL COUNT",null,null,null,null,null,null,"    TOTAL COUNT",null,null,null,null,null,null,"    TOTAL COUNT",null,null,null,null,null,null,"    TOTAL COUNT",null,null,null,null,null,"    TOTAL COUNT",null,null,null,null,null,null,"    TOTAL COUNT"]
[{"$f":"SUM(A2:A11)","v":0},{"$f":"SUM(B2:B11)","v":0},null,null,null,null,{"$f":"SUM(G2:G11)","v":0},{"$f":"SUM(H2:H11)","v":11},null,null,null,null,null,{"$f":"SUM(N2:N11)","v":0},{"$f":"SUM(O2:O11)","v":0},null,null,null,null,{"$f":"SUM(T2:T11)","v":0},{"$f":"SUM(U2:U11)","v":0},null,null,null,null,null,{"$f":"SUM(AA2:AA11)","v":0},{"$f":"SUM(AB2:AB11)","v":0},null,null,null,null,null,{"$f":"SUM(AH2:AH11)","v":0},{"$f":"SUM(AI2:AI11)","v":0},null,null,null,null,null,null,{"$f":"SUM(AP2:AP11)","v":0},{"$f":"SUM(AQ2:AQ11)","v":0},null,null,null,null,null,{"$f":"SUM(AW2:AW11)","v":0},{"$f":"SUM(AX2:AX11)","v":0},null,null,null,null,null,null,{"$f":"SUM(BE2:BE11)","v":0},{"$f":"SUM(BF2:BF11)","v":0},null,null,null,null,null,{"$f":"SUM(BL2:BL11)","v":0},{"$f":"SUM(BM2:BM11)","v":0},null,null,null,null,null,null,{"$f":"SUM(BT2:BT11)","v":0},{"$f":"SUM(BU2:BU11)","v":0},null,null,null,null,null,{"$f":"SUM(CA2:CA11)","v":0},{"$f":"SUM(CB2:CB11)","v":0},null,null,null,null,null,null,{"$f":"SUM(CI2:CI11)","v":0},{"$f":"SUM(CJ2:CJ11)","v":0},null,null,null,null,{"$f":"SUM(CO2:CO11)","v":0},{"$f":"SUM(CP2:CP11)","v":0},null,null,null,null,null,{"$f":"SUM(CV2:CV11)","v":0},{"$f":"SUM(CW2:CW11)","v":0},null,null,null,null,null,{"$f":"SUM(DC2:DC11)","v":0},{"$f":"SUM(DD2:DD11)","v":0},null,null,null,null,null,{"$f":"SUM(DJ2:DJ11)","v":0},{"$f":"SUM(DK2:DK11)","v":0},null,null,null,null,{"$f":"SUM(DP2:DP11)","v":0},{"$f":"SUM(DQ2:DQ11)","v":0},null,null,null,null,null,{"$f":"SUM(DW2:DW11)","v":0},{"$f":"SUM(DX2:DX11)","v":0}]
[]
[" TOTAL PERCENTAGE",null,null,null,null,null," TOTAL PERCENTAGE",null,null,null,null,null,null," TOTAL PERCENTAGE",null,null,null,null,null," TOTAL PERCENTAGE",null,null,null,null,null,null," TOTAL PERCENTAGE",null,null,null,null,null,null," TOTAL PERCENTAGE",null,null,null,null,null,null,null," TOTAL PERCENTAGE",null,null,null,null,null,null," TOTAL PERCENTAGE",null,null,null,null,null,null,null," TOTAL PERCENTAGE",null,null,null,null,null,null," TOTAL PERCENTAGE",null,null,null,null,null,null,null," TOTAL PERCENTAGE",null,null,null,null,null,null," TOTAL PERCENTAGE",null,null,null,null,null,null,null," TOTAL PERCENTAGE",null,null,null,null,null," TOTAL PERCENTAGE",null,null,null,null,null,null," TOTAL PERCENTAGE",null,null,null,null,null,null," TOTAL PERCENTAGE",null,null,null,null,null,null," TOTAL PERCENTAGE",null,null,null,null,null," TOTAL PERCENTAGE",null,null,null,null,null,null," TOTAL PERCENTAGE"]
[{"$f":"IF(ROUND((B17),4)<=0.9943,ROUND((B17),4),IF((B17)<1,0.99,IF((B17)=1,1,(B16))))","v":{"$error":"#DIV/0!"}},{"$f":"ROUND(SUM(A2:A11)/SUM(B2:B11),4)","v":{"$error":"#DIV/0!"}},null,null,null,null,{"$f":"IF(ROUND((H17),4)<=0.9943,ROUND((H17),4),IF((H17)<1,0.99,IF((H17)=1,1,(H16))))","v":0},{"$f":"ROUND(SUM(G2:G11)/SUM(H2:H11),4)","v":0},null,null,null,null,null,{"$f":"IF(ROUND((O17),4)<=0.9943,ROUND((O17),4),IF((O17)<1,0.99,IF((O17)=1,1,(O16))))","v":{"$error":"#DIV/0!"}},{"$f":"ROUND(SUM(N2:N11)/SUM(O2:O11),4)","v":{"$error":"#DIV/0!"}},null,null,null,null,{"$f":"IF(ROUND((U17),4)<=0.9943,ROUND((U17),4),IF((U17)<1,0.99,IF((U17)=1,1,(U16))))","v":{"$error":"#DIV/0!"}},{"$f":"ROUND(SUM(T2:T11)/SUM(U2:U11),4)","v":{"$error":"#DIV/0!"}},null,null,null,null,null,{"$f":"IF(ROUND((AB17),4)<=0.9943,ROUND((AB17),4),IF((AB17)<1,0.99,IF((AB17)=1,1,(AB16))))","v":{"$error":"#DIV/0!"}},{"$f":"ROUND(SUM(AA2:AA11)/SUM(AB2:AB11),4)","v":{"$error":"#DIV/0!"}},null,null,null,null,null,{"$f":"IF(ROUND((AI17),4)<=0.9943,ROUND((AI17),4),IF((AI17)<1,0.99,IF((AI17)=1,1,(AI16))))","v":{"$error":"#DIV/0!"}},{"$f":"ROUND(SUM(AH2:AH11)/SUM(AI2:AI11),4)","v":{"$error":"#DIV/0!"}},null,null,null,null,null,null,{"$f":"IF(ROUND((AQ17),4)<=0.9943,ROUND((AQ17),4),IF((AQ17)<1,0.99,IF((AQ17)=1,1,(AQ16))))","v":{"$error":"#DIV/0!"}},{"$f":"ROUND(SUM(AP2:AP11)/SUM(AQ2:AQ11),4)","v":{"$error":"#DIV/0!"}},null,null,null,null,null,{"$f":"IF(ROUND((AX17),4)<=0.9943,ROUND((AX17),4),IF((AX17)<1,0.99,IF((AX17)=1,1,(AX16))))","v":{"$error":"#DIV/0!"}},{"$f":"ROUND(SUM(AW2:AW11)/SUM(AX2:AX11),4)","v":{"$error":"#DIV/0!"}},null,null,null,null,null,null,{"$f":"IF(ROUND((BF17),4)<=0.9943,ROUND((BF17),4),IF((BF17)<1,0.99,IF((BF17)=1,1,(BF16))))","v":{"$error":"#DIV/0!"}},{"$f":"ROUND(SUM(BE2:BE11)/SUM(BF2:BF11),4)","v":{"$error":"#DIV/0!"}},null,null,null,null,null,{"$f":"IF(ROUND((BM17),4)<=0.9943,ROUND((BM17),4),IF((BM17)<1,0.99,IF((BM17)=1,1,(BM16))))","v":{"$error":"#DIV/0!"}},{"$f":"ROUND(SUM(BL2:BL11)/SUM(BM2:BM11),4)","v":{"$error":"#DIV/0!"}},null,null,null,null,null,null,{"$f":"IF(ROUND((BU17),4)<=0.9943,ROUND((BU17),4),IF((BU17)<1,0.99,IF((BU17)=1,1,(BU16))))","v":{"$error":"#DIV/0!"}},{"$f":"ROUND(SUM(BT2:BT11)/SUM(BU2:BU11),4)","v":{"$error":"#DIV/0!"}},null,null,null,null,null,{"$f":"IF(ROUND((CB17),4)<=0.9943,ROUND((CB17),4),IF((CB17)<1,0.99,IF((CB17)=1,1,(CB16))))","v":{"$error":"#DIV/0!"}},{"$f":"ROUND(SUM(CA2:CA11)/SUM(CB2:CB11),4)","v":{"$error":"#DIV/0!"}},null,null,null,null,null,null,{"$f":"IF(ROUND((CJ17),4)<=0.9943,ROUND((CJ17),4),IF((CJ17)<1,0.99,IF((CJ17)=1,1,(CJ16))))","v":{"$error":"#DIV/0!"}},{"$f":"ROUND(SUM(CI2:CI11)/SUM(CJ2:CJ11),4)","v":{"$error":"#DIV/0!"}},null,null,null,null,{"$f":"IF(ROUND((CP17),4)<=0.9943,ROUND((CP17),4),IF((CP17)<1,0.99,IF((CP17)=1,1,(CP16))))","v":{"$error":"#DIV/0!"}},{"$f":"ROUND(SUM(CO2:CO11)/SUM(CP2:CP11),4)","v":{"$error":"#DIV/0!"}},null,null,null,null,null,{"$f":"IF(ROUND((CW17),4)<=0.9943,ROUND((CW17),4),IF((CW17)<1,0.99,IF((CW17)=1,1,(CW16))))","v":{"$error":"#DIV/0!"}},{"$f":"ROUND(SUM(CV2:CV11)/SUM(CW2:CW11),4)","v":{"$error":"#DIV/0!"}},null,null,null,null,null,{"$f":"IF(ROUND((DD17),4)<=0.9943,ROUND((DD17),4),IF((DD17)<1,0.99,IF((DD17)=1,1,(DD16))))","v":{"$error":"#DIV/0!"}},{"$f":"ROUND(SUM(DC2:DC11)/SUM(DD2:DD11),4)","v":{"$error":"#DIV/0!"}},null,null,null,null,null,{"$f":"IF(ROUND((DK17),4)<=0.9943,ROUND((DK17),4),IF((DK17)<1,0.99,IF((DK17)=1,1,(DK16))))","v":{"$error":"#DIV/0!"}},{"$f":"ROUND(SUM(DJ2:DJ11)/SUM(DK2:DK11),4)","v":{"$error":"#DIV/0!"}},null,null,null,null,{"$f":"IF(ROUND((DQ17),4)<=0.9943,ROUND((DQ17),4),IF((DQ17)<1,0.99,IF((DQ17)=1,1,(DQ16))))","v":{"$error":"#DIV/0!"}},{"$f":"ROUND(SUM(DP2:DP11)/SUM(DQ2:DQ11),4)","v":{"$error":"#DIV/0!"}},null,null,null,null,null,{"$f":"IF(ROUND((DX17),4)<=0.9943,ROUND((DX17),4),IF((DX17)<1,0.99,IF((DX17)=1,1,(DX16))))","v":{"$error":"#DIV/0!"}},{"$f":"ROUND(SUM(DW2:DW11)/SUM(DX2:DX11),4)","v":{"$error":"#DIV/0!"}}]
["B5 HINGED DECKS LOWERED/LOCKED BY HAND",null,null,null,null,null,"B6 BRIDGE PLATES LOWERED DOWN",null,null,null,null,null,null,"B7 END DOORS LOCKED AND SEALED",null,null,null,null,null,"B8 BRIDGE PLATE CONDITION/MEET STANDARDS",null,null,null,null,null,null," A1 TRANS DECK HEIGHTS EQUAL",null,null,null,null,null,null,"A2 TRANS COUPLERS IN PROPER POSITION",null,null,null,null,null,null,null,"A3 TRANS  PROPER HAND BRAKES SET",null,null,null,null,null,null," A4 TRANS TRACK PROTECTION USED",null,null,null,null,null,null,null," A1 M/C END DOORS OPEN AND STORED",null,null,null,null,null,null," A2 M/C HINGED DECKS RAISED & LOCKED PRIOR TO LDING",null,null,null,null,null,null,null," A3 M/C BRIDGE PLATES HINGED AT HIGHER DECK",null,null,null,null,null,null," A4 M/C PROPER B/PLATES USED AT M/L JUNCTIONS",null,null,null,null,null,null,null," A5 M/C HINGED DECKS LOWERED/LOCKED BY HAND",null,null,null,null,null," A6 M/C BRIDGE PLATES LOWERED DOWN",null,null,null,null,null,null," A7 M/C END DOORS LOCKED AND SEALED",null,null,null,null,null,null," B1 M/C STORAGE AREA SPEEDS",null,null,null,null,null,null," B2 M/C POSTED TRAFFIC REGS & SAFE DRIVING OBSERVED",null,null,null,null,null," B3 M/C ONE CAR LENGTH MAINTAINED BETWEEN VEHICLES",null,null,null,null,null,null," B4 M/C SEAT AND FLOOR PROTECTION POSITIONED "]
[null,null,{"$f":"ROUND((A19/B19),4)","v":{"$error":"#DIV/0!"}},{"$f":"(#REF!)","v":{"$error":"#REF!"}},null,null,null,null,{"$f":"ROUND((G19/H19),4)","v":{"$error":"#DIV/0!"}},{"$f":"(#REF!)","v":{"$error":"#REF!"}},null,null,null,null,null,{"$f":"ROUND((N19/O19),4)","v":{"$error":"#DIV/0!"}},{"$f":"(#REF!)","v":{"$error":"#REF!"}},null,null,null,null,{"$f":"ROUND((T19/U19),4)","v":{"$error":"#DIV/0!"}},{"$f":"(#REF!)","v":{"$error":"#REF!"}},null,null,null," "," ",{"$f":"ROUND((AA19/AB19),4)","v":{"$error":"#VALUE!"}},{"$f":"(#REF!)","v":{"$error":"#REF!"}},null,null,null," "," ",{"$f":"ROUND((AH19/AI19),4)","v":{"$error":"#VALUE!"}},{"$f":"(#REF!)","v":{"$error":"#REF!"}},null,null,null,null," "," ",{"$f":"ROUND((AP19/AQ19),4)","v":{"$error":"#VALUE!"}},{"$f":"(#REF!)","v":{"$error":"#REF!"}},null,null,null," "," ",{"$f":"ROUND((AW19/AX19),4)","v":{"$error":"#VALUE!"}},{"$f":"(#REF!)","v":{"$error":"#REF!"}},null,null,null,null," "," ",{"$f":"ROUND((BE19/BF19),4)","v":{"$error":"#VALUE!"}},{"$f":"(#REF!)","v":{"$error":"#REF!"}},null,null,null,null,null,{"$f":"ROUND((BL19/BM19),4)","v":{"$error":"#DIV/0!"}},{"$f":"(#REF!)","v":{"$error":"#REF!"}},null,null,null,null,null,null,{"$f":"ROUND((BT19/BU19),4)","v":{"$error":"#DIV/0!"}},{"$f":"(#REF!)","v":{"$error":"#REF!"}},null,null,null,null,null,{"$f":"ROUND((CA19/CB19),4)","v":{"$error":"#DIV/0!"}},{"$f":"(#REF!)","v":{"$error":"#REF!"}},null,null,null,null,null,null,{"$f":"ROUND((CI19/CJ19),4)","v":{"$error":"#DIV/0!"}},{"$f":"(#REF!)","v":{"$error":"#REF!"}},null,null,null,null,{"$f":"ROUND((CO19/CP19),4)","v":{"$error":"#DIV/0!"}},{"$f":"(#REF!)","v":{"$error":"#REF!"}},null,null,null,null,null,{"$f":"ROUND((CV19/CW19),4)","v":{"$error":"#DIV/0!"}},{"$f":"(#REF!)","v":{"$error":"#REF!"}},null,null,null,null,null,{"$f":"ROUND((DC19/DD19),4)","v":{"$error":"#DIV/0!"}},{"$f":"(#REF!)","v":{"$error":"#REF!"}},null,null,null,null,null,{"$f":"ROUND((DJ19/DK19),4)","v":{"$error":"#DIV/0!"}},{"$f":"(#REF!)","v":{"$error":"#REF!"}},null,null,null,null,{"$f":"ROUND((DP19/DQ19),4)","v":{"$error":"#DIV/0!"}},{"$f":"(#REF!)","v":{"$error":"#REF!"}},null,null,null,null,null,{"$f":"ROUND((DW19/DX19),4)","v":{"$error":"#DIV/0!"}},{"$f":"(#REF!)","v":{"$error":"#REF!"}}]
[null,null,{"$error":"#DIV/0!"},{"$f":"(#REF!)","v":{"$error":"#REF!"}},null,null,null,null,{"$error":"#DIV/0!"},{"$f":"(#REF!)","v":{"$error":"#REF!"}},null,null,null,null,null,{"$error":"#DIV/0!"},{"$f":"(#REF!)","v":{"$error":"#REF!"}},null,null,null,null,{"$error":"#DIV/0!"},{"$f":"(#REF!)","v":{"$error":"#REF!"}},null,null,null,null,null,{"$error":"#DIV/0!"},{"$f":"(#REF!)","v":{"$error":"#REF!"}},null,null,null,null,null,{"$error":"#DIV/0!"},{"$f":"(#REF!)","v":{"$error":"#REF!"}},null,null,null,null,null,null,{"$error":"#DIV/0!"},{"$f":"(#REF!)","v":{"$error":"#REF!"}},null,null,null,null,null,{"$error":"#DIV/0!"},{"$f":"(#REF!)","v":{"$error":"#REF!"}},null,null,null,null,null,null,{"$error":"#DIV/0!"},{"$f":"(#REF!)","v":{"$error":"#REF!"}},null,null,null,null,null,{"$error":"#DIV/0!"},{"$f":"(#REF!)","v":{"$error":"#REF!"}},null,null,null,null,null,null,{"$error":"#DIV/0!"},{"$f":"(#REF!)","v":{"$error":"#REF!"}},null,null,null,null,null,{"$error":"#DIV/0!"},{"$f":"(#REF!)","v":{"$error":"#REF!"}},null,null,null,null,null,null,{"$error":"#DIV/0!"},{"$f":"(#REF!)","v":{"$error":"#REF!"}},null,null,null,null,{"$error":"#DIV/0!"},{"$f":"(#REF!)","v":{"$error":"#REF!"}},null,null,null,null,null,{"$error":"#DIV/0!"},{"$f":"(#REF!)","v":{"$error":"#REF!"}},null,null,null,null,null,{"$error":"#DIV/0!"},{"$f":"(#REF!)","v":{"$error":"#REF!"}},null,null,null,null,null,{"$error":"#DIV/0!"},{"$f":"(#REF!)","v":{"$error":"#REF!"}},null,null,null,null,{"$error":"#DIV/0!"},{"$f":"(#REF!)","v":{"$error":"#REF!"}},null,null,null,null,null,{"$error":"#DIV/0!"},{"$f":"(#REF!)","v":{"$error":"#REF!"}}]
[null,null,{"$error":"#DIV/0!"},{"$f":"(#REF!)","v":{"$error":"#REF!"}},null,null,null,null,{"$error":"#DIV/0!"},{"$f":"(#REF!)","v":{"$error":"#REF!"}},null,null,null,null,null,{"$error":"#DIV/0!"},{"$f":"(#REF!)","v":{"$error":"#REF!"}},null,null,null,null,{"$error":"#DIV/0!"},{"$f":"(#REF!)","v":{"$error":"#REF!"}},null,null,null,null,null,{"$error":"#DIV/0!"},{"$f":"(#REF!)","v":{"$error":"#REF!"}},null,null,null,null,null,{"$error":"#DIV/0!"},{"$f":"(#REF!)","v":{"$error":"#REF!"}},null,null,null,null,null,null,{"$error":"#DIV/0!"},{"$f":"(#REF!)","v":{"$error":"#REF!"}},null,null,null,null,null,{"$error":"#DIV/0!"},{"$f":"(#REF!)","v":{"$error":"#REF!"}},null,null,null,null,null,null,{"$error":"#DIV/0!"},{"$f":"(#REF!)","v":{"$error":"#REF!"}},null,null,null,null,null,{"$error":"#DIV/0!"},{"$f":"(#REF!)","v":{"$error":"#REF!"}},null,null,null,null,null,null,{"$error":"#DIV/0!"},{"$f":"(#REF!)","v":{"$error":"#REF!"}},null,null,null,null,null,{"$error":"#DIV/0!"},{"$f":"(#REF!)","v":{"$error":"#REF!"}},null,null,null,null,null,null,{"$error":"#DIV/0!"},{"$f":"(#REF!)","v":{"$error":"#REF!"}},null,null,null,null,{"$error":"#DIV/0!"},{"$f":"(#REF!)","v":{"$error":"#REF!"}},null,null,null,null,null,{"$error":"#DIV/0!"},{"$f":"(#REF!)","v":{"$error":"#REF!"}},null,null,null,null,null,{"$error":"#DIV/0!"},{"$f":"(#REF!)","v":{"$error":"#REF!"}},null,null,null,null,null,{"$error":"#DIV/0!"},{"$f":"(#REF!)","v":{"$error":"#REF!"}},null,null,null,null,{"$error":"#DIV/0!"},{"$f":"(#REF!)","v":{"$error":"#REF!"}},null,null,null,null,null,{"$error":"#DIV/0!"},{"$f":"(#REF!)","v":{"$error":"#REF!"}}]
[null,null,{"$error":"#DIV/0!"},{"$f":"(#REF!)","v":{"$error":"#REF!"}},null,null,null,null,{"$error":"#DIV/0!"},{"$f":"(#REF!)","v":{"$error":"#REF!"}},null,null,null,null,null,{"$error":"#DIV/0!"},{"$f":"(#REF!)","v":{"$error":"#REF!"}},null,null,null,null,{"$error":"#DIV/0!"},{"$f":"(#REF!)","v":{"$error":"#REF!"}},null,null,null,null,null,{"$error":"#DIV/0!"},{"$f":"(#REF!)","v":{"$error":"#REF!"}},null,null,null,null,null,{"$error":"#DIV/0!"},{"$f":"(#REF!)","v":{"$error":"#REF!"}},null,null,null,null,null,null,{"$error":"#DIV/0!"},{"$f":"(#REF!)","v":{"$error":"#REF!"}},null,null,null,null,null,{"$error":"#DIV/0!"},{"$f":"(#REF!)","v":{"$error":"#REF!"}},null,null,null,null,null,null,{"$error":"#DIV/0!"},{"$f":"(#REF!)","v":{"$error":"#REF!"}},null,null,null,null,null,{"$error":"#DIV/0!"},{"$f":"(#REF!)","v":{"$error":"#REF!"}},null,null,null,null,null,null,{"$error":"#DIV/0!"},{"$f":"(#REF!)","v":{"$error":"#REF!"}},null,null,null,null,null,{"$error":"#DIV/0!"},{"$f":"(#REF!)","v":{"$error":"#REF!"}},null,null,null,null,null,null,{"$error":"#DIV/0!"},{"$f":"(#REF!)","v":{"$error":"#REF!"}},null,null,null,null,{"$error":"#DIV/0!"},{"$f":"(#REF!)","v":{"$error":"#REF!"}},null,null,null,null,null,{"$error":"#DIV/0!"},{"$f":"(#REF!)","v":{"$error":"#REF!"}},null,null,null,null,null,{"$error":"#DIV/0!"},{"$f":"(#REF!)","v":{"$error":"#REF!"}},null,null,null,null,null,{"$error":"#DIV/0!"},{"$f":"(#REF!)","v":{"$error":"#REF!"}},null,null,null,null,{"$error":"#DIV/0!"},{"$f":"(#REF!)","v":{"$error":"#REF!"}},null,null,null,null,null,{"$error":"#DIV/0!"},{"$f":"(#REF!)","v":{"$error":"#REF!"}}]
[null,null,{"$error":"#DIV/0!"},{"$f":"(#REF!)","v":{"$error":"#REF!"}},null,null,null,null,{"$error":"#DIV/0!"},{"$f":"(#REF!)","v":{"$error":"#REF!"}},null,null,null,null,null,{"$error":"#DIV/0!"},{"$f":"(#REF!)","v":{"$error":"#REF!"}},null,null,null,null,{"$error":"#DIV/0!"},{"$f":"(#REF!)","v":{"$error":"#REF!"}},"Mech. section\"B\" E Drs. Decks B Plates",null,null,null,null,{"$error":"#DIV/0!"},{"$f":"(#REF!)","v":{"$error":"#REF!"}},null,null,null,null,null,{"$error":"#DIV/0!"},{"$f":"(#REF!)","v":{"$error":"#REF!"}},null,null,null,null,null,null,{"$error":"#DIV/0!"},{"$f":"(#REF!)","v":{"$error":"#REF!"}},null,null,null,null,null,{"$error":"#DIV/0!"},{"$f":"(#REF!)","v":{"$error":"#REF!"}},"Transportation M/L Spotting",null,null,null,null,null,{"$error":"#DIV/0!"},{"$f":"(#REF!)","v":{"$error":"#REF!"}},null,null,null,null,null,{"$error":"#DIV/0!"},{"$f":"(#REF!)","v":{"$error":"#REF!"}},null,null,null,null,null,null,{"$error":"#DIV/0!"},{"$f":"(#REF!)","v":{"$error":"#REF!"}},null,null,null,null,null,{"$error":"#DIV/0!"},{"$f":"(#REF!)","v":{"$error":"#REF!"}},null,null,null,null,null,null,{"$error":"#DIV/0!"},{"$f":"(#REF!)","v":{"$error":"#REF!"}},null,null,null,null,{"$error":"#DIV/0!"},{"$f":"(#REF!)","v":{"$error":"#REF!"}},null,null,null,null,null,{"$error":"#DIV/0!"},{"$f":"(#REF!)","v":{"$error":"#REF!"}},"Cont. section\"A\" E Drs. Decks B Plates",null,null,null,null,{"$error":"#DIV/0!"},{"$f":"(#REF!)","v":{"$error":"#REF!"}},null,null,null,null,null,{"$error":"#DIV/0!"},{"$f":"(#REF!)","v":{"$error":"#REF!"}},null,null,null,null,{"$error":"#DIV/0!"},{"$f":"(#REF!)","v":{"$error":"#REF!"}},null,null,null,null,null,{"$error":"#DIV/0!"},{"$f":"(#REF!)","v":{"$error":"#REF!"}}]
[null,null,{"$error":"#DIV/0!"},{"$f":"(#REF!)","v":{"$error":"#REF!"}},null,null,null,null,{"$error":"#DIV/0!"},{"$f":"(#REF!)","v":{"$error":"#REF!"}},null,null,null,null,null,{"$error":"#DIV/0!"},{"$f":"(#REF!)","v":{"$error":"#REF!"}},null,null,null,null,{"$error":"#DIV/0!"},{"$f":"(#REF!)","v":{"$error":"#REF!"}},{"$f":"('Facility Cover Sheet'!A23)","v":{"$error":"#DIV/0!"}},null,null,null,null,{"$error":"#DIV/0!"},{"$f":"(#REF!)","v":{"$error":"#REF!"}},null,null,null,null,null,{"$error":"#DIV/0!"},{"$f":"(#REF!)","v":{"$error":"#REF!"}},null,null,null,null,null,null,{"$error":"#DIV/0!"},{"$f":"(#REF!)","v":{"$error":"#REF!"}},null,null,null,null,null,{"$error":"#DIV/0!"},{"$f":"(#REF!)","v":{"$error":"#REF!"}},{"$f":"('Facility Cover Sheet'!A32)","v":{"$error":"#DIV/0!"}},null,null,null,null,null,{"$error":"#DIV/0!"},{"$f":"(#REF!)","v":{"$error":"#REF!"}},null,null,null,null,null,{"$error":"#DIV/0!"},{"$f":"(#REF!)","v":{"$error":"#REF!"}},null,null,null,null,null,null,{"$error":"#DIV/0!"},{"$f":"(#REF!)","v":{"$error":"#REF!"}},null,null,null,null,null,{"$error":"#DIV/0!"},{"$f":"(#REF!)","v":{"$error":"#REF!"}},null,null,null,null,null,null,{"$error":"#DIV/0!"},{"$f":"(#REF!)","v":{"$error":"#REF!"}},null,null,null,null,{"$error":"#DIV/0!"},{"$f":"(#REF!)","v":{"$error":"#REF!"}},null,null,null,null,null,{"$error":"#DIV/0!"},{"$f":"(#REF!)","v":{"$error":"#REF!"}},{"$f":"('Facility Cover Sheet'!A39)","v":{"$error":"#DIV/0!"}},null,null,null,null,{"$error":"#DIV/0!"},{"$f":"(#REF!)","v":{"$error":"#REF!"}},null,null,null,null,null,{"$error":"#DIV/0!"},{"$f":"(#REF!)","v":{"$error":"#REF!"}},null,null,null,null,{"$error":"#DIV/0!"},{"$f":"(#REF!)","v":{"$error":"#REF!"}},null,null,null,null,null,{"$error":"#DIV/0!"},{"$f":"(#REF!)","v":{"$error":"#REF!"}}]
[null,null,{"$error":"#DIV/0!"},{"$f":"(#REF!)","v":{"$error":"#REF!"}},null,null,null,null,{"$error":"#DIV/0!"},{"$f":"(#REF!)","v":{"$error":"#REF!"}},null,null,null,null,null,{"$error":"#DIV/0!"},{"$f":"(#REF!)","v":{"$error":"#REF!"}},null,null,null,null,{"$error":"#DIV/0!"},{"$f":"(#REF!)","v":{"$error":"#REF!"}},null,null,null,null,null,{"$error":"#DIV/0!"},{"$f":"(#REF!)","v":{"$error":"#REF!"}},null,null,null,null,null,{"$error":"#DIV/0!"},{"$f":"(#REF!)","v":{"$error":"#REF!"}},null,null,null,null,null,null,{"$error":"#DIV/0!"},{"$f":"(#REF!)","v":{"$error":"#REF!"}},null,null,null,null,null,{"$error":"#DIV/0!"},{"$f":"(#REF!)","v":{"$error":"#REF!"}},null,null,null,null,null,null,{"$error":"#DIV/0!"},{"$f":"(#REF!)","v":{"$error":"#REF!"}},null,null,null,null,null,{"$error":"#DIV/0!"},{"$f":"(#REF!)","v":{"$error":"#REF!"}},null,null,null,null,null,null,{"$error":"#DIV/0!"},{"$f":"(#REF!)","v":{"$error":"#REF!"}},null,null,null,null,null,{"$error":"#DIV/0!"},{"$f":"(#REF!)","v":{"$error":"#REF!"}},null,null,null,null,null,null,{"$error":"#DIV/0!"},{"$f":"(#REF!)","v":{"$error":"#REF!"}},null,null,null,null,{"$error":"#DIV/0!"},{"$f":"(#REF!)","v":{"$error":"#REF!"}},null,null,null,null,null,{"$error":"#DIV/0!"},{"$f":"(#REF!)","v":{"$error":"#REF!"}},null,null,null,null,null,{"$error":"#DIV/0!"},{"$f":"(#REF!)","v":{"$error":"#REF!"}},null,null,null,null,null,{"$error":"#DIV/0!"},{"$f":"(#REF!)","v":{"$error":"#REF!"}},null,null,null,null,{"$error":"#DIV/0!"},{"$f":"(#REF!)","v":{"$error":"#REF!"}},null,null,null,null,null,{"$error":"#DIV/0!"},{"$f":"(#REF!)","v":{"$error":"#REF!"}}]
[null,null,{"$error":"#DIV/0!"},{"$f":"(#REF!)","v":{"$error":"#REF!"}},null,null,null,null,{"$error":"#DIV/0!"},{"$f":"(#REF!)","v":{"$error":"#REF!"}},null,null,null,null,null,{"$error":"#DIV/0!"},{"$f":"(#REF!)","v":{"$error":"#REF!"}},null,null,null,null,{"$error":"#DIV/0!"},{"$f":"(#REF!)","v":{"$error":"#REF!"}},null,null,null,null,null,{"$error":"#DIV/0!"},{"$f":"(#REF!)","v":{"$error":"#REF!"}},null,null,null,null,null,{"$error":"#DIV/0!"},{"$f":"(#REF!)","v":{"$error":"#REF!"}},null,null,null,null,null,null,{"$error":"#DIV/0!"},{"$f":"(#REF!)","v":{"$error":"#REF!"}},null,null,null,null,null,{"$error":"#DIV/0!"},{"$f":"(#REF!)","v":{"$error":"#REF!"}},null,null,null,null,null,null,{"$error":"#DIV/0!"},{"$f":"(#REF!)","v":{"$error":"#REF!"}},null,null,null,null,null,{"$error":"#DIV/0!"},{"$f":"(#REF!)","v":{"$error":"#REF!"}},null,null,null,null,null,null,{"$error":"#DIV/0!"},{"$f":"(#REF!)","v":{"$error":"#REF!"}},null,null,null,null,null,{"$error":"#DIV/0!"},{"$f":"(#REF!)","v":{"$error":"#REF!"}},null,null,null,null,null,null,{"$error":"#DIV/0!"},{"$f":"(#REF!)","v":{"$error":"#REF!"}},null,null,null,null,{"$error":"#DIV/0!"},{"$f":"(#REF!)","v":{"$error":"#REF!"}},null,null,null,null,null,{"$error":"#DIV/0!"},{"$f":"(#REF!)","v":{"$error":"#REF!"}},null,null,null,null,null,{"$error":"#DIV/0!"},{"$f":"(#REF!)","v":{"$error":"#REF!"}},null,null,null,null,null,{"$error":"#DIV/0!"},{"$f":"(#REF!)","v":{"$error":"#REF!"}},{"$f":"('US. Speed Sheet'!B46)","v":0},null,null,null,{"$error":"#DIV/0!"},{"$f":"(#REF!)","v":{"$error":"#REF!"}},null,null,null,null,null,{"$error":"#DIV/0!"},{"$f":"(#REF!)","v":{"$error":"#REF!"}}]
[null,null,{"$error":"#DIV/0!"},{"$f":"(#REF!)","v":{"$error":"#REF!"}},null,null,null,null,{"$error":"#DIV/0!"},{"$f":"(#REF!)","v":{"$error":"#REF!"}},null,null,null,null,null,{"$error":"#DIV/0!"},{"$f":"(#REF!)","v":{"$error":"#REF!"}},null,null,null,null,{"$error":"#DIV/0!"},{"$f":"(#REF!)","v":{"$error":"#REF!"}},null,null,null,null,null,{"$error":"#DIV/0!"},{"$f":"(#REF!)","v":{"$error":"#REF!"}},null,null,null,null,null,{"$error":"#DIV/0!"},{"$f":"(#REF!)","v":{"$error":"#REF!"}},null,null,null,null,null,null,{"$error":"#DIV/0!"},{"$f":"(#REF!)","v":{"$error":"#REF!"}},null,null,null,null,null,{"$error":"#DIV/0!"},{"$f":"(#REF!)","v":{"$error":"#REF!"}},null,null,null,null,null,null,{"$error":"#DIV/0!"},{"$f":"(#REF!)","v":{"$error":"#REF!"}},null,null,null,null,null,{"$error":"#DIV/0!"},{"$f":"(#REF!)","v":{"$error":"#REF!"}},null,null,null,null,null,null,{"$error":"#DIV/0!"},{"$f":"(#REF!)","v":{"$error":"#REF!"}},null,null,null,null,null,{"$error":"#DIV/0!"},{"$f":"(#REF!)","v":{"$error":"#REF!"}},null,null,null,null,null,null,{"$error":"#DIV/0!"},{"$f":"(#REF!)","v":{"$error":"#REF!"}},null,null,null,null,{"$error":"#DIV/0!"},{"$f":"(#REF!)","v":{"$error":"#REF!"}},null,null,null,null,null,{"$error":"#DIV/0!"},{"$f":"(#REF!)","v":{"$error":"#REF!"}},null,null,null,null,null,{"$error":"#DIV/0!"},{"$f":"(#REF!)","v":{"$error":"#REF!"}},null,null,null,null,null,{"$error":"#DIV/0!"},{"$f":"(#REF!)","v":{"$error":"#REF!"}},{"$f":"('US. Speed Sheet'!B47)","v":0},null,null,null,{"$error":"#DIV/0!"},{"$f":"(#REF!)","v":{"$error":"#REF!"}},null,null,null,null,null,{"$error":"#DIV/0!"},{"$f":"(#REF!)","v":{"$error":"#REF!"}}]
[null,null,{"$error":"#DIV/0!"},{"$f":"(#REF!)","v":{"$error":"#REF!"}},null,null,null,null,{"$error":"#DIV/0!"},{"$f":"(#REF!)","v":{"$error":"#REF!"}},null,null,null,null,null,{"$error":"#DIV/0!"},{"$f":"(#REF!)","v":{"$error":"#REF!"}},null,null,null,null,{"$error":"#DIV/0!"},{"$f":"(#REF!)","v":{"$error":"#REF!"}},null,null,null,null,null,{"$error":"#DIV/0!"},{"$f":"(#REF!)","v":{"$error":"#REF!"}},null,null,null,null,null,{"$error":"#DIV/0!"},{"$f":"(#REF!)","v":{"$error":"#REF!"}},null,null,null,null,null,null,{"$error":"#DIV/0!"},{"$f":"(#REF!)","v":{"$error":"#REF!"}},null,null,null,null,null,{"$error":"#DIV/0!"},{"$f":"(#REF!)","v":{"$error":"#REF!"}},null,null,null,null,null,null,{"$error":"#DIV/0!"},{"$f":"(#REF!)","v":{"$error":"#REF!"}},null,null,null,null,null,{"$error":"#DIV/0!"},{"$f":"(#REF!)","v":{"$error":"#REF!"}},null,null,null,null,null,null,{"$error":"#DIV/0!"},{"$f":"(#REF!)","v":{"$error":"#REF!"}},null,null,null,null,null,{"$error":"#DIV/0!"},{"$f":"(#REF!)","v":{"$error":"#REF!"}},null,null,null,null,null,null,{"$error":"#DIV/0!"},{"$f":"(#REF!)","v":{"$error":"#REF!"}},null,null,null,null,{"$error":"#DIV/0!"},{"$f":"(#REF!)","v":{"$error":"#REF!"}},null,null,null,null,null,{"$error":"#DIV/0!"},{"$f":"(#REF!)","v":{"$error":"#REF!"}},null,null,null,null,null,{"$error":"#DIV/0!"},{"$f":"(#REF!)","v":{"$error":"#REF!"}},null,null,null,null,null,{"$error":"#DIV/0!"},{"$f":"(#REF!)","v":{"$error":"#REF!"}},{"$f":"('US. Speed Sheet'!B48)","v":{"$error":"#DIV/0!"}},null,null,null,{"$error":"#DIV/0!"},{"$f":"(#REF!)","v":{"$error":"#REF!"}},null,null,null,null,null,{"$error":"#DIV/0!"},{"$f":"(#REF!)","v":{"$error":"#REF!"}}]
[null,null,{"$error":"#DIV/0!"},{"$f":"(#REF!)","v":{"$error":"#REF!"}},null,null,null,null,{"$error":"#DIV/0!"},{"$f":"(#REF!)","v":{"$error":"#REF!"}},null,null,null,null,null,{"$error":"#DIV/0!"},{"$f":"(#REF!)","v":{"$error":"#REF!"}},null,null,null,null,{"$error":"#DIV/0!"},{"$f":"(#REF!)","v":{"$error":"#REF!"}},null,null,null,null,null,{"$error":"#DIV/0!"},{"$f":"(#REF!)","v":{"$error":"#REF!"}},null,null,null,null,null,{"$error":"#DIV/0!"},{"$f":"(#REF!)","v":{"$error":"#REF!"}},null,null,null,null,null,null,{"$error":"#DIV/0!"},{"$f":"(#REF!)","v":{"$error":"#REF!"}},null,null,null,null,null,{"$error":"#DIV/0!"},{"$f":"(#REF!)","v":{"$error":"#REF!"}},null,null,null,null,null,null,{"$error":"#DIV/0!"},{"$f":"(#REF!)","v":{"$error":"#REF!"}},null,null,null,null,null,{"$error":"#DIV/0!"},{"$f":"(#REF!)","v":{"$error":"#REF!"}},null,null,null,null,null,null,{"$error":"#DIV/0!"},{"$f":"(#REF!)","v":{"$error":"#REF!"}},null,null,null,null,null,{"$error":"#DIV/0!"},{"$f":"(#REF!)","v":{"$error":"#REF!"}},null,null,null,null,null,null,{"$error":"#DIV/0!"},{"$f":"(#REF!)","v":{"$error":"#REF!"}},null,null,null,null,{"$error":"#DIV/0!"},{"$f":"(#REF!)","v":{"$error":"#REF!"}},null,null,null,null,null,{"$error":"#DIV/0!"},{"$f":"(#REF!)","v":{"$error":"#REF!"}},null,null,null,null,null,{"$error":"#DIV/0!"},{"$f":"(#REF!)","v":{"$error":"#REF!"}},null,null,null,null,null,{"$error":"#DIV/0!"},{"$f":"(#REF!)","v":{"$error":"#REF!"}},null,null,null,null,{"$error":"#DIV/0!"},{"$f":"(#REF!)","v":{"$error":"#REF!"}},null,null,null,null,null,{"$error":"#DIV/0!"},{"$f":"(#REF!)","v":{"$error":"#REF!"}}]
["    TOTAL COUNT",null,null,null,null,null,"    TOTAL COUNT",null,null,null,null,null,null,"    TOTAL COUNT",null,null,null,null,null,"    TOTAL COUNT",null,null,null,null,null,null,"    TOTAL COUNT",null,null,null,null,null,null,"    TOTAL COUNT",null,null,null,null,null,null,null,"    TOTAL COUNT",null,null,null,null,null,null,"    TOTAL COUNT",null,null,null,null,null,null,null,"    TOTAL COUNT",null,null,null,null,null,null,"    TOTAL COUNT",null,null,null,null,null,null,null,"TOTAL COUNT",null,null,null,null,null,null,"    TOTAL COUNT",null,null,null,null,null,null,null,"    TOTAL COUNT",null,null,null,null,null,"    TOTAL COUNT",null,null,null,null,null,null,"    TOTAL COUNT",null,null,null,null,null,null,"    TOTAL COUNT",null,null,null,null,null,null,"    TOTAL COUNT",null,null,null,null,null,"    TOTAL COUNT",null,null,null,null,null,null,"    TOTAL COUNT"]
[{"$f":"SUM(A19:A28)","v":0},{"$f":"SUM(B19:B28)","v":0},null,null,null,null,{"$f":"SUM(G19:G28)","v":0},{"$f":"SUM(H19:H28)","v":0},null,null,null,null,null,{"$f":"SUM(N19:N28)","v":0},{"$f":"SUM(O19:O28)","v":0},null,null,null,null,{"$f":"SUM(T19:T28)","v":0},{"$f":"SUM(U19:U28)","v":0},null,null,null,null,null,{"$f":"SUM(AA19:AA28)","v":0},{"$f":"SUM(AB19:AB28)","v":0},null,null,null,null,null,{"$f":"SUM(AH19:AH28)","v":0},{"$f":"SUM(AI19:AI28)","v":0},null,null,null,null,null,null,{"$f":"SUM(AP19:AP28)","v":0},{"$f":"SUM(AQ19:AQ28)","v":0},null,null,null,null,null,{"$f":"SUM(AW19:AW28)","v":0},{"$f":"SUM(AX19:AX28)","v":0},null,null,null,null,null,null,{"$f":"SUM(BE19:BE28)","v":0},{"$f":"SUM(BF19:BF28)","v":0},null,null,null,null,null,{"$f":"SUM(BL19:BL28)","v":0},{"$f":"SUM(BM19:BM28)","v":0},null,null,null,null,null,null,{"$f":"SUM(BT19:BT28)","v":0},{"$f":"SUM(BU19:BU28)","v":0},null,null,null,null,null,{"$f":"SUM(CA19:CA28)","v":0},{"$f":"SUM(CB19:CB28)","v":0},null,null,null,null,null,null,{"$f":"SUM(CI19:CI28)","v":0},{"$f":"SUM(CJ19:CJ28)","v":0},null,null,null,null,{"$f":"SUM(CO19:CO28)","v":0},{"$f":"SUM(CP19:CP28)","v":0},null,null,null,null,null,{"$f":"SUM(CV19:CV28)","v":0},{"$f":"SUM(CW19:CW28)","v":0},null,null,null,null,null,{"$f":"SUM(DC19:DC28)","v":0},{"$f":"SUM(DD19:DD28)","v":0},null,null,null,null,null,{"$f":"SUM(DJ19:DJ28)","v":0},{"$f":"SUM(DK19:DK28)","v":0},null,null,null,null,{"$f":"SUM(DP19:DP28)","v":0},{"$f":"SUM(DQ19:DQ28)","v":0},null,null,null,null,null,{"$f":"SUM(DW19:DW28)","v":0},{"$f":"SUM(DX19:DX28)","v":0}]
[]
[" TOTAL PERCENTAGE",null,null,null,null,null," TOTAL PERCENTAGE",null,null,null,null,null,null," TOTAL PERCENTAGE",null,null,null,null,null," TOTAL PERCENTAGE",null,null,null,null,null,null," TOTAL PERCENTAGE",null,null,null,null,null,null," TOTAL PERCENTAGE",null,null,null,null,null,null,null," TOTAL PERCENTAGE",null,null,null,null,null,null," TOTAL PERCENTAGE",null,null,null,null,null,null,null," TOTAL PERCENTAGE",null,null,null,null,null,null," TOTAL PERCENTAGE",null,null,null,null,null,null,null," TOTAL PERCENTAGE",null,null,null,null,null,null," TOTAL PERCENTAGE",null,null,null,null,null,null,null," TOTAL PERCENTAGE",null,null,null,null,null," TOTAL PERCENTAGE",null,null,null,null,null,null," TOTAL PERCENTAGE",null,null,null,null,null,null," TOTAL PERCENTAGE",null,null,null,null,null,null," TOTAL PERCENTAGE",null,null,null,null,null," TOTAL PERCENTAGE",null,null,null,null,null,null," TOTAL PERCENTAGE"]
[{"$f":"IF(ROUND((B34),4)<=0.9943,ROUND((B34),4),IF((B34)<1,0.99,IF((B34)=1,1,(B33))))","v":{"$error":"#DIV/0!"}},{"$f":"ROUND(SUM(A19:A28)/SUM(B19:B28),4)","v":{"$error":"#DIV/0!"}},null,null,null,null,{"$f":"IF(ROUND((H34),4)<=0.9943,ROUND((H34),4),IF((H34)<1,0.99,IF((H34)=1,1,(H33))))","v":{"$error":"#DIV/0!"}},{"$f":"ROUND(SUM(G19:G28)/SUM(H19:H28),4)","v":{"$error":"#DIV/0!"}},null,null,null,null,null,{"$f":"IF(ROUND((O34),4)<=0.9943,ROUND((O34),4),IF((O34)<1,0.99,IF((O34)=1,1,(O33))))","v":{"$error":"#DIV/0!"}},{"$f":"ROUND(SUM(N19:N28)/SUM(O19:O28),4)","v":{"$error":"#DIV/0!"}},null,null,null,null,{"$f":"IF(ROUND((U34),4)<=0.9943,ROUND((U34),4),IF((U34)<1,0.99,IF((U34)=1,1,(U33))))","v":{"$error":"#DIV/0!"}},{"$f":"ROUND(SUM(T19:T28)/SUM(U19:U28),4)","v":{"$error":"#DIV/0!"}},null,null,null,null,null,{"$f":"IF(ROUND((AB34),4)<=0.9943,ROUND((AB34),4),IF((AB34)<1,0.99,IF((AB34)=1,1,(AB33))))","v":{"$error":"#DIV/0!"}},{"$f":"ROUND(SUM(AA19:AA28)/SUM(AB19:AB28),4)","v":{"$error":"#DIV/0!"}},null,null,null,null,null,{"$f":"IF(ROUND((AI34),4)<=0.9943,ROUND((AI34),4),IF((AI34)<1,0.99,IF((AI34)=1,1,(AI33))))","v":{"$error":"#DIV/0!"}},{"$f":"ROUND(SUM(AH19:AH28)/SUM(AI19:AI28),4)","v":{"$error":"#DIV/0!"}},null,null,null,null,null,null,{"$f":"IF(ROUND((AQ34),4)<=0.9943,ROUND((AQ34),4),IF((AQ34)<1,0.99,IF((AQ34)=1,1,(AQ33))))","v":{"$error":"#DIV/0!"}},{"$f":"ROUND(SUM(AP19:AP28)/SUM(AQ19:AQ28),4)","v":{"$error":"#DIV/0!"}},null,null,null,null,null,{"$f":"IF(ROUND((AX34),4)<=0.9943,ROUND((AX34),4),IF((AX34)<1,0.99,IF((AX34)=1,1,(AX33))))","v":{"$error":"#DIV/0!"}},{"$f":"ROUND(SUM(AW19:AW28)/SUM(AX19:AX28),4)","v":{"$error":"#DIV/0!"}},null,null,null,null,null,null,{"$f":"IF(ROUND((BF34),4)<=0.9943,ROUND((BF34),4),IF((BF34)<1,0.99,IF((BF34)=1,1,(BF33))))","v":{"$error":"#DIV/0!"}},{"$f":"ROUND(SUM(BE19:BE28)/SUM(BF19:BF28),4)","v":{"$error":"#DIV/0!"}},null,null,null,null,null,{"$f":"IF(ROUND((BM34),4)<=0.9943,ROUND((BM34),4),IF((BM34)<1,0.99,IF((BM34)=1,1,(BM33))))","v":{"$error":"#DIV/0!"}},{"$f":"ROUND(SUM(BL19:BL28)/SUM(BM19:BM28),4)","v":{"$error":"#DIV/0!"}},null,null,null,null,null,null,{"$f":"IF(ROUND((BU34),4)<=0.9943,ROUND((BU34),4),IF((BU34)<1,0.99,IF((BU34)=1,1,(BU33))))","v":{"$error":"#DIV/0!"}},{"$f":"ROUND(SUM(BT19:BT28)/SUM(BU19:BU28),4)","v":{"$error":"#DIV/0!"}},null,null,null,null,null,{"$f":"IF(ROUND((CB34),4)<=0.9943,ROUND((CB34),4),IF((CB34)<1,0.99,IF((CB34)=1,1,(CB33))))","v":{"$error":"#DIV/0!"}},{"$f":"ROUND(SUM(CA19:CA28)/SUM(CB19:CB28),4)","v":{"$error":"#DIV/0!"}},null,null,null,null,null,null,{"$f":"IF(ROUND((CJ34),4)<=0.9943,ROUND((CJ34),4),IF((CJ34)<1,0.99,IF((CJ34)=1,1,(CJ33))))","v":{"$error":"#DIV/0!"}},{"$f":"ROUND(SUM(CI19:CI28)/SUM(CJ19:CJ28),4)","v":{"$error":"#DIV/0!"}},null,null,null,null,{"$f":"IF(ROUND((CP34),4)<=0.9943,ROUND((CP34),4),IF((CP34)<1,0.99,IF((CP34)=1,1,(CP33))))","v":{"$error":"#DIV/0!"}},{"$f":"ROUND(SUM(CO19:CO28)/SUM(CP19:CP28),4)","v":{"$error":"#DIV/0!"}},null,null,null,null,null,{"$f":"IF(ROUND((CW34),4)<=0.9943,ROUND((CW34),4),IF((CW34)<1,0.99,IF((CW34)=1,1,(CW33))))","v":{"$error":"#DIV/0!"}},{"$f":"ROUND(SUM(CV19:CV28)/SUM(CW19:CW28),4)","v":{"$error":"#DIV/0!"}},null,null,null,null,null,{"$f":"IF(ROUND((DD34),4)<=0.9943,ROUND((DD34),4),IF((DD34)<1,0.99,IF((DD34)=1,1,(DD33))))","v":{"$error":"#DIV/0!"}},{"$f":"ROUND(SUM(DC19:DC28)/SUM(DD19:DD28),4)","v":{"$error":"#DIV/0!"}},null,null,null,null,null,{"$f":"IF(ROUND((DK34),4)<=0.9943,ROUND((DK34),4),IF((DK34)<1,0.99,IF((DK34)=1,1,(DK33))))","v":{"$error":"#DIV/0!"}},{"$f":"ROUND(SUM(DJ19:DJ28)/SUM(DK19:DK28),4)","v":{"$error":"#DIV/0!"}},null,null,null,null,{"$f":"IF(ROUND((DQ34),4)<=0.9943,ROUND((DQ34),4),IF((DQ34)<1,0.99,IF((DQ34)=1,1,(DQ33))))","v":{"$error":"#DIV/0!"}},{"$f":"ROUND(SUM(DP19:DP28)/SUM(DQ19:DQ28),4)","v":{"$error":"#DIV/0!"}},null,null,null,null,null,{"$f":"IF(ROUND((DX34),4)<=0.9943,ROUND((DX34),4),IF((DX34)<1,0.99,IF((DX34)=1,1,(DX33))))","v":{"$error":"#DIV/0!"}},{"$f":"ROUND(SUM(DW19:DW28)/SUM(DX19:DX28),4)","v":{"$error":"#DIV/0!"}}]
[" B5 M/C TIRES ON LINE",null,null,null,null,null," B6 M/C BUMPER INTERSPACING 10\"",null,null,null,null,null,null," B7 M/C WINDOWS AND DOORS CLOSED",null,null,null,null,null," B8 M/C NO VEHICLE SHUTTLING",null,null,null,null,null,null," B9 M/C BAYING PERSONNEL CLOTHING CONDITION",null,null,null,null,null,null," B10 M/C UNATTENDED VEHICLES RUNNING IN PRE-BAY",null,null,null,null,null,null,null," C1 M/C CONDITION OF CLOTHING AND GLOVES",null,null,null,null,null,null," C2 M/C NO CELL PHONES TEXTING/MP3 LOUNGING/SMOKING",null,null,null,null,null,null,null," C3 M/C NO VEHICLE SHUTTLING",null,null,null,null,null,null," C4 M/C DOOR OPENING CAREFUL DRIVERS SEAT TO REAR",null,null,null,null,null,null,null," C5 M/C RAMP AREA SPEEDS",null,null,null,null,null,null," C6 M/C SPEEDS THROUGH MULTI-LEVELS",null,null,null,null,null,null,null," C7 M/C APPROACH-GROUND TO RAMP & RAMP TO DECK",null,null,null,null,null," C8 M/C BUMPER INTERSPACING 3\"",null,null,null,null,null,null," C9 M/C ROOF CLEARANCE (with chocks) 3\"",null,null,null,null,null,null," C10 M/C END DOOR CLEARANCE 5\"",null,null,null,null,null,null," C11 M/C VEHICLES POSITIONED PROPERLY",null,null,null,null,null," C12 M/C PARKING BRAKE ENGAGED",null,null,null,null,null,null," C13 M/C WINDOWS AND DOORS CLOSED"]
[null,null,{"$f":"ROUND((A36/B36),4)","v":{"$error":"#DIV/0!"}},{"$f":"(#REF!)","v":{"$error":"#REF!"}},null,null,null,null,{"$f":"ROUND((G36/H36),4)","v":{"$error":"#DIV/0!"}},{"$f":"(#REF!)","v":{"$error":"#REF!"}},null,null,null,null,null,{"$f":"ROUND((N36/O36),4)","v":{"$error":"#DIV/0!"}},{"$f":"(#REF!)","v":{"$error":"#REF!"}},null,null,null,null,{"$f":"ROUND((T36/U36),4)","v":{"$error":"#DIV/0!"}},{"$f":"(#REF!)","v":{"$error":"#REF!"}},null,null,null,null,null,{"$f":"ROUND((AA36/AB36),4)","v":{"$error":"#DIV/0!"}},{"$f":"(#REF!)","v":{"$error":"#REF!"}},null,null,null,null,null,{"$f":"ROUND((AH36/AI36),4)","v":{"$error":"#DIV/0!"}},{"$f":"(#REF!)","v":{"$error":"#REF!"}},null,null,null,null,null,null,{"$f":"ROUND((AP36/AQ36),4)","v":{"$error":"#DIV/0!"}},{"$f":"(#REF!)","v":{"$error":"#REF!"}},null,null,null,null,null,{"$f":"ROUND((AW36/AX36),4)","v":{"$error":"#DIV/0!"}},{"$f":"(#REF!)","v":{"$error":"#REF!"}},null,null,null,null,null,null,{"$f":"ROUND((BE36/BF36),4)","v":{"$error":"#DIV/0!"}},{"$f":"(#REF!)","v":{"$error":"#REF!"}},null,null,null,null,null,{"$f":"ROUND((BL36/BM36),4)","v":{"$error":"#DIV/0!"}},{"$f":"(#REF!)","v":{"$error":"#REF!"}},null,null,null,null,{"$f":"('US. Speed Sheet'!D53)","v":0},{"$f":"('US. Speed Sheet'!D50)","v":0},{"$f":"ROUND((BT36/BU36),4)","v":{"$error":"#DIV/0!"}},{"$f":"(#REF!)","v":{"$error":"#REF!"}},null,null,null,{"$f":"('US. Speed Sheet'!F53)","v":0},{"$f":"('US. Speed Sheet'!F50)","v":0},{"$f":"ROUND((CA36/CB36),4)","v":{"$error":"#DIV/0!"}},{"$f":"(#REF!)","v":{"$error":"#REF!"}},null,null,null,null,null,null,{"$f":"ROUND((CI36/CJ36),4)","v":{"$error":"#DIV/0!"}},{"$f":"(#REF!)","v":{"$error":"#REF!"}},null,null,null,null,{"$f":"ROUND((CO36/CP36),4)","v":{"$error":"#DIV/0!"}},{"$f":"(#REF!)","v":{"$error":"#REF!"}},null,null,null,null,null,{"$f":"ROUND((CV36/CW36),4)","v":{"$error":"#DIV/0!"}},{"$f":"(#REF!)","v":{"$error":"#REF!"}},null,null,null,null,null,{"$f":"ROUND((DC36/DD36),4)","v":{"$error":"#DIV/0!"}},{"$f":"(#REF!)","v":{"$error":"#REF!"}},null,null,null,null,null,{"$f":"ROUND((DJ36/DK36),4)","v":{"$error":"#DIV/0!"}},{"$f":"(#REF!)","v":{"$error":"#REF!"}},null,null,null,null,{"$f":"ROUND((DP36/DQ36),4)","v":{"$error":"#DIV/0!"}},{"$f":"(#REF!)","v":{"$error":"#REF!"}},null,null,null,null,null,{"$f":"ROUND((DW36/DX36),4)","v":{"$error":"#DIV/0!"}},{"$f":"(#REF!)","v":{"$error":"#REF!"}}]
[null,null,{"$error":"#DIV/0!"},{"$f":"(#REF!)","v":{"$error":"#REF!"}},null,null,null,null,{"$error":"#DIV/0!"},{"$f":"(#REF!)","v":{"$error":"#REF!"}},null,null,null,null,null,{"$error":"#DIV/0!"},{"$f":"(#REF!)","v":{"$error":"#REF!"}},null,null,null,null,{"$error":"#DIV/0!"},{"$f":"(#REF!)","v":{"$error":"#REF!"}},null,null,null,null,null,{"$error":"#DIV/0!"},{"$f":"(#REF!)","v":{"$error":"#REF!"}},null,null,null,null,null,{"$error":"#DIV/0!"},{"$f":"(#REF!)","v":{"$error":"#REF!"}},null,null,null,null,null,null,{"$error":"#DIV/0!"},{"$f":"(#REF!)","v":{"$error":"#REF!"}},null,null,null,null,null,{"$error":"#DIV/0!"},{"$f":"(#REF!)","v":{"$error":"#REF!"}},null,null,null,null,null,null,{"$error":"#DIV/0!"},{"$f":"(#REF!)","v":{"$error":"#REF!"}},null,null,null,null,null,{"$error":"#DIV/0!"},{"$f":"(#REF!)","v":{"$error":"#REF!"}},null,null,null,null,null,null,{"$error":"#DIV/0!"},{"$f":"(#REF!)","v":{"$error":"#REF!"}},"High Speed MPH",{"$f":"('US. Speed Sheet'!D46)","v":0},null,null,null,{"$error":"#DIV/0!"},{"$f":"(#REF!)","v":{"$error":"#REF!"}},"High Speed MPH",{"$f":"('US. Speed Sheet'!F46)","v":0},null,null,null,null,{"$error":"#DIV/0!"},{"$f":"(#REF!)","v":{"$error":"#REF!"}},null,null,null,null,{"$error":"#DIV/0!"},{"$f":"(#REF!)","v":{"$error":"#REF!"}},null,null,null,null,null,{"$error":"#DIV/0!"},{"$f":"(#REF!)","v":{"$error":"#REF!"}},null,null,null,null,null,{"$error":"#DIV/0!"},{"$f":"(#REF!)","v":{"$error":"#REF!"}},null,null,null,null,null,{"$error":"#DIV/0!"},{"$f":"(#REF!)","v":{"$error":"#REF!"}},null,null,null,null,{"$error":"#DIV/0!"},{"$f":"(#REF!)","v":{"$error":"#REF!"}},null,null,null,null,null,{"$error":"#DIV/0!"},{"$f":"(#REF!)","v":{"$error":"#REF!"}}]
[null,null,{"$error":"#DIV/0!"},{"$f":"(#REF!)","v":{"$error":"#REF!"}},null,null,null,null,{"$error":"#DIV/0!"},{"$f":"(#REF!)","v":{"$error":"#REF!"}},null,null,null,null,null,{"$error":"#DIV/0!"},{"$f":"(#REF!)","v":{"$error":"#REF!"}},null,null,null,null,{"$error":"#DIV/0!"},{"$f":"(#REF!)","v":{"$error":"#REF!"}},null,null,null,null,null,{"$error":"#DIV/0!"},{"$f":"(#REF!)","v":{"$error":"#REF!"}},null,null,null,null,null,{"$error":"#DIV/0!"},{"$f":"(#REF!)","v":{"$error":"#REF!"}},null,null,null,null,null,null,{"$error":"#DIV/0!"},{"$f":"(#REF!)","v":{"$error":"#REF!"}},null,null,null,null,null,{"$error":"#DIV/0!"},{"$f":"(#REF!)","v":{"$error":"#REF!"}},null,null,null,null,null,null,{"$error":"#DIV/0!"},{"$f":"(#REF!)","v":{"$error":"#REF!"}},null,null,null,null,null,{"$error":"#DIV/0!"},{"$f":"(#REF!)","v":{"$error":"#REF!"}},null,null,null,null,null,null,{"$error":"#DIV/0!"},{"$f":"(#REF!)","v":{"$error":"#REF!"}},"Low Speed MPH",{"$f":"('US. Speed Sheet'!D47)","v":0},null,null,null,{"$error":"#DIV/0!"},{"$f":"(#REF!)","v":{"$error":"#REF!"}},"Low Speed MPH",{"$f":"('US. Speed Sheet'!F47)","v":0},null,null,null,null,{"$error":"#DIV/0!"},{"$f":"(#REF!)","v":{"$error":"#REF!"}},null,null,null,null,{"$error":"#DIV/0!"},{"$f":"(#REF!)","v":{"$error":"#REF!"}},null,null,null,null,null,{"$error":"#DIV/0!"},{"$f":"(#REF!)","v":{"$error":"#REF!"}},null,null,null,null,null,{"$error":"#DIV/0!"},{"$f":"(#REF!)","v":{"$error":"#REF!"}},null,null,null,null,null,{"$error":"#DIV/0!"},{"$f":"(#REF!)","v":{"$error":"#REF!"}},null,null,null,null,{"$error":"#DIV/0!"},{"$f":"(#REF!)","v":{"$error":"#REF!"}},null,null,null,null,null,{"$error":"#DIV/0!"},{"$f":"(#REF!)","v":{"$error":"#REF!"}}]
[null,null,{"$error":"#DIV/0!"},{"$f":"(#REF!)","v":{"$error":"#REF!"}},null,null,null,null,{"$error":"#DIV/0!"},{"$f":"(#REF!)","v":{"$error":"#REF!"}},null,null,null,null,null,{"$error":"#DIV/0!"},{"$f":"(#REF!)","v":{"$error":"#REF!"}},null,null,null,null,{"$error":"#DIV/0!"},{"$f":"(#REF!)","v":{"$error":"#REF!"}},null,null,null,null,null,{"$error":"#DIV/0!"},{"$f":"(#REF!)","v":{"$error":"#REF!"}},null,null,null,null,null,{"$error":"#DIV/0!"},{"$f":"(#REF!)","v":{"$error":"#REF!"}},null,null,null,null,null,null,{"$error":"#DIV/0!"},{"$f":"(#REF!)","v":{"$error":"#REF!"}},null,null,null,null,null,{"$error":"#DIV/0!"},{"$f":"(#REF!)","v":{"$error":"#REF!"}},null,null,null,null,null,null,{"$error":"#DIV/0!"},{"$f":"(#REF!)","v":{"$error":"#REF!"}},null,null,null,null,null,{"$error":"#DIV/0!"},{"$f":"(#REF!)","v":{"$error":"#REF!"}},null,null,null,null,null,null,{"$error":"#DIV/0!"},{"$f":"(#REF!)","v":{"$error":"#REF!"}},"Average Speed MPH",{"$f":"('US. Speed Sheet'!D48)","v":{"$error":"#DIV/0!"}},null,null,null,{"$error":"#DIV/0!"},{"$f":"(#REF!)","v":{"$error":"#REF!"}},"Average Speed MPH",{"$f":"('US. Speed Sheet'!F48)","v":{"$error":"#DIV/0!"}},null,null,null,null,{"$error":"#DIV/0!"},{"$f":"(#REF!)","v":{"$error":"#REF!"}},null,null,null,null,{"$error":"#DIV/0!"},{"$f":"(#REF!)","v":{"$error":"#REF!"}},null,null,null,null,null,{"$error":"#DIV/0!"},{"$f":"(#REF!)","v":{"$error":"#REF!"}},null,null,null,null,null,{"$error":"#DIV/0!"},{"$f":"(#REF!)","v":{"$error":"#REF!"}},null,null,null,null,null,{"$error":"#DIV/0!"},{"$f":"(#REF!)","v":{"$error":"#REF!"}},null,null,null,null,{"$error":"#DIV/0!"},{"$f":"(#REF!)","v":{"$error":"#REF!"}},null,null,null,null,null,{"$error":"#DIV/0!"},{"$f":"(#REF!)","v":{"$error":"#REF!"}}]
[null,null,{"$error":"#DIV/0!"},{"$f":"(#REF!)","v":{"$error":"#REF!"}},null,null,null,null,{"$error":"#DIV/0!"},{"$f":"(#REF!)","v":{"$error":"#REF!"}},null,null,null,null,null,{"$error":"#DIV/0!"},{"$f":"(#REF!)","v":{"$error":"#REF!"}},null,null,null,null,{"$error":"#DIV/0!"},{"$f":"(#REF!)","v":{"$error":"#REF!"}},null,null,null,null,null,{"$error":"#DIV/0!"},{"$f":"(#REF!)","v":{"$error":"#REF!"}},null,null,null,null,null,{"$error":"#DIV/0!"},{"$f":"(#REF!)","v":{"$error":"#REF!"}},"Cont. section\"B\" Preloading Bay Area",null,null,null,null,null,{"$error":"#DIV/0!"},{"$f":"(#REF!)","v":{"$error":"#REF!"}},null,null,null,null,null,{"$error":"#DIV/0!"},{"$f":"(#REF!)","v":{"$error":"#REF!"}},null,null,null,null,null,null,{"$error":"#DIV/0!"},{"$f":"(#REF!)","v":{"$error":"#REF!"}},null,null,null,null,null,{"$error":"#DIV/0!"},{"$f":"(#REF!)","v":{"$error":"#REF!"}},null,null,null,null,null,null,{"$error":"#DIV/0!"},{"$f":"(#REF!)","v":{"$error":"#REF!"}},null,null,null,null,null,{"$error":"#DIV/0!"},{"$f":"(#REF!)","v":{"$error":"#REF!"}},null,null,null,null,null,null,{"$error":"#DIV/0!"},{"$f":"(#REF!)","v":{"$error":"#REF!"}},null,null,null,null,{"$error":"#DIV/0!"},{"$f":"(#REF!)","v":{"$error":"#REF!"}},null,null,null,null,null,{"$error":"#DIV/0!"},{"$f":"(#REF!)","v":{"$error":"#REF!"}},null,null,null,null,null,{"$error":"#DIV/0!"},{"$f":"(#REF!)","v":{"$error":"#REF!"}},null,null,null,null,null,{"$error":"#DIV/0!"},{"$f":"(#REF!)","v":{"$error":"#REF!"}},null,null,null,null,{"$error":"#DIV/0!"},{"$f":"(#REF!)","v":{"$error":"#REF!"}},null,null,null,null,null,{"$error":"#DIV/0!"},{"$f":"(#REF!)","v":{"$error":"#REF!"}}]
[null,null,{"$error":"#DIV/0!"},{"$f":"(#REF!)","v":{"$error":"#REF!"}},null,null,null,null,{"$error":"#DIV/0!"},{"$f":"(#REF!)","v":{"$error":"#REF!"}},null,null,null,null,null,{"$error":"#DIV/0!"},{"$f":"(#REF!)","v":{"$error":"#REF!"}},null,null,null,null,{"$error":"#DIV/0!"},{"$f":"(#REF!)","v":{"$error":"#REF!"}},null,null,null,null,null,{"$error":"#DIV/0!"},{"$f":"(#REF!)","v":{"$error":"#REF!"}},null,null,null,null,null,{"$error":"#DIV/0!"},{"$f":"(#REF!)","v":{"$error":"#REF!"}},{"$f":"('Facility Cover Sheet'!A47)","v":{"$error":"#DIV/0!"}},null,null,null,null,null,{"$error":"#DIV/0!"},{"$f":"(#REF!)","v":{"$error":"#REF!"}},null,null,null,null,null,{"$error":"#DIV/0!"},{"$f":"(#REF!)","v":{"$error":"#REF!"}},null,null,null,null,null,null,{"$error":"#DIV/0!"},{"$f":"(#REF!)","v":{"$error":"#REF!"}},null,null,null,null,null,{"$error":"#DIV/0!"},{"$f":"(#REF!)","v":{"$error":"#REF!"}},null,null,null,null,null,null,{"$error":"#DIV/0!"},{"$f":"(#REF!)","v":{"$error":"#REF!"}},null,null,null,null,null,{"$error":"#DIV/0!"},{"$f":"(#REF!)","v":{"$error":"#REF!"}},null,null,null,null,null,null,{"$error":"#DIV/0!"},{"$f":"(#REF!)","v":{"$error":"#REF!"}},null,null,null,null,{"$error":"#DIV/0!"},{"$f":"(#REF!)","v":{"$error":"#REF!"}},null,null,null,null,null,{"$error":"#DIV/0!"},{"$f":"(#REF!)","v":{"$error":"#REF!"}},null,null,null,null,null,{"$error":"#DIV/0!"},{"$f":"(#REF!)","v":{"$error":"#REF!"}},null,null,null,null,null,{"$error":"#DIV/0!"},{"$f":"(#REF!)","v":{"$error":"#REF!"}},null,null,null,null,{"$error":"#DIV/0!"},{"$f":"(#REF!)","v":{"$error":"#REF!"}},null,null,null,null,null,{"$error":"#DIV/0!"},{"$f":"(#REF!)","v":{"$error":"#REF!"}}]
[null,null,{"$error":"#DIV/0!"},{"$f":"(#REF!)","v":{"$error":"#REF!"}},null,null,null,null,{"$error":"#DIV/0!"},{"$f":"(#REF!)","v":{"$error":"#REF!"}},null,null,null,null,null,{"$error":"#DIV/0!"},{"$f":"(#REF!)","v":{"$error":"#REF!"}},null,null,null,null,{"$error":"#DIV/0!"},{"$f":"(#REF!)","v":{"$error":"#REF!"}},null,null,null,null,null,{"$error":"#DIV/0!"},{"$f":"(#REF!)","v":{"$error":"#REF!"}},null,null,null,null,null,{"$error":"#DIV/0!"},{"$f":"(#REF!)","v":{"$error":"#REF!"}},null,null,null,null,null,null,{"$error":"#DIV/0!"},{"$f":"(#REF!)","v":{"$error":"#REF!"}},null,null,null,null,null,{"$error":"#DIV/0!"},{"$f":"(#REF!)","v":{"$error":"#REF!"}},null,null,null,null,null,null,{"$error":"#DIV/0!"},{"$f":"(#REF!)","v":{"$error":"#REF!"}},null,null,null,null,null,{"$error":"#DIV/0!"},{"$f":"(#REF!)","v":{"$error":"#REF!"}},null,null,null,null,null,null,{"$error":"#DIV/0!"},{"$f":"(#REF!)","v":{"$error":"#REF!"}},null,null,null,null,null,{"$error":"#DIV/0!"},{"$f":"(#REF!)","v":{"$error":"#REF!"}},null,null,null,null,null,null,{"$error":"#DIV/0!"},{"$f":"(#REF!)","v":{"$error":"#REF!"}},null,null,null,null,{"$error":"#DIV/0!"},{"$f":"(#REF!)","v":{"$error":"#REF!"}},null,null,null,null,null,{"$error":"#DIV/0!"},{"$f":"(#REF!)","v":{"$error":"#REF!"}},null,null,null,null,null,{"$error":"#DIV/0!"},{"$f":"(#REF!)","v":{"$error":"#REF!"}},null,null,null,null,null,{"$error":"#DIV/0!"},{"$f":"(#REF!)","v":{"$error":"#REF!"}},null,null,null,null,{"$error":"#DIV/0!"},{"$f":"(#REF!)","v":{"$error":"#REF!"}},null,null,null,null,null,{"$error":"#DIV/0!"},{"$f":"(#REF!)","v":{"$error":"#REF!"}}]
[null,null,{"$error":"#DIV/0!"},{"$f":"(#REF!)","v":{"$error":"#REF!"}},null,null,null,null,{"$error":"#DIV/0!"},{"$f":"(#REF!)","v":{"$error":"#REF!"}},null,null,null,null,null,{"$error":"#DIV/0!"},{"$f":"(#REF!)","v":{"$error":"#REF!"}},null,null,null,null,{"$error":"#DIV/0!"},{"$f":"(#REF!)","v":{"$error":"#REF!"}},null,null,null,null,null,{"$error":"#DIV/0!"},{"$f":"(#REF!)","v":{"$error":"#REF!"}},null,null,null,null,null,{"$error":"#DIV/0!"},{"$f":"(#REF!)","v":{"$error":"#REF!"}},null,null,null,null,null,null,{"$error":"#DIV/0!"},{"$f":"(#REF!)","v":{"$error":"#REF!"}},null,null,null,null,null,{"$error":"#DIV/0!"},{"$f":"(#REF!)","v":{"$error":"#REF!"}},null,null,null,null,null,null,{"$error":"#DIV/0!"},{"$f":"(#REF!)","v":{"$error":"#REF!"}},null,null,null,null,null,{"$error":"#DIV/0!"},{"$f":"(#REF!)","v":{"$error":"#REF!"}},null,null,null,null,null,null,{"$error":"#DIV/0!"},{"$f":"(#REF!)","v":{"$error":"#REF!"}},null,null,null,null,null,{"$error":"#DIV/0!"},{"$f":"(#REF!)","v":{"$error":"#REF!"}},null,null,null,null,null,null,{"$error":"#DIV/0!"},{"$f":"(#REF!)","v":{"$error":"#REF!"}},null,null,null,null,{"$error":"#DIV/0!"},{"$f":"(#REF!)","v":{"$error":"#REF!"}},null,null,null,null,null,{"$error":"#DIV/0!"},{"$f":"(#REF!)","v":{"$error":"#REF!"}},null,null,null,null,null,{"$error":"#DIV/0!"},{"$f":"(#REF!)","v":{"$error":"#REF!"}},null,null,null,null,null,{"$error":"#DIV/0!"},{"$f":"(#REF!)","v":{"$error":"#REF!"}},null,null,null,null,{"$error":"#DIV/0!"},{"$f":"(#REF!)","v":{"$error":"#REF!"}},null,null,null,null,null,{"$error":"#DIV/0!"},{"$f":"(#REF!)","v":{"$error":"#REF!"}}]
[null,null,{"$error":"#DIV/0!"},{"$f":"(#REF!)","v":{"$error":"#REF!"}},null,null,null,null,{"$error":"#DIV/0!"},{"$f":"(#REF!)","v":{"$error":"#REF!"}},null,null,null,null,null,{"$error":"#DIV/0!"},{"$f":"(#REF!)","v":{"$error":"#REF!"}},null,null,null,null,{"$error":"#DIV/0!"},{"$f":"(#REF!)","v":{"$error":"#REF!"}},null,null,null,null,null,{"$error":"#DIV/0!"},{"$f":"(#REF!)","v":{"$error":"#REF!"}},null,null,null,null,null,{"$error":"#DIV/0!"},{"$f":"(#REF!)","v":{"$error":"#REF!"}},null,null,null,null,null,null,{"$error":"#DIV/0!"},{"$f":"(#REF!)","v":{"$error":"#REF!"}},null,null,null,null,null,{"$error":"#DIV/0!"},{"$f":"(#REF!)","v":{"$error":"#REF!"}},null,null,null,null,null,null,{"$error":"#DIV/0!"},{"$f":"(#REF!)","v":{"$error":"#REF!"}},null,null,null,null,null,{"$error":"#DIV/0!"},{"$f":"(#REF!)","v":{"$error":"#REF!"}},null,null,null,null,null,null,{"$error":"#DIV/0!"},{"$f":"(#REF!)","v":{"$error":"#REF!"}},null,null,null,null,null,{"$error":"#DIV/0!"},{"$f":"(#REF!)","v":{"$error":"#REF!"}},null,null,null,null,null,null,{"$error":"#DIV/0!"},{"$f":"(#REF!)","v":{"$error":"#REF!"}},null,null,null,null,{"$error":"#DIV/0!"},{"$f":"(#REF!)","v":{"$error":"#REF!"}},null,null,null,null,null,{"$error":"#DIV/0!"},{"$f":"(#REF!)","v":{"$error":"#REF!"}},null,null,null,null,null,{"$error":"#DIV/0!"},{"$f":"(#REF!)","v":{"$error":"#REF!"}},null,null,null,null,null,{"$error":"#DIV/0!"},{"$f":"(#REF!)","v":{"$error":"#REF!"}},null,null,null,null,{"$error":"#DIV/0!"},{"$f":"(#REF!)","v":{"$error":"#REF!"}},null,null,null,null,null,{"$error":"#DIV/0!"},{"$f":"(#REF!)","v":{"$error":"#REF!"}}]
[null,null,{"$error":"#DIV/0!"},{"$f":"(#REF!)","v":{"$error":"#REF!"}},null,null,null,null,{"$error":"#DIV/0!"},{"$f":"(#REF!)","v":{"$error":"#REF!"}},null,null,null,null,null,{"$error":"#DIV/0!"},{"$f":"(#REF!)","v":{"$error":"#REF!"}},null,null,null,null,{"$error":"#DIV/0!"},{"$f":"(#REF!)","v":{"$error":"#REF!"}},null,null,null,null,null,{"$error":"#DIV/0!"},{"$f":"(#REF!)","v":{"$error":"#REF!"}},null,null,null,null,null,{"$error":"#DIV/0!"},{"$f":"(#REF!)","v":{"$error":"#REF!"}},null,null,null,null,null,null,{"$error":"#DIV/0!"},{"$f":"(#REF!)","v":{"$error":"#REF!"}},null,null,null,null,null,{"$error":"#DIV/0!"},{"$f":"(#REF!)","v":{"$error":"#REF!"}},null,null,null,null,null,null,{"$error":"#DIV/0!"},{"$f":"(#REF!)","v":{"$error":"#REF!"}},null,null,null,null,null,{"$error":"#DIV/0!"},{"$f":"(#REF!)","v":{"$error":"#REF!"}},null,null,null,null,null,null,{"$error":"#DIV/0!"},{"$f":"(#REF!)","v":{"$error":"#REF!"}},null,null,null,null,null,{"$error":"#DIV/0!"},{"$f":"(#REF!)","v":{"$error":"#REF!"}},null,null,null,null,null,null,{"$error":"#DIV/0!"},{"$f":"(#REF!)","v":{"$error":"#REF!"}},null,null,null,null,{"$error":"#DIV/0!"},{"$f":"(#REF!)","v":{"$error":"#REF!"}},null,null,null,null,null,{"$error":"#DIV/0!"},{"$f":"(#REF!)","v":{"$error":"#REF!"}},null,null,null,null,null,{"$error":"#DIV/0!"},{"$f":"(#REF!)","v":{"$error":"#REF!"}},null,null,null,null,null,{"$error":"#DIV/0!"},{"$f":"(#REF!)","v":{"$error":"#REF!"}},null,null,null,null,{"$error":"#DIV/0!"},{"$f":"(#REF!)","v":{"$error":"#REF!"}},null,null,null,null,null,{"$error":"#DIV/0!"},{"$f":"(#REF!)","v":{"$error":"#REF!"}}]
[null,null,{"$error":"#DIV/0!"},{"$f":"(#REF!)","v":{"$error":"#REF!"}},null,null,null,null,{"$error":"#DIV/0!"},{"$f":"(#REF!)","v":{"$error":"#REF!"}},null,null,null,null,null,{"$error":"#DIV/0!"},{"$f":"(#REF!)","v":{"$error":"#REF!"}},null,null,null,null,{"$error":"#DIV/0!"},{"$f":"(#REF!)","v":{"$error":"#REF!"}},null,null,null,null,null,{"$error":"#DIV/0!"},{"$f":"(#REF!)","v":{"$error":"#REF!"}},null,null,null,null,null,{"$error":"#DIV/0!"},{"$f":"(#REF!)","v":{"$error":"#REF!"}},null,null,null,null,null,null,{"$error":"#DIV/0!"},{"$f":"(#REF!)","v":{"$error":"#REF!"}},null,null,null,null,null,{"$error":"#DIV/0!"},{"$f":"(#REF!)","v":{"$error":"#REF!"}},null,null,null,null,null,null,{"$error":"#DIV/0!"},{"$f":"(#REF!)","v":{"$error":"#REF!"}},null,null,null,null,null,{"$error":"#DIV/0!"},{"$f":"(#REF!)","v":{"$error":"#REF!"}},null,null,null,null,null,null,{"$error":"#DIV/0!"},{"$f":"(#REF!)","v":{"$error":"#REF!"}},null,null,null,null,null,{"$error":"#DIV/0!"},{"$f":"(#REF!)","v":{"$error":"#REF!"}},null,null,null,null,null,null,{"$error":"#DIV/0!"},{"$f":"(#REF!)","v":{"$error":"#REF!"}},null,null,null,null,{"$error":"#DIV/0!"},{"$f":"(#REF!)","v":{"$error":"#REF!"}},null,null,null,null,null,{"$error":"#DIV/0!"},{"$f":"(#REF!)","v":{"$error":"#REF!"}},null,null,null,null,null,{"$error":"#DIV/0!"},{"$f":"(#REF!)","v":{"$error":"#REF!"}},null,null,null,null,null,{"$error":"#DIV/0!"},{"$f":"(#REF!)","v":{"$error":"#REF!"}},null,null,null,null,{"$error":"#DIV/0!"},{"$f":"(#REF!)","v":{"$error":"#REF!"}},null,null,null,null,null,{"$error":"#DIV/0!"},{"$f":"(#REF!)","v":{"$error":"#REF!"}}]
["    TOTAL COUNT",null,null,null,null,null,"    TOTAL COUNT",null,null,null,null,null,null,"    TOTAL COUNT",null,null,null,null,null,"    TOTAL COUNT",null,null,null,null,null,null,"    TOTAL COUNT",null,null,null,null,null,null,"    TOTAL COUNT",null,null,null,null,null,null,null,"    TOTAL COUNT",null,null,null,null,null,null,"    TOTAL COUNT",null,null,null,null,null,null,null,"    TOTAL COUNT",null,null,null,null,null,null,"    TOTAL COUNT",null,null,null,null,null,null,null,"    TOTAL COUNT",null,null,null,null,null,null,"    TOTAL COUNT",null,null,null,null,null,null,null,"    TOTAL COUNT",null,null,null,null,null,"    TOTAL COUNT",null,null,null,null,null,null,"    TOTAL COUNT",null,null,null,null,null,null,"    TOTAL COUNT",null,null,null,null,null,null,"    TOTAL COUNT",null,null,null,null,null,"    TOTAL COUNT",null,null,null,null,null,null,"    TOTAL COUNT"]
[{"$f":"SUM(A36:A45)","v":0},{"$f":"SUM(B36:B45)","v":0},null,null,null,null,{"$f":"SUM(G36:G45)","v":0},{"$f":"SUM(H36:H45)","v":0},null,null,null,null,null,{"$f":"SUM(N36:N45)","v":0},{"$f":"SUM(O36:O45)","v":0},null,null,null,null,{"$f":"SUM(T36:T45)","v":0},{"$f":"SUM(U36:U45)","v":0},null,null,null,null,null,{"$f":"SUM(AA36:AA45)","v":0},{"$f":"SUM(AB36:AB45)","v":0},null,null,null,null,null,{"$f":"SUM(AH36:AH45)","v":0},{"$f":"SUM(AI36:AI45)","v":0},null,null,null,null,null,null,{"$f":"SUM(AP36:AP45)","v":0},{"$f":"SUM(AQ36:AQ45)","v":0},null,null,null,null,null,{"$f":"SUM(AW36:AW45)","v":0},{"$f":"SUM(AX36:AX45)","v":0},null,null,null,null,null,null,{"$f":"SUM(BE36:BE45)","v":0},{"$f":"SUM(BF36:BF45)","v":0},null,null,null,null,null,{"$f":"SUM(BL36:BL45)","v":0},{"$f":"SUM(BM36:BM45)","v":0},null,null,null,null,null,null,{"$f":"SUM(BT36:BT45)","v":0},{"$f":"SUM(BU36:BU45)","v":0},null,null,null,null,null,{"$f":"SUM(CA36:CA45)","v":0},{"$f":"SUM(CB36:CB45)","v":0},null,null,null,null,null,null,{"$f":"SUM(CI36:CI45)","v":0},{"$f":"SUM(CJ36:CJ45)","v":0},null,null,null,null,{"$f":"SUM(CO36:CO45)","v":0},{"$f":"SUM(CP36:CP45)","v":0},null,null,null,null,null,{"$f":"SUM(CV36:CV45)","v":0},{"$f":"SUM(CW36:CW45)","v":0},null,null,null,null,null,{"$f":"SUM(DC36:DC45)","v":0},{"$f":"SUM(DD36:DD45)","v":0},null,null,null,null,null,{"$f":"SUM(DJ36:DJ45)","v":0},{"$f":"SUM(DK36:DK45)","v":0},null,null,null,null,{"$f":"SUM(DP36:DP45)","v":0},{"$f":"SUM(DQ36:DQ45)","v":0},null,null,null,null,null,{"$f":"SUM(DW36:DW45)","v":0},{"$f":"SUM(DX36:DX45)","v":0}]
[]
[" TOTAL PERCENTAGE",null,null,null,null,null," TOTAL PERCENTAGE",null,null,null,null,null,null," TOTAL PERCENTAGE",null,null,null,null,null," TOTAL PERCENTAGE",null,null,null,null,null,null," TOTAL PERCENTAGE",null,null,null,null,null,null," TOTAL PERCENTAGE",null,null,null,null,null,null,null," TOTAL PERCENTAGE",null,null,null,null,null,null," TOTAL PERCENTAGE",null,null,null,null,null,null,null," TOTAL PERCENTAGE",null,null,null,null,null,null," TOTAL PERCENTAGE",null,null,null,null,null,null,null," TOTAL PERCENTAGE",null,null,null,null,null,null," TOTAL PERCENTAGE",null,null,null,null,null,null,null," TOTAL PERCENTAGE",null,null,null,null,null," TOTAL PERCENTAGE",null,null,null,null,null,null," TOTAL PERCENTAGE",null,null,null,null,null,null," TOTAL PERCENTAGE",null,null,null,null,null,null," TOTAL PERCENTAGE",null,null,null,null,null," TOTAL PERCENTAGE",null,null,null,null,null,null," TOTAL PERCENTAGE"]
[{"$f":"IF(ROUND((B51),4)<=0.9943,ROUND((B51),4),IF((B51)<1,0.99,IF((B51)=1,1,(B50))))","v":{"$error":"#DIV/0!"}},{"$f":"ROUND(SUM(A36:A45)/SUM(B36:B45),4)","v":{"$error":"#DIV/0!"}},null,null,null,null,{"$f":"IF(ROUND((H51),4)<=0.9943,ROUND((H51),4),IF((H51)<1,0.99,IF((H51)=1,1,(H50))))","v":{"$error":"#DIV/0!"}},{"$f":"ROUND(SUM(G36:G45)/SUM(H36:H45),4)","v":{"$error":"#DIV/0!"}},null,null,null,null,null,{"$f":"IF(ROUND((O51),4)<=0.9943,ROUND((O51),4),IF((O51)<1,0.99,IF((O51)=1,1,(O50))))","v":{"$error":"#DIV/0!"}},{"$f":"ROUND(SUM(N36:N45)/SUM(O36:O45),4)","v":{"$error":"#DIV/0!"}},null,null,null,null,{"$f":"IF(ROUND((U51),4)<=0.9943,ROUND((U51),4),IF((U51)<1,0.99,IF((U51)=1,1,(U50))))","v":{"$error":"#DIV/0!"}},{"$f":"ROUND(SUM(T36:T45)/SUM(U36:U45),4)","v":{"$error":"#DIV/0!"}},null,null,null,null,null,{"$f":"IF(ROUND((AB51),4)<=0.9943,ROUND((AB51),4),IF((AB51)<1,0.99,IF((AB51)=1,1,(AB50))))","v":{"$error":"#DIV/0!"}},{"$f":"ROUND(SUM(AA36:AA45)/SUM(AB36:AB45),4)","v":{"$error":"#DIV/0!"}},null,null,null,null,null,{"$f":"IF(ROUND((AI51),4)<=0.9943,ROUND((AI51),4),IF((AI51)<1,0.99,IF((AI51)=1,1,(AI50))))","v":{"$error":"#DIV/0!"}},{"$f":"ROUND(SUM(AH36:AH45)/SUM(AI36:AI45),4)","v":{"$error":"#DIV/0!"}},null,null,null,null,null,null,{"$f":"IF(ROUND((AQ51),4)<=0.9943,ROUND((AQ51),4),IF((AQ51)<1,0.99,IF((AQ51)=1,1,(AQ50))))","v":{"$error":"#DIV/0!"}},{"$f":"ROUND(SUM(AP36:AP45)/SUM(AQ36:AQ45),4)","v":{"$error":"#DIV/0!"}},null,null,null,null,null,{"$f":"IF(ROUND((AX51),4)<=0.9943,ROUND((AX51),4),IF((AX51)<1,0.99,IF((AX51)=1,1,(AX50))))","v":{"$error":"#DIV/0!"}},{"$f":"ROUND(SUM(AW36:AW45)/SUM(AX36:AX45),4)","v":{"$error":"#DIV/0!"}},null,null,null,null,null,null,{"$f":"IF(ROUND((BF51),4)<=0.9943,ROUND((BF51),4),IF((BF51)<1,0.99,IF((BF51)=1,1,(BF50))))","v":{"$error":"#DIV/0!"}},{"$f":"ROUND(SUM(BE36:BE45)/SUM(BF36:BF45),4)","v":{"$error":"#DIV/0!"}},null,null,null,null,null,{"$f":"IF(ROUND((BM51),4)<=0.9943,ROUND((BM51),4),IF((BM51)<1,0.99,IF((BM51)=1,1,(BM50))))","v":{"$error":"#DIV/0!"}},{"$f":"ROUND(SUM(BL36:BL45)/SUM(BM36:BM45),4)","v":{"$error":"#DIV/0!"}},null,null,null,null,null,null,{"$f":"IF(ROUND((BU51),4)<=0.9943,ROUND((BU51),4),IF((BU51)<1,0.99,IF((BU51)=1,1,(BU50))))","v":{"$error":"#DIV/0!"}},{"$f":"ROUND(SUM(BT36:BT45)/SUM(BU36:BU45),4)","v":{"$error":"#DIV/0!"}},null,null,null,null,null,{"$f":"IF(ROUND((CB51),4)<=0.9943,ROUND((CB51),4),IF((CB51)<1,0.99,IF((CB51)=1,1,(CB50))))","v":{"$error":"#DIV/0!"}},{"$f":"ROUND(SUM(CA36:CA45)/SUM(CB36:CB45),4)","v":{"$error":"#DIV/0!"}},null,null,null,null,null,null,{"$f":"IF(ROUND((CJ51),4)<=0.9943,ROUND((CJ51),4),IF((CJ51)<1,0.99,IF((CJ51)=1,1,(CJ50))))","v":{"$error":"#DIV/0!"}},{"$f":"ROUND(SUM(CI36:CI45)/SUM(CJ36:CJ45),4)","v":{"$error":"#DIV/0!"}},null,null,null,null,{"$f":"IF(ROUND((CP51),4)<=0.9943,ROUND((CP51),4),IF((CP51)<1,0.99,IF((CP51)=1,1,(CP50))))","v":{"$error":"#DIV/0!"}},{"$f":"ROUND(SUM(CO36:CO45)/SUM(CP36:CP45),4)","v":{"$error":"#DIV/0!"}},null,null,null,null,null,{"$f":"IF(ROUND((CW51),4)<=0.9943,ROUND((CW51),4),IF((CW51)<1,0.99,IF((CW51)=1,1,(CW50))))","v":{"$error":"#DIV/0!"}},{"$f":"ROUND(SUM(CV36:CV45)/SUM(CW36:CW45),4)","v":{"$error":"#DIV/0!"}},null,null,null,null,null,{"$f":"IF(ROUND((DD51),4)<=0.9943,ROUND((DD51),4),IF((DD51)<1,0.99,IF((DD51)=1,1,(DD50))))","v":{"$error":"#DIV/0!"}},{"$f":"ROUND(SUM(DC36:DC45)/SUM(DD36:DD45),4)","v":{"$error":"#DIV/0!"}},null,null,null,null,null,{"$f":"IF(ROUND((DK51),4)<=0.9943,ROUND((DK51),4),IF((DK51)<1,0.99,IF((DK51)=1,1,(DK50))))","v":{"$error":"#DIV/0!"}},{"$f":"ROUND(SUM(DJ36:DJ45)/SUM(DK36:DK45),4)","v":{"$error":"#DIV/0!"}},null,null,null,null,{"$f":"IF(ROUND((DQ51),4)<=0.9943,ROUND((DQ51),4),IF((DQ51)<1,0.99,IF((DQ51)=1,1,(DQ50))))","v":{"$error":"#DIV/0!"}},{"$f":"ROUND(SUM(DP36:DP45)/SUM(DQ36:DQ45),4)","v":{"$error":"#DIV/0!"}},null,null,null,null,null,{"$f":"IF(ROUND((DX51),4)<=0.9943,ROUND((DX51),4),IF((DX51)<1,0.99,IF((DX51)=1,1,(DX50))))","v":{"$error":"#DIV/0!"}},{"$f":"ROUND(SUM(DW36:DW45)/SUM(DX36:DX45),4)","v":{"$error":"#DIV/0!"}}]
[" C14 M/C AVOID TOUCHING VEHICLES",null,null,null,null,null," C15 ARE VEHICLES SHUTOFF WHEN UNATTENDED",null,null,null,null,null,null," D1 M/C SECUREMENT POST LOADING INSP. PERFORMED ",null,null,null,null,null," D2 M/C DEVICES/CHKS LOCKED & POSITIONED PROPERLY",null,null,null,null,null,null," D3 M/C HARNESS APPLIED & TENSIONED PROPERLY",null,null,null,null,null,null," D4 HOOKS/HARNESS CLEARANCE 1\"",null,null,null,null,null,null,null," D5 EXTRA CHOCKS STORED PROPERLY",null,null,null,null,null,null," A1 FP VEHICLE SECURITY INSPECTION-UPON EXIT",null,null,null,null,null,null,null," A2 FP GATES CLOSED AND LOCKED WHEN NOT IN USE",null,null,null,null,null,null," A3 FP PAVEMENT CONDITION",null,null,null,null,null,null,null," A4 FP STORAGE AREA CLEAN",null,null,null,null,null,null," A5 FP LOADING RAMP CONDITION",null,null,null,null,null,null,null,"A6 FP BRIDGE PLATE CONDITION/MEETS STANDARDS",null,null,null,null,null," A7 FP SECUREMENT TOOLS COVERED",null,null,null,null,null,null," A8 FP CORRECT KEY HANDLING ",null,null,null,null,null,null," A9 FP GREEN SEALS USED AT THIS FACILITY",null,null,null,null,null,null,"  A10. Is AAR/TTCI Website used for Training Purposes"]
[null,null,{"$f":"ROUND((A53/B53),4)","v":{"$error":"#DIV/0!"}},{"$f":"(#REF!)","v":{"$error":"#REF!"}},null,null,null,null,{"$f":"ROUND((G53/H53),4)","v":{"$error":"#DIV/0!"}},{"$f":"(#REF!)","v":{"$error":"#REF!"}},null,null,null,null,null,{"$f":"ROUND((N53/O53),4)","v":{"$error":"#DIV/0!"}},{"$f":"(#REF!)","v":{"$error":"#REF!"}},null,null,null,null,{"$f":"ROUND((T53/U53),4)","v":{"$error":"#DIV/0!"}},{"$f":"(#REF!)","v":{"$error":"#REF!"}},null,null,null,null,null,{"$f":"ROUND((AA53/AB53),4)","v":{"$error":"#DIV/0!"}},{"$f":"(#REF!)","v":{"$error":"#REF!"}},null,null,null,null,null,{"$f":"ROUND((AH53/AI53),4)","v":{"$error":"#DIV/0!"}},{"$f":"(#REF!)","v":{"$error":"#REF!"}},null,null,null,null,null,null,{"$f":"ROUND((AP53/AQ53),4)","v":{"$error":"#DIV/0!"}},{"$f":"(#REF!)","v":{"$error":"#REF!"}},null,null,null,null,null,{"$f":"ROUND((AW53/AX53),4)","v":{"$error":"#DIV/0!"}},{"$f":"(#REF!)","v":{"$error":"#REF!"}},null,null,null,null,null,null,{"$f":"ROUND((BE53/BF53),4)","v":{"$error":"#DIV/0!"}},{"$f":"(#REF!)","v":{"$error":"#REF!"}},null,null,null,null,null,{"$f":"ROUND((BL53/BM53),4)","v":{"$error":"#DIV/0!"}},{"$f":"(#REF!)","v":{"$error":"#REF!"}},null,null,null,null,null,null,{"$f":"ROUND((BT53/BU53),4)","v":{"$error":"#DIV/0!"}},{"$f":"(#REF!)","v":{"$error":"#REF!"}},null,null,null,null,null,{"$f":"ROUND((CA53/CB53),4)","v":{"$error":"#DIV/0!"}},{"$f":"(#REF!)","v":{"$error":"#REF!"}},null,null,null,null,null,null,{"$f":"ROUND((CI53/CJ53),4)","v":{"$error":"#DIV/0!"}},{"$f":"(#REF!)","v":{"$error":"#REF!"}},null,null,null,null,{"$f":"ROUND((CO53/CP53),4)","v":{"$error":"#DIV/0!"}},{"$f":"(#REF!)","v":{"$error":"#REF!"}},null,null,null,null,null,{"$f":"ROUND((CV53/CW53),4)","v":{"$error":"#DIV/0!"}},{"$f":"(#REF!)","v":{"$error":"#REF!"}},null,null,null,null,null,{"$f":"ROUND((DC53/DD53),4)","v":{"$error":"#DIV/0!"}},{"$f":"(#REF!)","v":{"$error":"#REF!"}},null,null,null,null,null,{"$f":"ROUND((DJ53/DK53),4)","v":{"$error":"#DIV/0!"}},{"$f":"(#REF!)","v":{"$error":"#REF!"}},null,null,null,null,{"$f":"ROUND((DP53/DQ53),4)","v":{"$error":"#DIV/0!"}},{"$f":"(#REF!)","v":{"$error":"#REF!"}},null,null,null,null,null,{"$f":"ROUND((DW53/DX53),4)","v":{"$error":"#DIV/0!"}},{"$f":"(#REF!)","v":{"$error":"#REF!"}}]
[null,null,{"$error":"#DIV/0!"},{"$f":"(#REF!)","v":{"$error":"#REF!"}},null,null,null,null,{"$error":"#DIV/0!"},{"$f":"(#REF!)","v":{"$error":"#REF!"}},null,null,null,null,null,{"$error":"#DIV/0!"},{"$f":"(#REF!)","v":{"$error":"#REF!"}},null,null,null,null,{"$error":"#DIV/0!"},{"$f":"(#REF!)","v":{"$error":"#REF!"}},null,null,null,null,null,{"$error":"#DIV/0!"},{"$f":"(#REF!)","v":{"$error":"#REF!"}},null,null,null,null,null,{"$error":"#DIV/0!"},{"$f":"(#REF!)","v":{"$error":"#REF!"}},null,null,null,null,null,null,{"$error":"#DIV/0!"},{"$f":"(#REF!)","v":{"$error":"#REF!"}},null,null,null,null,null,{"$error":"#DIV/0!"},{"$f":"(#REF!)","v":{"$error":"#REF!"}},null,null,null,null,null,null,{"$error":"#DIV/0!"},{"$f":"(#REF!)","v":{"$error":"#REF!"}},null,null,null,null,null,{"$error":"#DIV/0!"},{"$f":"(#REF!)","v":{"$error":"#REF!"}},null,null,null,null,null,null,{"$error":"#DIV/0!"},{"$f":"(#REF!)","v":{"$error":"#REF!"}},null,null,null,null,null,{"$error":"#DIV/0!"},{"$f":"(#REF!)","v":{"$error":"#REF!"}},null,null,null,null,null,null,{"$error":"#DIV/0!"},{"$f":"(#REF!)","v":{"$error":"#REF!"}},null,null,null,null,{"$error":"#DIV/0!"},{"$f":"(#REF!)","v":{"$error":"#REF!"}},null,null,null,null,null,{"$error":"#DIV/0!"},{"$f":"(#REF!)","v":{"$error":"#REF!"}},null,null,null,null,null,{"$error":"#DIV/0!"},{"$f":"(#REF!)","v":{"$error":"#REF!"}},null,null,null,null,null,{"$error":"#DIV/0!"},{"$f":"(#REF!)","v":{"$error":"#REF!"}},null,null,null,null,{"$error":"#DIV/0!"},{"$f":"(#REF!)","v":{"$error":"#REF!"}},null,null,null,null,null,{"$error":"#DIV/0!"},{"$f":"(#REF!)","v":{"$error":"#REF!"}}]
[null,null,{"$error":"#DIV/0!"},{"$f":"(#REF!)","v":{"$error":"#REF!"}},null,null,null,null,{"$error":"#DIV/0!"},{"$f":"(#REF!)","v":{"$error":"#REF!"}},null,null,null,null,null,{"$error":"#DIV/0!"},{"$f":"(#REF!)","v":{"$error":"#REF!"}},null,null,null,null,{"$error":"#DIV/0!"},{"$f":"(#REF!)","v":{"$error":"#REF!"}},null,null,null,null,null,{"$error":"#DIV/0!"},{"$f":"(#REF!)","v":{"$error":"#REF!"}},null,null,null,null,null,{"$error":"#DIV/0!"},{"$f":"(#REF!)","v":{"$error":"#REF!"}},null,null,null,null,null,null,{"$error":"#DIV/0!"},{"$f":"(#REF!)","v":{"$error":"#REF!"}},null,null,null,null,null,{"$error":"#DIV/0!"},{"$f":"(#REF!)","v":{"$error":"#REF!"}},null,null,null,null,null,null,{"$error":"#DIV/0!"},{"$f":"(#REF!)","v":{"$error":"#REF!"}},null,null,null,null,null,{"$error":"#DIV/0!"},{"$f":"(#REF!)","v":{"$error":"#REF!"}},null,null,null,null,null,null,{"$error":"#DIV/0!"},{"$f":"(#REF!)","v":{"$error":"#REF!"}},null,null,null,null,null,{"$error":"#DIV/0!"},{"$f":"(#REF!)","v":{"$error":"#REF!"}},null,null,null,null,null,null,{"$error":"#DIV/0!"},{"$f":"(#REF!)","v":{"$error":"#REF!"}},null,null,null,null,{"$error":"#DIV/0!"},{"$f":"(#REF!)","v":{"$error":"#REF!"}},null,null,null,null,null,{"$error":"#DIV/0!"},{"$f":"(#REF!)","v":{"$error":"#REF!"}},null,null,null,null,null,{"$error":"#DIV/0!"},{"$f":"(#REF!)","v":{"$error":"#REF!"}},null,null,null,null,null,{"$error":"#DIV/0!"},{"$f":"(#REF!)","v":{"$error":"#REF!"}},null,null,null,null,{"$error":"#DIV/0!"},{"$f":"(#REF!)","v":{"$error":"#REF!"}},null,null,null,null,null,{"$error":"#DIV/0!"},{"$f":"(#REF!)","v":{"$error":"#REF!"}}]
[null,null,{"$error":"#DIV/0!"},{"$f":"(#REF!)","v":{"$error":"#REF!"}},null,null,null,null,{"$error":"#DIV/0!"},{"$f":"(#REF!)","v":{"$error":"#REF!"}},"Cont. section\"C\" Loading Procedures",null,null,null,null,{"$error":"#DIV/0!"},{"$f":"(#REF!)","v":{"$error":"#REF!"}},null,null,null,null,{"$error":"#DIV/0!"},{"$f":"(#REF!)","v":{"$error":"#REF!"}},null,null,null,null,null,{"$error":"#DIV/0!"},{"$f":"(#REF!)","v":{"$error":"#REF!"}},null,null,null,null,null,{"$error":"#DIV/0!"},{"$f":"(#REF!)","v":{"$error":"#REF!"}},null,null,null,null,null,null,{"$error":"#DIV/0!"},{"$f":"(#REF!)","v":{"$error":"#REF!"}},"Cont. section\"D\" Securement Procedures",null,null,null,null,{"$error":"#DIV/0!"},{"$f":"(#REF!)","v":{"$error":"#REF!"}},null,null,null,null,null,null,{"$error":"#DIV/0!"},{"$f":"(#REF!)","v":{"$error":"#REF!"}},null,null,null,null,null,{"$error":"#DIV/0!"},{"$f":"(#REF!)","v":{"$error":"#REF!"}},null,null,null,null,null,null,{"$error":"#DIV/0!"},{"$f":"(#REF!)","v":{"$error":"#REF!"}},null,null,null,null,null,{"$error":"#DIV/0!"},{"$f":"(#REF!)","v":{"$error":"#REF!"}},null,null,null,null,null,null,{"$error":"#DIV/0!"},{"$f":"(#REF!)","v":{"$error":"#REF!"}},null,null,null,null,{"$error":"#DIV/0!"},{"$f":"(#REF!)","v":{"$error":"#REF!"}},null,null,null,null,null,{"$error":"#DIV/0!"},{"$f":"(#REF!)","v":{"$error":"#REF!"}},null,null,null,null,null,{"$error":"#DIV/0!"},{"$f":"(#REF!)","v":{"$error":"#REF!"}},null,null,null,null,null,{"$error":"#DIV/0!"},{"$f":"(#REF!)","v":{"$error":"#REF!"}},null,null,null,null,{"$error":"#DIV/0!"},{"$f":"(#REF!)","v":{"$error":"#REF!"}},null,null,null,null,null,{"$error":"#DIV/0!"},{"$f":"(#REF!)","v":{"$error":"#REF!"}}]
[null,null,{"$error":"#DIV/0!"},{"$f":"(#REF!)","v":{"$error":"#REF!"}},null,null,null,null,{"$error":"#DIV/0!"},{"$f":"(#REF!)","v":{"$error":"#REF!"}},{"$f":"('Facility Cover Sheet'!G16)","v":{"$error":"#DIV/0!"}},null,null,null,null,{"$error":"#DIV/0!"},{"$f":"(#REF!)","v":{"$error":"#REF!"}},null,null,null,null,{"$error":"#DIV/0!"},{"$f":"(#REF!)","v":{"$error":"#REF!"}},null,null,null,null,null,{"$error":"#DIV/0!"},{"$f":"(#REF!)","v":{"$error":"#REF!"}},null,null,null,null,null,{"$error":"#DIV/0!"},{"$f":"(#REF!)","v":{"$error":"#REF!"}},null,null,null,null,null,null,{"$error":"#DIV/0!"},{"$f":"(#REF!)","v":{"$error":"#REF!"}},{"$f":"('Facility Cover Sheet'!G32)","v":{"$error":"#DIV/0!"}},null,null,null,null,{"$error":"#DIV/0!"},{"$f":"(#REF!)","v":{"$error":"#REF!"}},null,null,null,null,null,null,{"$error":"#DIV/0!"},{"$f":"(#REF!)","v":{"$error":"#REF!"}},null,null,null,null,null,{"$error":"#DIV/0!"},{"$f":"(#REF!)","v":{"$error":"#REF!"}},null,null,null,null,null,null,{"$error":"#DIV/0!"},{"$f":"(#REF!)","v":{"$error":"#REF!"}},null,null,null,null,null,{"$error":"#DIV/0!"},{"$f":"(#REF!)","v":{"$error":"#REF!"}},null,null,null,null,null,null,{"$error":"#DIV/0!"},{"$f":"(#REF!)","v":{"$error":"#REF!"}},null,null,null,null,{"$error":"#DIV/0!"},{"$f":"(#REF!)","v":{"$error":"#REF!"}},null,null,null,null,null,{"$error":"#DIV/0!"},{"$f":"(#REF!)","v":{"$error":"#REF!"}},null,null,null,null,null,{"$error":"#DIV/0!"},{"$f":"(#REF!)","v":{"$error":"#REF!"}},null,null,null,null,null,{"$error":"#DIV/0!"},{"$f":"(#REF!)","v":{"$error":"#REF!"}},"Facility Procedures Section \"A\"",null,null,null,{"$error":"#DIV/0!"},{"$f":"(#REF!)","v":{"$error":"#REF!"}},null,null,null,null,null,{"$error":"#DIV/0!"},{"$f":"(#REF!)","v":{"$error":"#REF!"}}]
[null,null,{"$error":"#DIV/0!"},{"$f":"(#REF!)","v":{"$error":"#REF!"}},null,null,null,null,{"$error":"#DIV/0!"},{"$f":"(#REF!)","v":{"$error":"#REF!"}},null,null,null,null,null,{"$error":"#DIV/0!"},{"$f":"(#REF!)","v":{"$error":"#REF!"}},null,null,null,null,{"$error":"#DIV/0!"},{"$f":"(#REF!)","v":{"$error":"#REF!"}},null,null,null,null,null,{"$error":"#DIV/0!"},{"$f":"(#REF!)","v":{"$error":"#REF!"}},null,null,null,null,null,{"$error":"#DIV/0!"},{"$f":"(#REF!)","v":{"$error":"#REF!"}},null,null,null,null,null,null,{"$error":"#DIV/0!"},{"$f":"(#REF!)","v":{"$error":"#REF!"}},null,null,null,null,null,{"$error":"#DIV/0!"},{"$f":"(#REF!)","v":{"$error":"#REF!"}},null,null,null,null,null,null,{"$error":"#DIV/0!"},{"$f":"(#REF!)","v":{"$error":"#REF!"}},null,null,null,null,null,{"$error":"#DIV/0!"},{"$f":"(#REF!)","v":{"$error":"#REF!"}},null,null,null,null,null,null,{"$error":"#DIV/0!"},{"$f":"(#REF!)","v":{"$error":"#REF!"}},null,null,null,null,null,{"$error":"#DIV/0!"},{"$f":"(#REF!)","v":{"$error":"#REF!"}},null,null,null,null,null,null,{"$error":"#DIV/0!"},{"$f":"(#REF!)","v":{"$error":"#REF!"}},null,null,null,null,{"$error":"#DIV/0!"},{"$f":"(#REF!)","v":{"$error":"#REF!"}},null,null,null,null,null,{"$error":"#DIV/0!"},{"$f":"(#REF!)","v":{"$error":"#REF!"}},null,null,null,null,null,{"$error":"#DIV/0!"},{"$f":"(#REF!)","v":{"$error":"#REF!"}},null,null,null,null,null,{"$error":"#DIV/0!"},{"$f":"(#REF!)","v":{"$error":"#REF!"}},{"$f":"('Facility Cover Sheet'!G38)","v":{"$error":"#DIV/0!"}},null,null,null,{"$error":"#DIV/0!"},{"$f":"(#REF!)","v":{"$error":"#REF!"}},null,null,null,null,null,{"$error":"#DIV/0!"},{"$f":"(#REF!)","v":{"$error":"#REF!"}}]
[null,null,{"$error":"#DIV/0!"},{"$f":"(#REF!)","v":{"$error":"#REF!"}},null,null,null,null,{"$error":"#DIV/0!"},{"$f":"(#REF!)","v":{"$error":"#REF!"}},null,null,null,null,null,{"$error":"#DIV/0!"},{"$f":"(#REF!)","v":{"$error":"#REF!"}},null,null,null,null,{"$error":"#DIV/0!"},{"$f":"(#REF!)","v":{"$error":"#REF!"}},null,null,null,null,null,{"$error":"#DIV/0!"},{"$f":"(#REF!)","v":{"$error":"#REF!"}},null,null,null,null,null,{"$error":"#DIV/0!"},{"$f":"(#REF!)","v":{"$error":"#REF!"}},null,null,null,null,null,null,{"$error":"#DIV/0!"},{"$f":"(#REF!)","v":{"$error":"#REF!"}},null,null,null,null,null,{"$error":"#DIV/0!"},{"$f":"(#REF!)","v":{"$error":"#REF!"}},null,null,null,null,null,null,{"$error":"#DIV/0!"},{"$f":"(#REF!)","v":{"$error":"#REF!"}},null,null,null,null,null,{"$error":"#DIV/0!"},{"$f":"(#REF!)","v":{"$error":"#REF!"}},null,null,null,null,null,null,{"$error":"#DIV/0!"},{"$f":"(#REF!)","v":{"$error":"#REF!"}},null,null,null,null,null,{"$error":"#DIV/0!"},{"$f":"(#REF!)","v":{"$error":"#REF!"}},null,null,null,null,null,null,{"$error":"#DIV/0!"},{"$f":"(#REF!)","v":{"$error":"#REF!"}},null,null,null,null,{"$error":"#DIV/0!"},{"$f":"(#REF!)","v":{"$error":"#REF!"}},null,null,null,null,null,{"$error":"#DIV/0!"},{"$f":"(#REF!)","v":{"$error":"#REF!"}},null,null,null,null,null,{"$error":"#DIV/0!"},{"$f":"(#REF!)","v":{"$error":"#REF!"}},null,null,null,null,null,{"$error":"#DIV/0!"},{"$f":"(#REF!)","v":{"$error":"#REF!"}},"Overall Score",null,null,null,{"$error":"#DIV/0!"},{"$f":"(#REF!)","v":{"$error":"#REF!"}},null,null,null,null,null,{"$error":"#DIV/0!"},{"$f":"(#REF!)","v":{"$error":"#REF!"}}]
[null,null,{"$error":"#DIV/0!"},{"$f":"(#REF!)","v":{"$error":"#REF!"}},null,null,null,null,{"$error":"#DIV/0!"},{"$f":"(#REF!)","v":{"$error":"#REF!"}},null,null,null,null,null,{"$error":"#DIV/0!"},{"$f":"(#REF!)","v":{"$error":"#REF!"}},null,null,null,null,{"$error":"#DIV/0!"},{"$f":"(#REF!)","v":{"$error":"#REF!"}},null,null,null,null,null,{"$error":"#DIV/0!"},{"$f":"(#REF!)","v":{"$error":"#REF!"}},null,null,null,null,null,{"$error":"#DIV/0!"},{"$f":"(#REF!)","v":{"$error":"#REF!"}},null,null,null,null,null,null,{"$error":"#DIV/0!"},{"$f":"(#REF!)","v":{"$error":"#REF!"}},null,null,null,null,null,{"$error":"#DIV/0!"},{"$f":"(#REF!)","v":{"$error":"#REF!"}},null,null,null,null,null,null,{"$error":"#DIV/0!"},{"$f":"(#REF!)","v":{"$error":"#REF!"}},null,null,null,null,null,{"$error":"#DIV/0!"},{"$f":"(#REF!)","v":{"$error":"#REF!"}},null,null,null,null,null,null,{"$error":"#DIV/0!"},{"$f":"(#REF!)","v":{"$error":"#REF!"}},null,null,null,null,null,{"$error":"#DIV/0!"},{"$f":"(#REF!)","v":{"$error":"#REF!"}},null,null,null,null,null,null,{"$error":"#DIV/0!"},{"$f":"(#REF!)","v":{"$error":"#REF!"}},null,null,null,null,{"$error":"#DIV/0!"},{"$f":"(#REF!)","v":{"$error":"#REF!"}},null,null,null,null,null,{"$error":"#DIV/0!"},{"$f":"(#REF!)","v":{"$error":"#REF!"}},null,null,null,null,null,{"$error":"#DIV/0!"},{"$f":"(#REF!)","v":{"$error":"#REF!"}},null,null,null,null,null,{"$error":"#DIV/0!"},{"$f":"(#REF!)","v":{"$error":"#REF!"}},{"$f":"('Facility Cover Sheet'!E2)","v":{"$error":"#DIV/0!"}},null,null,null,{"$error":"#DIV/0!"},{"$f":"(#REF!)","v":{"$error":"#REF!"}},null,null,null,null,null,{"$error":"#DIV/0!"},{"$f":"(#REF!)","v":{"$error":"#REF!"}}]
[null,null,{"$error":"#DIV/0!"},{"$f":"(#REF!)","v":{"$error":"#REF!"}},null,null,null,null,{"$error":"#DIV/0!"},{"$f":"(#REF!)","v":{"$error":"#REF!"}},null,null,null,null,null,{"$error":"#DIV/0!"},{"$f":"(#REF!)","v":{"$error":"#REF!"}},null,null,null,null,{"$error":"#DIV/0!"},{"$f":"(#REF!)","v":{"$error":"#REF!"}},null,null,null,null,null,{"$error":"#DIV/0!"},{"$f":"(#REF!)","v":{"$error":"#REF!"}},null,null,null,null,null,{"$error":"#DIV/0!"},{"$f":"(#REF!)","v":{"$error":"#REF!"}},null,null,null,null,null,null,{"$error":"#DIV/0!"},{"$f":"(#REF!)","v":{"$error":"#REF!"}},null,null,null,null,null,{"$error":"#DIV/0!"},{"$f":"(#REF!)","v":{"$error":"#REF!"}},null,null,null,null,null,null,{"$error":"#DIV/0!"},{"$f":"(#REF!)","v":{"$error":"#REF!"}},null,null,null,null,null,{"$error":"#DIV/0!"},{"$f":"(#REF!)","v":{"$error":"#REF!"}},null,null,null,null,null,null,{"$error":"#DIV/0!"},{"$f":"(#REF!)","v":{"$error":"#REF!"}},null,null,null,null,null,{"$error":"#DIV/0!"},{"$f":"(#REF!)","v":{"$error":"#REF!"}},null,null,null,null,null,null,{"$error":"#DIV/0!"},{"$f":"(#REF!)","v":{"$error":"#REF!"}},null,null,null,null,{"$error":"#DIV/0!"},{"$f":"(#REF!)","v":{"$error":"#REF!"}},null,null,null,null,null,{"$error":"#DIV/0!"},{"$f":"(#REF!)","v":{"$error":"#REF!"}},null,null,null,null,null,{"$error":"#DIV/0!"},{"$f":"(#REF!)","v":{"$error":"#REF!"}},null,null,null,null,null,{"$error":"#DIV/0!"},{"$f":"(#REF!)","v":{"$error":"#REF!"}},null,null,null,null,{"$error":"#DIV/0!"},{"$f":"(#REF!)","v":{"$error":"#REF!"}},null,null,null,null,null,{"$error":"#DIV/0!"},{"$f":"(#REF!)","v":{"$error":"#REF!"}}]
[null,null,{"$error":"#DIV/0!"},{"$f":"(#REF!)","v":{"$error":"#REF!"}},null,null,null,null,{"$error":"#DIV/0!"},{"$f":"(#REF!)","v":{"$error":"#REF!"}},null,null,null,null,null,{"$error":"#DIV/0!"},{"$f":"(#REF!)","v":{"$error":"#REF!"}},null,null,null,null,{"$error":"#DIV/0!"},{"$f":"(#REF!)","v":{"$error":"#REF!"}},null,null,null,null,null,{"$error":"#DIV/0!"},{"$f":"(#REF!)","v":{"$error":"#REF!"}},null,null,null,null,null,{"$error":"#DIV/0!"},{"$f":"(#REF!)","v":{"$error":"#REF!"}},null,null,null,null,null,null,{"$error":"#DIV/0!"},{"$f":"(#REF!)","v":{"$error":"#REF!"}},null,null,null,null,null,{"$error":"#DIV/0!"},{"$f":"(#REF!)","v":{"$error":"#REF!"}},null,null,null,null,null,null,{"$error":"#DIV/0!"},{"$f":"(#REF!)","v":{"$error":"#REF!"}},null,null,null,null,null,{"$error":"#DIV/0!"},{"$f":"(#REF!)","v":{"$error":"#REF!"}},null,null,null,null,null,null,{"$error":"#DIV/0!"},{"$f":"(#REF!)","v":{"$error":"#REF!"}},null,null,null,null,null,{"$error":"#DIV/0!"},{"$f":"(#REF!)","v":{"$error":"#REF!"}},null,null,null,null,null,null,{"$error":"#DIV/0!"},{"$f":"(#REF!)","v":{"$error":"#REF!"}},null,null,null,null,{"$error":"#DIV/0!"},{"$f":"(#REF!)","v":{"$error":"#REF!"}},null,null,null,null,null,{"$error":"#DIV/0!"},{"$f":"(#REF!)","v":{"$error":"#REF!"}},null,null,null,null,null,{"$error":"#DIV/0!"},{"$f":"(#REF!)","v":{"$error":"#REF!"}},null,null,null,null,null,{"$error":"#DIV/0!"},{"$f":"(#REF!)","v":{"$error":"#REF!"}},null,null,null,null,{"$error":"#DIV/0!"},{"$f":"(#REF!)","v":{"$error":"#REF!"}},null,null,null,null,null,{"$error":"#DIV/0!"},{"$f":"(#REF!)","v":{"$error":"#REF!"}}]
[null,null,{"$error":"#DIV/0!"},{"$f":"(#REF!)","v":{"$error":"#REF!"}},null,null,null,null,{"$error":"#DIV/0!"},{"$f":"(#REF!)","v":{"$error":"#REF!"}},null,null,null,null,null,{"$error":"#DIV/0!"},{"$f":"(#REF!)","v":{"$error":"#REF!"}},null,null,null,null,{"$error":"#DIV/0!"},{"$f":"(#REF!)","v":{"$error":"#REF!"}},null,null,null,null,null,{"$error":"#DIV/0!"},{"$f":"(#REF!)","v":{"$error":"#REF!"}},null,null,null,null,null,{"$error":"#DIV/0!"},{"$f":"(#REF!)","v":{"$error":"#REF!"}},null,null,null,null,null,null,{"$error":"#DIV/0!"},{"$f":"(#REF!)","v":{"$error":"#REF!"}},null,null,null,null,null,{"$error":"#DIV/0!"},{"$f":"(#REF!)","v":{"$error":"#REF!"}},null,null,null,null,null,null,{"$error":"#DIV/0!"},{"$f":"(#REF!)","v":{"$error":"#REF!"}},null,null,null,null,null,{"$error":"#DIV/0!"},{"$f":"(#REF!)","v":{"$error":"#REF!"}},null,null,null,null,null,null,{"$error":"#DIV/0!"},{"$f":"(#REF!)","v":{"$error":"#REF!"}},null,null,null,null,null,{"$error":"#DIV/0!"},{"$f":"(#REF!)","v":{"$error":"#REF!"}},null,null,null,null,null,null,{"$error":"#DIV/0!"},{"$f":"(#REF!)","v":{"$error":"#REF!"}},null,null,null,null,{"$error":"#DIV/0!"},{"$f":"(#REF!)","v":{"$error":"#REF!"}},null,null,null,null,null,{"$error":"#DIV/0!"},{"$f":"(#REF!)","v":{"$error":"#REF!"}},null,null,null,null,null,{"$error":"#DIV/0!"},{"$f":"(#REF!)","v":{"$error":"#REF!"}},null,null,null,null,null,{"$error":"#DIV/0!"},{"$f":"(#REF!)","v":{"$error":"#REF!"}},null,null,null,null,{"$error":"#DIV/0!"},{"$f":"(#REF!)","v":{"$error":"#REF!"}},null,null,null,null,null,{"$error":"#DIV/0!"},{"$f":"(#REF!)","v":{"$error":"#REF!"}}]
["    TOTAL COUNT",null,null,null,null,null,"    TOTAL COUNT",null,null,null,null,null,null,"    TOTAL COUNT",null,null,null,null,null,"    TOTAL COUNT",null,null,null,null,null,null,"    TOTAL COUNT",null,null,null,null,null,null,"    TOTAL COUNT",null,null,null,null,null,null,null,"    TOTAL COUNT",null,null,null,null,null,null,"    TOTAL COUNT",null,null,null,null,null,null,null,"    TOTAL COUNT",null,null,null,null,null,null,"    TOTAL COUNT",null,null,null,null,null,null,null,"    TOTAL COUNT",null,null,null,null,null,null,"    TOTAL COUNT",null,null,null,null,null,null,null,"    TOTAL COUNT",null,null,null,null,null,"    TOTAL COUNT",null,null,null,null,null,null,"    TOTAL COUNT",null,null,null,null,null,null,"    TOTAL COUNT",null,null,null,null,null,null,"    TOTAL COUNT",null,null,null,null,null,"    TOTAL COUNT",null,null,null,null,null,null,"    TOTAL COUNT"]
[{"$f":"SUM(A53:A62)","v":0},{"$f":"SUM(B53:B62)","v":0},null,null,null,null,{"$f":"SUM(G53:G62)","v":0},{"$f":"SUM(H53:H62)","v":0},null,null,null,null,null,{"$f":"SUM(N53:N62)","v":0},{"$f":"SUM(O53:O62)","v":0},null,null,null,null,{"$f":"SUM(T53:T62)","v":0},{"$f":"SUM(U53:U62)","v":0},null,null,null,null,null,{"$f":"SUM(AA53:AA62)","v":0},{"$f":"SUM(AB53:AB62)","v":0},null,null,null,null,null,{"$f":"SUM(AH53:AH62)","v":0},{"$f":"SUM(AI53:AI62)","v":0},null,null,null,null,null,null,{"$f":"SUM(AP53:AP62)","v":0},{"$f":"SUM(AQ53:AQ62)","v":0},null,null,null,null,null,{"$f":"SUM(AW53:AW62)","v":0},{"$f":"SUM(AX53:AX62)","v":0},null,null,null,null,null,null,{"$f":"SUM(BE53:BE62)","v":0},{"$f":"SUM(BF53:BF62)","v":0},null,null,null,null,null,{"$f":"SUM(BL53:BL62)","v":0},{"$f":"SUM(BM53:BM62)","v":0},null,null,null,null,null,null,{"$f":"SUM(BT53:BT62)","v":0},{"$f":"SUM(BU53:BU62)","v":0},null,null,null,null,null,{"$f":"SUM(CA53:CA62)","v":0},{"$f":"SUM(CB53:CB62)","v":0},null,null,null,null,null,null,{"$f":"SUM(CI53:CI62)","v":0},{"$f":"SUM(CJ53:CJ62)","v":0},null,null,null,null,{"$f":"SUM(CO53:CO62)","v":0},{"$f":"SUM(CP53:CP62)","v":0},null,null,null,null,null,{"$f":"SUM(CV53:CV62)","v":0},{"$f":"SUM(CW53:CW62)","v":0},null,null,null,null,null,{"$f":"SUM(DC53:DC62)","v":0},{"$f":"SUM(DD53:DD62)","v":0},null,null,null,null,null,{"$f":"SUM(DJ53:DJ62)","v":0},{"$f":"SUM(DK53:DK62)","v":0},null,null,null,null,{"$f":"SUM(DP53:DP62)","v":0},{"$f":"SUM(DQ53:DQ62)","v":0},null,null,null,null,null,{"$f":"SUM(DW53:DW62)","v":0},{"$f":"SUM(DX53:DX62)","v":0}]
[]
[" TOTAL PERCENTAGE",null,null,null,null,null," TOTAL PERCENTAGE",null,null,null,null,null,null," TOTAL PERCENTAGE",null,null,null,null,null," TOTAL PERCENTAGE",null,null,null,null,null,null," TOTAL PERCENTAGE",null,null,null,null,null,null," TOTAL PERCENTAGE",null,null,null,null,null,null,null," TOTAL PERCENTAGE",null,null,null,null,null,null," TOTAL PERCENTAGE",null,null,null,null,null,null,null," TOTAL PERCENTAGE",null,null,null,null,null,null," TOTAL PERCENTAGE",null,null,null,null,null,null,null," TOTAL PERCENTAGE",null,null,null,null,null,null," TOTAL PERCENTAGE",null,null,null,null,null,null,null," TOTAL PERCENTAGE",null,null,null,null,null," TOTAL PERCENTAGE",null,null,null,null,null,null," TOTAL PERCENTAGE",null,null,null,null,null,null," TOTAL PERCENTAGE",null,null,null,null,null,null," TOTAL PERCENTAGE",null,null,null,null,null," TOTAL PERCENTAGE",null,null,null,null,null,null," TOTAL PERCENTAGE"]
[{"$f":"IF(ROUND((B68),4)<=0.9943,ROUND((B68),4),IF((B68)<1,0.99,IF((B68)=1,1,(B67))))","v":{"$error":"#DIV/0!"}},{"$f":"ROUND(SUM(A53:A62)/SUM(B53:B62),4)","v":{"$error":"#DIV/0!"}},null,null,null,null,{"$f":"IF(ROUND((H68),4)<=0.9943,ROUND((H68),4),IF((H68)<1,0.99,IF((H68)=1,1,(H67))))","v":{"$error":"#DIV/0!"}},{"$f":"ROUND(SUM(G53:G62)/SUM(H53:H62),4)","v":{"$error":"#DIV/0!"}},null,null,null,null,null,{"$f":"IF(ROUND((O68),4)<=0.9943,ROUND((O68),4),IF((O68)<1,0.99,IF((O68)=1,1,(O67))))","v":{"$error":"#DIV/0!"}},{"$f":"ROUND(SUM(N53:N62)/SUM(O53:O62),4)","v":{"$error":"#DIV/0!"}},null,null,null,null,{"$f":"IF(ROUND((U68),4)<=0.9943,ROUND((U68),4),IF((U68)<1,0.99,IF((U68)=1,1,(U67))))","v":{"$error":"#DIV/0!"}},{"$f":"ROUND(SUM(T53:T62)/SUM(U53:U62),4)","v":{"$error":"#DIV/0!"}},null,null,null,null,null,{"$f":"IF(ROUND((AB68),4)<=0.9943,ROUND((AB68),4),IF((AB68)<1,0.99,IF((AB68)=1,1,(AB67))))","v":{"$error":"#DIV/0!"}},{"$f":"ROUND(SUM(AA53:AA62)/SUM(AB53:AB62),4)","v":{"$error":"#DIV/0!"}},null,null,null,null,null,{"$f":"IF(ROUND((AI68),4)<=0.9943,ROUND((AI68),4),IF((AI68)<1,0.99,IF((AI68)=1,1,(AI67))))","v":{"$error":"#DIV/0!"}},{"$f":"ROUND(SUM(AH53:AH62)/SUM(AI53:AI62),4)","v":{"$error":"#DIV/0!"}},null,null,null,null,null,null,{"$f":"IF(ROUND((AQ68),4)<=0.9943,ROUND((AQ68),4),IF((AQ68)<1,0.99,IF((AQ68)=1,1,(AQ67))))","v":{"$error":"#DIV/0!"}},{"$f":"ROUND(SUM(AP53:AP62)/SUM(AQ53:AQ62),4)","v":{"$error":"#DIV/0!"}},null,null,null,null,null,{"$f":"IF(ROUND((AX68),4)<=0.9943,ROUND((AX68),4),IF((AX68)<1,0.99,IF((AX68)=1,1,(AX67))))","v":{"$error":"#DIV/0!"}},{"$f":"ROUND(SUM(AW53:AW62)/SUM(AX53:AX62),4)","v":{"$error":"#DIV/0!"}},null,null,null,null,null,null,{"$f":"IF(ROUND((BF68),4)<=0.9943,ROUND((BF68),4),IF((BF68)<1,0.99,IF((BF68)=1,1,(BF67))))","v":{"$error":"#DIV/0!"}},{"$f":"ROUND(SUM(BE53:BE62)/SUM(BF53:BF62),4)","v":{"$error":"#DIV/0!"}},null,null,null,null,null,{"$f":"IF(ROUND((BM68),4)<=0.9943,ROUND((BM68),4),IF((BM68)<1,0.99,IF((BM68)=1,1,(BM67))))","v":{"$error":"#DIV/0!"}},{"$f":"ROUND(SUM(BL53:BL62)/SUM(BM53:BM62),4)","v":{"$error":"#DIV/0!"}},null,null,null,null,null,null,{"$f":"IF(ROUND((BU68),4)<=0.9943,ROUND((BU68),4),IF((BU68)<1,0.99,IF((BU68)=1,1,(BU67))))","v":{"$error":"#DIV/0!"}},{"$f":"ROUND(SUM(BT53:BT62)/SUM(BU53:BU62),4)","v":{"$error":"#DIV/0!"}},null,null,null,null,null,{"$f":"IF(ROUND((CB68),4)<=0.9943,ROUND((CB68),4),IF((CB68)<1,0.99,IF((CB68)=1,1,(CB67))))","v":{"$error":"#DIV/0!"}},{"$f":"ROUND(SUM(CA53:CA62)/SUM(CB53:CB62),4)","v":{"$error":"#DIV/0!"}},null,null,null,null,null,null,{"$f":"IF(ROUND((CJ68),4)<=0.9943,ROUND((CJ68),4),IF((CJ68)<1,0.99,IF((CJ68)=1,1,(CJ67))))","v":{"$error":"#DIV/0!"}},{"$f":"ROUND(SUM(CI53:CI62)/SUM(CJ53:CJ62),4)","v":{"$error":"#DIV/0!"}},null,null,null,null,{"$f":"IF(ROUND((CP68),4)<=0.9943,ROUND((CP68),4),IF((CP68)<1,0.99,IF((CP68)=1,1,(CP67))))","v":{"$error":"#DIV/0!"}},{"$f":"ROUND(SUM(CO53:CO62)/SUM(CP53:CP62),4)","v":{"$error":"#DIV/0!"}},null,null,null,null,null,{"$f":"IF(ROUND((CW68),4)<=0.9943,ROUND((CW68),4),IF((CW68)<1,0.99,IF((CW68)=1,1,(CW67))))","v":{"$error":"#DIV/0!"}},{"$f":"ROUND(SUM(CV53:CV62)/SUM(CW53:CW62),4)","v":{"$error":"#DIV/0!"}},null,null,null,null,null,{"$f":"IF(ROUND((DD68),4)<=0.9943,ROUND((DD68),4),IF((DD68)<1,0.99,IF((DD68)=1,1,(DD67))))","v":{"$error":"#DIV/0!"}},{"$f":"ROUND(SUM(DC53:DC62)/SUM(DD53:DD62),4)","v":{"$error":"#DIV/0!"}},null,null,null,null,null,{"$f":"IF(ROUND((DK68),4)<=0.9943,ROUND((DK68),4),IF((DK68)<1,0.99,IF((DK68)=1,1,(DK67))))","v":{"$error":"#DIV/0!"}},{"$f":"ROUND(SUM(DJ53:DJ62)/SUM(DK53:DK62),4)","v":{"$error":"#DIV/0!"}},null,null,null,null,{"$f":"IF(ROUND((DQ68),4)<=0.9943,ROUND((DQ68),4),IF((DQ68)<1,0.99,IF((DQ68)=1,1,(DQ67))))","v":{"$error":"#DIV/0!"}},{"$f":"ROUND(SUM(DP53:DP62)/SUM(DQ53:DQ62),4)","v":{"$error":"#DIV/0!"}},null,null,null,null,null,{"$f":"IF(ROUND((DX68),4)<=0.9943,ROUND((DX68),4),IF((DX68)<1,0.99,IF((DX68)=1,1,(DX67))))","v":{"$error":"#DIV/0!"}},{"$f":"ROUND(SUM(DW53:DW62)/SUM(DX53:DX62),4)","v":{"$error":"#DIV/0!"}}]
[]
[]
[]
[]
[]
[]
[]
[]
[]
[]
[]
[]
[]
[]
[]
[]
[]
[]
[]
[]
[]
[]
[]
[]
[]
[]
[]
[]
[]
[]
[]
[]
[]
[]
[]
[]
[]
[]
[]
[]
[]
[]
[]
[]
[]
[]
[]
[]
[]
[]
[]
[]
[]
[]
[]
[]
[]
[]
[]
[]
[]
[]
[]
[]
[]
[]
[]
[]
[]
[]
[]
[]
[]
[]
[]
[]
[]
[]
[]
[]
[]
[]
[]
[]
[]
[]
[]
[]
[]
[]
[]
[]
[]
[]
[]
[]
[]
[]
[]
[]
[]
[]
[]
[]
[]
[]
[]
[]
[]
[]
[]
[]
[]
[]
[]
[]
[]
[]
[]
[]
[]
[]
[]
[]
[]
[]
[]
[]
[]
[]
[]
[]
[]
[]
[]
[]
[]
[]
[]
[]
[]
[]
[]
[]
[]
[]
[]
[]
[]
[]
[]
[]
[]
[]
[]
[]
[]
[]
[]
[]
[]
[]
[]
[]
[]
[]
[]
[]
[]
[]
[]
[]
[]
[]
[]
[]
[]
[]
[]
[]
[]
[]
[]
[]
[]
[]
[]
[]
[]
[]
[]
[]
[]
[]
[]
[]
[]
[]
[]
[]
[]
[]
[]
[]
[]
[]
[]
[]
[]
[]
[]
[]
[]
[]
[]
[]
[]
[]
[]
[]
[]
[]
[]
[]
[]
[]
[]
[]
[]
[]
[]
[]
[]
[]
[null,null,null,null,null,null,null,null,null,null,null,null,null,null,null,null,null,null,null,null,null,null,null,null,null,null,null,null,null,null,null,null,null,null,null,null,null,null,null,null,null,null,null,null,null,null,null,null,null,null,null,null,null,null,null,null,null,null,null,null,null,null,null,null,null,null,null,null,null,null,null,null,null,null,null,null,null,null,null,null,null,null,null,null,null,null,null,null,null,null,null,null,null,null,null,null,{"$f":"6.25-3.75","v":2.5}]
[]
[]
[]
[]
[null,null,null,null,null,null,null,null,null,null,null,null,null,null,null,null,null,null,null,null,null,null,null,null,null,null,null,null,null,null,null,null,null,null,null,null,null,null,null,null,null,null,null,null,null,null,null,null,null,null,null,null,null,null,null,null,null,null,null,null,null,null,null,null,null,null,null,null,null,null,null,null,null,null,null,null,null,null,null,null,null,null,null,null,null,null,null,null,null,null,null,null,null,null,null,null,{"$f":"0.6*6.25","v":3.75}]

{"sheet":"Parts List","index":5,"n_rows":24,"n_cols":145,"rows_kept":24,"cut":false,"hidden":false,"merged":[[0,0,0,3],[1,0,1,5]]}
["Mech. Question Number 1 Tools & Material",null,null,null,null,null,null,null,null,null,null,{"$f":"COUNTIF((B3:B8),\"x\")","v":0},{"$f":"COUNTIF((D3:D7),\"x\")","v":0}]
[null,null,null,null,null,null,null,null,null,null,null,null,null,null,null,null,null,null,null,null,null,null,null,null,null,null,null,null,null,null,null,null,null,null,null,null,null,null,null,null,null,null,null,null,null,null,null,null,null,null,null,null,null,null,null,null,null,null,null,null,null,null,null,null,null,null,null,null,null,null,null,null,null,null,null,null,null,null,null,null,null,null,null,null,null,null,null,null,null,null,null,null,null,null,null,null,null,null,null,null,null,null,null,null,null,null,null,null,null,null,null,null,null,null,null,null,null,null,null,null,null,null,null,null,null,null,null,null,null,null,null,null,null,null,null,null,null,null,null,null,null,null,null,null,{"$f":"('Parts List'!B15)","v":0}]
["Grease Gun/Sprayer",null,"Ladder"," ",null,null,null,null,null,null,null,{"$f":"((L1)+(M1))","v":0},11]
["Operation Plan"," ","Broom/Shovel"," ",null,null,null,null,null,null,null,{"$f":"((L3)/(M3))","v":0}]
["Welder"," ","Blower"," "]
["Hand Tools"," ","Torch"," "]
["AWS D15.1 Welder Certification"," ","Manual"," "]
["Material Missing or not Meeting Current Specifications"," "]
[]
[]
[]
[]
["Dose Pretrip Have a Supply of all Required Chocks"]
["Tri-Level Chocks Legacy and Auto Flex",null,"Bi-Level Chocks"]
["SCT Co-Polymer Chocks/Clones",null,"Holden Grate Lock Chock"]
["Thrall Steel/Plastic/Clones",null,"Holden Grip Lock Chocks"]
["Zeftek Lo-Pro Co-Polymer",null,"Holland VRS Chocks"]
["Zeftek Lo-Pro Steel",null,"Zeftek Sta-Put w/o strap"]
["Zeftek Hybred"]
["Holland Tri-Lo "]
["Trinity Green"]
["Zeftek Sta-Put With Strap"]
["Holden Grip Lock Chocks"]
["Holland VRS "]

{"sheet":"US. Speed Sheet","index":6,"n_rows":55,"n_cols":12,"rows_kept":55,"cut":false,"hidden":false,"merged":[[4,1,4,4],[3,3,3,4],[0,0,0,4]]}
["ALL SPEEDS CALQULATED IN MPH",null,null,null,null,null,null,20]
["SPEEDS OF VEHICLES THROUGH FROM RELEASE GATE THROUGH STORAGE/RAMP AREA AND RAILCARS"]
[]
["Ramp Code: ",null,"Date: ",{"$f":"#REF!","v":{"$error":"#REF!"}}]
[null,"Place Posted Speed in Space Provided Below"]
["Release Gate =",null,"Storage and Ramp =",15,"Through RailCars =",5]
[]
["Release Gate ( Speeds MPH)",null,"Storage and Ramp (Speeds MPH)",null,"Through RailCars (Speeds MPH)"]
["Time Sec.","Speed (mph)","Time Sec.","Speed (mph)","Time Sec.","Speed (mph)"]
[null,{"$f":"IF(A10=0,\"NA\",ROUNDDOWN(61/A10,0))","v":"NA"},null,{"$f":"IF(C10=0,\"NA\",ROUNDDOWN(61/C10,0))","v":"NA"},null,{"$f":"IF(E10=0,\"NA\",ROUNDDOWN(61/E10,0))","v":"NA"},null,{"$f":"IF((D10)>(D6),(D10),(\"ERR\"))","v":"NA"},null,{"$f":"IF((F10)>F6,(F10),(\"ERR\"))","v":"NA"},null,{"$f":"IF((B10)>B6,(B10),(\"ERR\"))","v":"NA"}]
[null,{"$f":"IF(A11=0,\"NA\",ROUNDDOWN(61/A11,0))","v":"NA"},null,{"$f":"IF(C11=0,\"NA\",ROUNDDOWN(61/C11,0))","v":"NA"},null,{"$f":"IF(E11=0,\"NA\",ROUNDDOWN(61/E11,0))","v":"NA"},null,{"$f":"IF((D11)>(D6),(D11),(\"ERR\"))","v":"NA"},null,{"$f":"IF((F11)>F6,(F11),(\"ERR\"))","v":"NA"},null,{"$f":"IF((B11)>B6,(B11),(\"ERR\"))","v":"NA"}]
[null,"NA",null,"NA",null,"NA",null,{"$f":"IF((D12)>(D6),(D12),(\"ERR\"))","v":"NA"},null,{"$f":"IF((F12)>F6,(F12),(\"ERR\"))","v":"NA"},null,{"$f":"IF((B12)>B6,(B12),(\"ERR\"))","v":"NA"}]
[null,"NA",null,"NA",null,"NA",null,{"$f":"IF((D13)>(D6),(D13),(\"ERR\"))","v":"NA"},null,{"$f":"IF((F13)>F6,(F13),(\"ERR\"))","v":"NA"},null,{"$f":"IF((B13)>B6,(B13),(\"ERR\"))","v":"NA"}]
[null,"NA",null,"NA",null,"NA",null,{"$f":"IF((D14)>D6,(D14),(\"ERR\"))","v":"NA"},null,{"$f":"IF((F14)>F6,(F14),(\"ERR\"))","v":"NA"},null,{"$f":"IF((B14)>B6,(B14),(\"ERR\"))","v":"NA"}]
[null,"NA",null,"NA",null,"NA",null,{"$f":"IF((D15)>D6,(D15),(\"ERR\"))","v":"NA"},null,{"$f":"IF((F15)>F6,(F15),(\"ERR\"))","v":"NA"},null,{"$f":"IF((B15)>B6,(B15),(\"ERR\"))","v":"NA"}]
[null,"NA",null,"NA",null,"NA",null,{"$f":"IF((D16)>D6,(D16),(\"ERR\"))","v":"NA"},null,{"$f":"IF((F16)>F6,(F16),(\"ERR\"))","v":"NA"},null,{"$f":"IF((B16)>B6,(B16),(\"ERR\"))","v":"NA"}]
[null,"NA",null,"NA",null,"NA",null,{"$f":"IF((D17)>D6,(D17),(\"ERR\"))","v":"NA"},null,{"$f":"IF((F17)>F6,(F17),(\"ERR\"))","v":"NA"},null,{"$f":"IF((B17)>B6,(B17),(\"ERR\"))","v":"NA"}]
[null,"NA",null,"NA",null,"NA",null,{"$f":"IF((D18)>D6,(D18),(\"ERR\"))","v":"NA"},null,{"$f":"IF((F18)>F6,(F18),(\"ERR\"))","v":"NA"},null,{"$f":"IF((B18)>B6,(B18),(\"ERR\"))","v":"NA"}]
[null,"NA",null,"NA",null,"NA",null,{"$f":"IF((D19)>D6,(D19),(\"ERR\"))","v":"NA"},null,{"$f":"IF((F19)>F6,(F19),(\"ERR\"))","v":"NA"},null,{"$f":"IF((B19)>B6,(B19),(\"ERR\"))","v":"NA"}]
[null,"NA",null,"NA",null,"NA",null,{"$f":"IF((D20)>D6,(D20),(\"ERR\"))","v":"NA"},null,{"$f":"IF((F20)>F6,(F20),(\"ERR\"))","v":"NA"},null,{"$f":"IF((B20)>B6,(B20),(\"ERR\"))","v":"NA"}]
[null,"NA",null,"NA",null,"NA",null,{"$f":"IF((D21)>D6,(D21),(\"ERR\"))","v":"NA"},null,{"$f":"IF((F21)>F6,(F21),(\"ERR\"))","v":"NA"},null,{"$f":"IF((B21)>B6,(B21),(\"ERR\"))","v":"NA"}]
[null,"NA",null,"NA",null,"NA",null,{"$f":"IF((D22)>D6,(D22),(\"ERR\"))","v":"NA"},null,{"$f":"IF((F22)>F6,(F22),(\"ERR\"))","v":"NA"},null,{"$f":"IF((B22)>B6,(B22),(\"ERR\"))","v":"NA"}]
[null,"NA",null,"NA",null,"NA",null,{"$f":"IF((D23)>D6,(D23),(\"ERR\"))","v":"NA"},null,{"$f":"IF((F23)>F6,(F23),(\"ERR\"))","v":"NA"},null,{"$f":"IF((B23)>B6,(B23),(\"ERR\"))","v":"NA"}]
[null,"NA",null,"NA",null,"NA",null,{"$f":"IF((D24)>D6,(D24),(\"ERR\"))","v":"NA"},null,{"$f":"IF((F24)>F6,(F24),(\"ERR\"))","v":"NA"},null,{"$f":"IF((B24)>B6,(B24),(\"ERR\"))","v":"NA"}]
[null,"NA",null,"NA",null,"NA",null,{"$f":"IF((D25)>D6,(D25),(\"ERR\"))","v":"NA"},null,{"$f":"IF((F25)>F6,(F25),(\"ERR\"))","v":"NA"},null,{"$f":"IF((B25)>B6,(B25),(\"ERR\"))","v":"NA"}]
[null,"NA",null,"NA",null,"NA",null,{"$f":"IF((D26)>D6,(D26),(\"ERR\"))","v":"NA"},null,{"$f":"IF((F26)>F6,(F26),(\"ERR\"))","v":"NA"},null,{"$f":"IF((B26)>B6,(B26),(\"ERR\"))","v":"NA"}]
[null,"NA",null,"NA",null,"NA",null,{"$f":"IF((D27)>D6,(D27),(\"ERR\"))","v":"NA"},null,{"$f":"IF((F27)>F6,(F27),(\"ERR\"))","v":"NA"},null,{"$f":"IF((B27)>B6,(B27),(\"ERR\"))","v":"NA"}]
[null,"NA",null,"NA",null,"NA",null,{"$f":"IF((D28)>D6,(D28),(\"ERR\"))","v":"NA"},null,{"$f":"IF((F28)>F6,(F28),(\"ERR\"))","v":"NA"},null,{"$f":"IF((B28)>B6,(B28),(\"ERR\"))","v":"NA"}]
[null,"NA",null,"NA",null,"NA",null,{"$f":"IF((D29)>D6,(D29),(\"ERR\"))","v":"NA"},null,{"$f":"IF((F29)>F6,(F29),(\"ERR\"))","v":"NA"},null,{"$f":"IF((B29)>B6,(B29),(\"ERR\"))","v":"NA"}]
[null,"NA",null,"NA",null,"NA",null,{"$f":"IF((D30)>D6,(D30),(\"ERR\"))","v":"NA"},null,{"$f":"IF((F30)>F6,(F30),(\"ERR\"))","v":"NA"},null,{"$f":"IF((B30)>B6,(B30),(\"ERR\"))","v":"NA"}]
[null,"NA",null,"NA",null,"NA",null,{"$f":"IF((D31)>D6,(D31),(\"ERR\"))","v":"NA"},null,{"$f":"IF((F31)>F6,(F31),(\"ERR\"))","v":"NA"},null,{"$f":"IF((B31)>B6,(B31),(\"ERR\"))","v":"NA"}]
[null,"NA",null,"NA",null,"NA",null,{"$f":"IF((D32)>D6,(D32),(\"ERR\"))","v":"NA"},null,{"$f":"IF((F32)>F6,(F32),(\"ERR\"))","v":"NA"},null,{"$f":"IF((B32)>B6,(B32),(\"ERR\"))","v":"NA"}]
[null,"NA",null,"NA",null,"NA",null,{"$f":"IF((D33)>D6,(D33),(\"ERR\"))","v":"NA"},null,{"$f":"IF((F33)>F6,(F33),(\"ERR\"))","v":"NA"},null,{"$f":"IF((B33)>B6,(B33),(\"ERR\"))","v":"NA"}]
[null,"NA",null,"NA",null,"NA",null,{"$f":"IF((D34)>D6,(D34),(\"ERR\"))","v":"NA"},null,{"$f":"IF((F34)>F6,(F34),(\"ERR\"))","v":"NA"},null,{"$f":"IF((B34)>B6,(B34),(\"ERR\"))","v":"NA"}]
[null,"NA",null,"NA",null,"NA",null,{"$f":"IF((D35)>D6,(D35),(\"ERR\"))","v":"NA"},null,{"$f":"IF((F35)>F6,(F35),(\"ERR\"))","v":"NA"},null,{"$f":"IF((B35)>B6,(B35),(\"ERR\"))","v":"NA"}]
[null,"NA",null,"NA",null,"NA",null,{"$f":"IF((D36)>D6,(D36),(\"ERR\"))","v":"NA"},null,{"$f":"IF((F36)>F6,(F36),(\"ERR\"))","v":"NA"},null,{"$f":"IF((B36)>B6,(B36),(\"ERR\"))","v":"NA"}]
[null,"NA",null,"NA",null,"NA",null,{"$f":"IF((D37)>D6,(D37),(\"ERR\"))","v":"NA"},null,{"$f":"IF((F37)>F6,(F37),(\"ERR\"))","v":"NA"},null,{"$f":"IF((B37)>B6,(B37),(\"ERR\"))","v":"NA"}]
[null,"NA",null,"NA",null,"NA",null,{"$f":"IF((D38)>D6,(D38),(\"ERR\"))","v":"NA"},null,{"$f":"IF((F38)>F6,(F38),(\"ERR\"))","v":"NA"},null,{"$f":"IF((B38)>B6,(B38),(\"ERR\"))","v":"NA"}]
[null,"NA",null,"NA",null,"NA",null,{"$f":"IF((D39)>D6,(D39),(\"ERR\"))","v":"NA"},null,{"$f":"IF((F39)>F6,(F39),(\"ERR\"))","v":"NA"},null,{"$f":"IF((B39)>B6,(B39),(\"ERR\"))","v":"NA"}]
[null,"NA",null,"NA",null,"NA",null,{"$f":"IF((D40)>D6,(D40),(\"ERR\"))","v":"NA"},null,{"$f":"IF((F40)>F6,(F40),(\"ERR\"))","v":"NA"},null,{"$f":"IF((B40)>B6,(B40),(\"ERR\"))","v":"NA"}]
[null,"NA",null,"NA",null,"NA",null,{"$f":"IF((D41)>D6,(D41),(\"ERR\"))","v":"NA"},null,{"$f":"IF((F41)>F6,(F41),(\"ERR\"))","v":"NA"},null,{"$f":"IF((B41)>B6,(B41),(\"ERR\"))","v":"NA"}]
[null,"NA",null,"NA",null,"NA",null,{"$f":"IF((D42)>D6,(D42),(\"ERR\"))","v":"NA"},null,{"$f":"IF((F42)>F6,(F42),(\"ERR\"))","v":"NA"},null,{"$f":"IF((B42)>B6,(B42),(\"ERR\"))","v":"NA"}]
[null,"NA",null,"NA",null,"NA",null,{"$f":"IF((D43)>D6,(D43),(\"ERR\"))","v":"NA"},null,{"$f":"IF((F43)>F6,(F43),(\"ERR\"))","v":"NA"},null,{"$f":"IF((B43)>B6,(B43),(\"ERR\"))","v":"NA"}]
[null,"NA",null,"NA",null,"NA",null,{"$f":"IF((D44)>D6,(D44),(\"ERR\"))","v":"NA"},null,{"$f":"IF((F44)>F6,(F44),(\"ERR\"))","v":"NA"},null,{"$f":"IF((B44)>B6,(B44),(\"ERR\"))","v":"NA"}]
[]
["High Speed",{"$f":"MAX(B10:B44)","v":0},"High Speed",{"$f":"MAX(D10:D44)","v":0},null,{"$f":"MAX(F10:F44)","v":0}]
["Low  Speed",{"$f":"MIN(B10:B44)","v":0},"Low  Speed",{"$f":"MIN(D10:D44)","v":0},null,{"$f":"MIN(F10:F44)","v":0}]
["Avg  Speed",{"$f":"AVERAGE(B10:B44)","v":{"$error":"#DIV/0!"}},"Avg  Speed",{"$f":"AVERAGE(D10:D44)","v":{"$error":"#DIV/0!"}},null,{"$f":"AVERAGE(F10:F44)","v":{"$error":"#DIV/0!"}},null,{"$f":"(COUNT(H10:H44))","v":0},null,{"$f":"(COUNT(J10:J44))","v":0},null,{"$f":"(COUNT(L10:L44))","v":0}]
[]
["Total Count",{"$f":"COUNTA(A10:A44)","v":0},"Total Count",{"$f":"COUNTA(C10:C44)","v":0},null,{"$f":"COUNTA(E10:E44)","v":0},null,{"$f":"(COUNTA(C10:C44))-(H48)","v":0},null,{"$f":"(COUNTA(E10:E44))-(J48)","v":0},null,{"$f":"(COUNTA(A10:A44))-(L48)","v":0}]
[]
["Total Under",null,"Total Under",null,"Total Under"]
["15 MPH",{"$f":"(L50)","v":0},"15 MPH",{"$f":"(H50)","v":0},"5 MPH",{"$f":"(J50)","v":0}]
[]
["Percentage",{"$f":"((B53)/(B50))","v":{"$error":"#DIV/0!"}},"Percentage",{"$f":"((D53)/(D50))","v":{"$error":"#DIV/0!"}},"Percentage",{"$f":"((F53)/(F50))","v":{"$error":"#DIV/0!"}}]